﻿year,department,vendor,category,project_summary, total_approved_project_fee ,expenditure_reporting_period,future_expenditure,Financial Year,Cleaned name,vendor_is_big_4
2020–21,Department of Transport,SALT3,Not specified,Professional Services,10056,"$10,056.",0,2021,SALT3,Other consultants
2020–21,Department of Transport,REDINK PLANNING,Not specified,Professional Services,23000,"$23,000.",0,2021,REDINK PLANNING,Other consultants
2020–21,Department of Transport,Price Waterhouse Coopers,Not specified,Professional Services,863636,"$736,296.",0,2021,PRICE WATERHOUSE COOPERS,"KPMG, PwC, EY, Deloitte"
2020–21,Department of Transport,Project Health P/L,Not specified,Professional Services,39000,"$39,000.",0,2021,PROJECT HEALTH P/L,Other consultants
2020–21,Department of Transport,Price Waterhouse Coopers,Not specified,Professional Services,189775,"$52,525.",0,2021,PRICE WATERHOUSE COOPERS,"KPMG, PwC, EY, Deloitte"
2020–21,Department of Transport,REDINK PLANNING,Not specified,Professional Services,24940,"$24,940.",0,2021,REDINK PLANNING,Other consultants
2020–21,Department of Transport,Q0FREE AUSTRALIA PTY LTD,Not specified,Professional Services,15348,"$15,348.",0,2021,Q–FREE AUSTRALIA PTY LTD,Other consultants
2020–21,Department of Transport,REDINK PLANNING,Not specified,Professional Services,44000,"$44,000.",0,2021,REDINK PLANNING,Other consultants
2020–21,Department of Transport,RXP SERVICES LIMITED,Not specified,Professional Services,12500,"$12,500.",0,2021,RXP SERVICES LIMITED,Other consultants
2020–21,Department of Transport,RED HAT ASIA0PACIFIC PTY LTD,Not specified,Professional Services,50000,"$50,000.",0,2021,RED HAT ASIA–PACIFIC PTY LTD,Other consultants
2020–21,Department of Transport,Price Waterhouse Coopers,Not specified,Professional Services,57180,"$12,980.",0,2021,PRICE WATERHOUSE COOPERS,"KPMG, PwC, EY, Deloitte"
2020–21,Department of Transport,Price Waterhouse Coopers,Not specified,Professional Services,144787,"$88,193.",0,2021,PRICE WATERHOUSE COOPERS,"KPMG, PwC, EY, Deloitte"
2020–21,Department of Transport,Price Waterhouse Coopers,Not specified,Professional Services,40248,"$40,248.",0,2021,PRICE WATERHOUSE COOPERS,"KPMG, PwC, EY, Deloitte"
2020–21,Department of Transport,RAPID CIRCLE PTY LTD,Not specified,Professional Services,40000,"$40,000.",0,2021,RAPID CIRCLE PTY LTD,Other consultants
2020–21,Department of Transport,Price Waterhouse Coopers,Not specified,Professional Services,200000,"$62,290.",0,2021,PRICE WATERHOUSE COOPERS,"KPMG, PwC, EY, Deloitte"
2020–21,Department of Transport,SAFE SYSTEM SOLUTIONS PTY LTD,Not specified,Professional Services,66000,"$18,800.",0,2021,SAFE SYSTEM SOLUTIONS PTY LTD,Other consultants
2020–21,Department of Transport,Price Waterhouse Coopers,Not specified,Professional Services,71685,"$71,685.",0,2021,PRICE WATERHOUSE COOPERS,"KPMG, PwC, EY, Deloitte"
2020–21,Department of Transport,RAPID MAP SERVICES PTY LTD,Not specified,Professional Services,43600,"$43,600.",0,2021,RAPID MAP SERVICES PTY LTD,Other consultants
2020–21,Department of Transport,RATIO CONSULTANTS PTY LTD,Not specified,Professional Services,14065,"$14,065.",0,2021,RATIO CONSULTANTS PTY LTD,Other consultants
2020–21,Department of Transport,SAFE SYSTEM SOLUTIONS PTY LTD,Not specified,Professional Services,25990,"$3,899.",0,2021,SAFE SYSTEM SOLUTIONS PTY LTD,Other consultants
2020–21,Department of Transport,SAFE SYSTEM SOLUTIONS PTY LTD,Not specified,Professional Services,69971,"$17,309.",0,2021,SAFE SYSTEM SOLUTIONS PTY LTD,Other consultants
2020–21,Department of Transport,RPS MANIDIS ROBERTS PTY LTD,Not specified,Professional Services,226242,"$1,296.",0,2021,RPS MANIDIS ROBERTS PTY LTD,Other consultants
2020–21,Department of Transport,Price Waterhouse Coopers,Not specified,Professional Services,55000,"$55,000.",0,2021,PRICE WATERHOUSE COOPERS,"KPMG, PwC, EY, Deloitte"
2020–21,Department of Transport,Price Waterhouse Coopers,Not specified,Professional Services,44370,"$44,370.",0,2021,PRICE WATERHOUSE COOPERS,"KPMG, PwC, EY, Deloitte"
2020–21,Department of Transport,QUEENSLAND UNIVERSITY OF TECH,Not specified,Professional Services,57634,"$34,580.",0,2021,QUEENSLAND UNIVERSITY OF TECHNOLOGY,Other consultants
2020–21,Department of Transport,Project Health P/L,Not specified,Professional Services,48000,"$43,000.",0,2021,PROJECT HEALTH P/L,Other consultants
2020–21,Department of Transport,SCA MANAGEMENT CONSULTANTS PTY LTD,Not specified,Professional Services,18740,"$18,740.",0,2021,SCA MANAGEMENT CONSULTANTS PTY LTD,Other consultants
2020–21,Department of Transport,ROAD SOLUTIONS Pty Ltd,Not specified,Professional Services,21000,"$6,300.",0,2021,ROAD SOLUTIONS PTY LTD,Other consultants
2020–21,Department of Transport,RED SCIENTIFIC,Not specified,Professional Services,58522,"$58,522.",0,2021,RED SCIENTIFIC,Other consultants
2020–21,Department of Transport,R BUSH CONSULTING P/L,Not specified,Professional Services,24085,"$5,440.",0,2021,R BUSH CONSULTING P/L,Other consultants
2020–21,Department of Transport,R BUSH CONSULTING P/L,Not specified,Professional Services,21845,"$9,180.",0,2021,R BUSH CONSULTING P/L,Other consultants
2020–21,Department of Transport,SCA MANAGEMENT CONSULTANTS PTY LTD,Not specified,Professional Services,45000,"$9,225.",0,2021,SCA MANAGEMENT CONSULTANTS PTY LTD,Other consultants
2020–21,Department of Transport,SALT3,Not specified,Professional Services,15000,"$15,000.",0,2021,SALT3,Other consultants
2020–21,Department of Transport,GTA CONSULTANTS,Not specified,Professional Services,44500,"$41,500.",0,2021,GTA CONSULTANTS,Other consultants
2020–21,Department of Transport,SENSE OF SECURITY,Not specified,Professional Services,57750,"$57,750.",0,2021,SENSE OF SECURITY,Other consultants
2020–21,Department of Transport,TURNER AND TOWNSEND,Not specified,Professional Services,142080,"$82,480.",0,2021,TURNER & TOWNSEND PTY LTD,Other consultants
2020–21,Department of Transport,CRANE TECH CRANES & CONSULTING PTY.LTD,Not specified,Professional Services,14040,"$14,040.",0,2021,CRANE TECH CRANES & CONSULTING PTY. LTD,Other consultants
2020–21,Department of Transport,CT MANAGEMENT GROUP,Not specified,Professional Services,106800,"$106,800.",0,2021,CT MANAGEMENT GROUP,Other consultants
2020–21,Department of Transport,CUMMINS PLANNING,Not specified,Professional Services,38000,"$17,100.",0,2021,CUMMINS PLANNING,Other consultants
2020–21,Department of Transport,DARMS PROPERTY PTY LTD,Not specified,Professional Services,12500,"$7,250.",0,2021,DARMS PROPERTY PTY LTD,Other consultants
2020–21,Department of Transport,TRANSOPTIM PTY LTD,Not specified,Professional Services,31970,"$31,970.",0,2021,TRANSOPTIM PTY LTD,Other consultants
2020–21,Department of Transport,TRANSMAX PTY LTD,Not specified,Professional Services,19940,"$13,276.",0,2021,TRANSMAX PTY LTD,Other consultants
2020–21,Department of Transport,TRAFFIX GROUP PTY LTD,Not specified,Professional Services,49689,"$49,689.",0,2021,TRAFFIX GROUP PTY LTD,Other consultants
2020–21,Department of Transport,TRAFFIX GROUP PTY LTD,Not specified,Professional Services,22000,"$11,500.",0,2021,TRAFFIX GROUP PTY LTD,Other consultants
2020–21,Department of Transport,TRAFFIX GROUP PTY LTD,Not specified,Professional Services,13300,"$13,300.",0,2021,TRAFFIX GROUP PTY LTD,Other consultants
2020–21,Department of Transport,TRAFFIX GROUP PTY LTD,Not specified,Professional Services,22300,"$22,300.",0,2021,TRAFFIX GROUP PTY LTD,Other consultants
2020–21,Department of Transport,CORMEUM CONSULTING PTY LTD,Not specified,Professional Services,398843,"$292,977.",0,2021,CORMEUM CONSULTING PTY LTD,Other consultants
2020–21,Department of Transport,Deloitte Touche Tohmatsu,Not specified,Professional Services,179000,"$99,742.",0,2021,DELOITTE,"KPMG, PwC, EY, Deloitte"
2020–21,Department of Transport,CONSTRUCTION SCIENCES PTY LTD,Not specified,Professional Services,15450,"$15,450.",0,2021,CONSTRUCTION SCIENCES PTY LTD,Other consultants
2020–21,Department of Transport,COLLABORATIVE ITS CONSULTING PTY LTD,Not specified,Professional Services,59248,"$59,248.",0,2021,COLLABORATIVE ITS CONSULTING,Other consultants
2020–21,Department of Transport,BOLTCON PTY LTD,Not specified,Professional Services,14800,"$14,800.",0,2021,BOLTCON PTY LTD,Other consultants
2020–21,Department of Transport,The Boston Consulting Group Pty Ltd,Not specified,Professional Services,874500,"$795,000.",0,2021,BOSTON CONSULTING GROUP,Other consultants
2020–21,Department of Transport,BRUCE MARTIN COHEN PTY LTD,Not specified,Professional Services,90000,"$90,000.",0,2021,BRUCE MARTIN COHEN PTY LTD,Other consultants
2020–21,Department of Transport,CAPIRE CONSULTING GROUP,Not specified,Professional Services,90263,"$44,057.",0,2021,CAPIRE CONSULTING GROUP,Other consultants
2020–21,Department of Transport,Urbis Pty Ltd,Not specified,Professional Services,365274,"$113,563.",0,2021,URBIS PTY LTD,Other consultants
2020–21,Department of Transport,CHARTER KECK CRAMER PTY LTD,Not specified,Professional Services,13900,"$13,900.",0,2021,CHARTER KECK CRAMER,Other consultants
2020–21,Department of Transport,CIVINFRA PTY LTD,Not specified,Professional Services,479300,"$7,380.",0,2021,CIVINFRA PTY LTD,Other consultants
2020–21,Department of Transport,CNC PROJECT MANAGEMENT PTY LTD,Not specified,Professional Services,22970,"$17,635.",0,2021,CNC PROJECT MANAGEMENT PTY LTD,Other consultants
2020–21,Department of Transport,COMPASS ENVIRONMENTAL P/L,Not specified,Professional Services,36675,"$36,675.",0,2021,COMPASS ENVIRONMENTAL P/L,Other consultants
2020–21,Department of Transport,BOLTCON PTY LTD,Not specified,Professional Services,23350,"$23,350.",0,2021,BOLTCON PTY LTD,Other consultants
2020–21,Department of Transport,Deloitte Touche Tohmatsu,Not specified,Professional Services,199694,"$199,694.",0,2021,DELOITTE,"KPMG, PwC, EY, Deloitte"
2020–21,Department of Transport,Deloitte Touche Tohmatsu,Not specified,Professional Services,227273,"$15,425.",0,2021,DELOITTE,"KPMG, PwC, EY, Deloitte"
2020–21,Department of Transport,ENHAR PTY LTD,Not specified,Professional Services,13200,"$6,600.",0,2021,ENHAR PTY LTD,Other consultants
2020–21,Department of Transport,EQUIPE LAWYERS PTY LTD,Not specified,Professional Services,13817,"$13,817.",0,2021,EQUIPE LAWYERS PTY LTD,Other consultants
2020–21,Department of Transport,Ernst & Young,Not specified,Professional Services,49967,"$49,967.",0,2021,ERNST & YOUNG,"KPMG, PwC, EY, Deloitte"
2020–21,Department of Transport,Ernst & Young,Not specified,Professional Services,42493,"$42,493.",0,2021,ERNST & YOUNG,"KPMG, PwC, EY, Deloitte"
2020–21,Department of Transport,Ernst & Young,Not specified,Professional Services,20000,"$20,000.",0,2021,ERNST & YOUNG,"KPMG, PwC, EY, Deloitte"
2020–21,Department of Transport,Price Waterhouse Coopers,Not specified,Professional Services,247539,"$247,539.",0,2021,PRICE WATERHOUSE COOPERS,"KPMG, PwC, EY, Deloitte"
2020–21,Department of Transport,Ernst & Young,Not specified,Professional Services,751045,"$15,486.",0,2021,ERNST & YOUNG,"KPMG, PwC, EY, Deloitte"
2020–21,Department of Transport,Ernst & Young,Not specified,Professional Services,16883636,"$45,000.",0,2021,ERNST & YOUNG,"KPMG, PwC, EY, Deloitte"
2020–21,Department of Transport,TONKIN & TAYLOR PTY LTD,Not specified,Professional Services,14700,"$14,700.",0,2021,TONKIN & TAYLOR PTY LTD,Other consultants
2020–21,Department of Transport,Ernst & Young,Not specified,Professional Services,70000,"$70,000.",0,2021,ERNST & YOUNG,"KPMG, PwC, EY, Deloitte"
2020–21,Department of Transport,Ernst & Young,Not specified,Professional Services,369840,"$369,840.",0,2021,ERNST & YOUNG,"KPMG, PwC, EY, Deloitte"
2020–21,Department of Transport,Deloitte Touche Tohmatsu,Not specified,Professional Services,299406,"$194,614.",0,2021,DELOITTE,"KPMG, PwC, EY, Deloitte"
2020–21,Department of Transport,DLA PIPER AUSTRALIA,Not specified,Professional Services,94500,"$40,633.",0,2021,DLA PIPER AUSTRALIA,Other consultants
2020–21,Department of Transport,TRACEY BRUNSTROM & HAMMOND P/L,Not specified,Professional Services,14928,"$14,928.",0,2021,TRACEY BRUNSTROM & HAMMOND P/L,Other consultants
2020–21,Department of Transport,Deloitte Touche Tohmatsu,Not specified,Professional Services,127273,"$18,203.",0,2021,DELOITTE,"KPMG, PwC, EY, Deloitte"
2020–21,Department of Transport,Deloitte Touche Tohmatsu,Not specified,Professional Services,19368,"$19,368.",0,2021,DELOITTE,"KPMG, PwC, EY, Deloitte"
2020–21,Department of Transport,TRAFFICWORKS PTY LTD,Not specified,Professional Services,22250,"$22,250.",0,2021,TRAFFICWORKS PTY LTD,Other consultants
2020–21,Department of Transport,Deloitte Touche Tohmatsu,Not specified,Professional Services,1272659,"$1,266,772.",0,2021,DELOITTE,"KPMG, PwC, EY, Deloitte"
2020–21,Department of Transport,TRAFFICWORKS PTY LTD,Not specified,Professional Services,15400,"$15,400.",0,2021,TRAFFICWORKS PTY LTD,Other consultants
2020–21,Department of Transport,Deloitte Touche Tohmatsu,Not specified,Professional Services,252460,"$252,460.",0,2021,DELOITTE,"KPMG, PwC, EY, Deloitte"
2020–21,Department of Transport,Deloitte Touche Tohmatsu,Not specified,Professional Services,218562,"$128,084.",0,2021,DELOITTE,"KPMG, PwC, EY, Deloitte"
2020–21,Department of Transport,Deloitte Touche Tohmatsu,Not specified,Professional Services,170660,"$42,695.",0,2021,DELOITTE,"KPMG, PwC, EY, Deloitte"
2020–21,Department of Transport,Deloitte Touche Tohmatsu,Not specified,Professional Services,50000,"$26,228.",0,2021,DELOITTE,"KPMG, PwC, EY, Deloitte"
2020–21,Department of Transport,TRAFFICWORKS PTY LTD,Not specified,Professional Services,11500,"$11,500.",0,2021,TRAFFICWORKS PTY LTD,Other consultants
2020–21,Department of Transport,TRAFFICWORKS PTY LTD,Not specified,Professional Services,19340,"$1,700.",0,2021,TRAFFICWORKS PTY LTD,Other consultants
2020–21,Department of Transport,TRAFFICWORKS PTY LTD,Not specified,Professional Services,12250,"$12,250.",0,2021,TRAFFICWORKS PTY LTD,Other consultants
2020–21,Department of Transport,Ernst & Young,Not specified,Professional Services,641364,"$395,884.",0,2021,ERNST & YOUNG,"KPMG, PwC, EY, Deloitte"
2020–21,Department of Transport,BLUE ARCADIA PTY LTD,Not specified,Professional Services,45200,"$31,485.",0,2021,BLUE ARCADIA PTY LTD,Other consultants
2020–21,Department of Transport,Biruu Pty Ltd,Not specified,Professional Services,28000,"$27,900.",0,2021,BIRUU,Other consultants
2020–21,Department of Transport,WSP AUSTRALIA PTY LTD,Not specified,Professional Services,54470,"$54,470.",0,2021,WSP AUSTRALIA PTY LIMITED,Other consultants
2020–21,Department of Transport,WSP AUSTRALIA PTY LTD,Not specified,Professional Services,77526,"$77,526.",0,2021,WSP AUSTRALIA PTY LIMITED,Other consultants
2020–21,Department of Transport,WSP AUSTRALIA PTY LTD,Not specified,Professional Services,31510,"$31,510.",0,2021,WSP AUSTRALIA PTY LIMITED,Other consultants
2020–21,Department of Transport,WSP AUSTRALIA PTY LTD,Not specified,Professional Services,56273,"$31,920.",0,2021,WSP AUSTRALIA PTY LIMITED,Other consultants
2020–21,Department of Transport,AECOM Australia Pty Ltd,Not specified,Professional Services,16000,"$16,000.",0,2021,AECOM AUSTRALIA PTY LTD,Other consultants
2020–21,Department of Transport,AECOM AUSTRALIA PTY LTD & WSP AUSTRALIA PTY LIMITED,Not specified,Professional Services,168520,"$168,520.",0,2021,AECOM AUSTRALIA PTY LTD,Other consultants
2020–21,Department of Transport,AECOM Australia Pty Ltd,Not specified,Professional Services,16390,"$16,390.",0,2021,AECOM AUSTRALIA PTY LTD,Other consultants
2020–21,Department of Transport,AECOM Australia Pty Ltd,Not specified,Professional Services,25163,"$25,163.",0,2021,AECOM AUSTRALIA PTY LTD,Other consultants
2020–21,Department of Transport,AECOM Australia Pty Ltd,Not specified,Professional Services,24750,"$24,750.",0,2021,AECOM AUSTRALIA PTY LTD,Other consultants
2020–21,Department of Transport,AECOM Australia Pty Ltd,Not specified,Professional Services,28196,"$28,196.",0,2021,AECOM AUSTRALIA PTY LTD,Other consultants
2020–21,Department of Transport,AECOM Australia Pty Ltd,Not specified,Professional Services,27100,"$27,100.",0,2021,AECOM AUSTRALIA PTY LTD,Other consultants
2020–21,Department of Transport,AECOM Australia Pty Ltd,Not specified,Professional Services,28065,"$28,065.",0,2021,AECOM AUSTRALIA PTY LTD,Other consultants
2020–21,Department of Transport,AFMA,Not specified,Professional Services,42900,"$9,900.",0,2021,AFMA,Other consultants
2020–21,Department of Transport,WSP AUSTRALIA PTY LTD,Not specified,Professional Services,222727,"$42,031.",0,2021,WSP AUSTRALIA PTY LIMITED,Other consultants
2020–21,Department of Transport,ALLENS,Not specified,Professional Services,10000,"$10,000.",0,2021,ALLENS,Other consultants
2020–21,Department of Transport,AECOM AUSTRALIA PTY LTD & WSP AUSTRALIA PTY LIMITED,Not specified,Professional Services,589822,"$468,189.",0,2021,AECOM AUSTRALIA PTY LTD,Other consultants
2020–21,Department of Transport,AECOM Australia Pty Ltd,Not specified,Professional Services,136205,"$20,000.",0,2021,AECOM AUSTRALIA PTY LTD,Other consultants
2020–21,Department of Transport,4 TIER CONSULTING,Not specified,Professional Services,40000,"$16,750.",0,2021,4 TIER CONSULTING,Other consultants
2020–21,Department of Transport,ABLEY TRANSPORTATION CONSULTANTS,Not specified,Professional Services,48758,"$34,058.",0,2021,ABLEY TRANSPORTATION CONSULTANTS,Other consultants
2020–21,Department of Transport,ABLEY TRANSPORTATION CONSULTANTS,Not specified,Professional Services,49580,"$49,580.",0,2021,ABLEY TRANSPORTATION CONSULTANTS,Other consultants
2020–21,Department of Transport,"YORTA YORTA NATION ABORIGINAL CORPORATION",Not specified,Professional Services,45455,"$45,455.",0,2021,YORTA YORTA NATION ABORIGINAL CORPORATION,Other consultants
2020–21,Department of Transport,ABLEY TRANSPORTATION CONSULTANTS,Not specified,Professional Services,34600,"$14,983.",0,2021,ABLEY TRANSPORTATION CONSULTANTS,Other consultants
2020–21,Department of Transport,"WURUNDJERI WOI WURRUNG CULTURAL HERITAGE ABORIGINAL CORPORATION",Not specified,Professional Services,40600,"$40,600.",0,2021,WURUNDJERI WOI WURRUNG CULTURAL HERITAGE ABORIGINAL CORPORATION,Other consultants
2020–21,Department of Transport,WSP AUSTRALIA PTY LTD,Not specified,Professional Services,227273,"$79,473.",0,2021,WSP AUSTRALIA PTY LIMITED,Other consultants
2020–21,Department of Transport,WSP AUSTRALIA PTY LTD,Not specified,Professional Services,112823,"$112,823.",0,2021,WSP AUSTRALIA PTY LIMITED,Other consultants
2020–21,Department of Transport,Advisian Pty Ltd,Not specified,Professional Services,90500,"$90,500.",0,2021,ADVISIAN PTY LTD,Other consultants
2020–21,Department of Transport,Advisian Pty Ltd,Not specified,Professional Services,20110,"$20,110.",0,2021,ADVISIAN PTY LTD,Other consultants
2020–21,Department of Transport,WSP AUSTRALIA PTY LTD,Not specified,Professional Services,130765,"$130,765.",0,2021,WSP AUSTRALIA PTY LIMITED,Other consultants
2020–21,Department of Transport,Advisian Pty Ltd,Not specified,Professional Services,480402,"$248,004.",0,2021,ADVISIAN PTY LTD,Other consultants
2020–21,Department of Transport,WSP AUSTRALIA PTY LTD,Not specified,Professional Services,799000,"$163,200.",0,2021,WSP AUSTRALIA PTY LIMITED,Other consultants
2020–21,Department of Transport,AECOM Australia Pty Ltd,Not specified,Professional Services,51350,"$23,043.",0,2021,AECOM AUSTRALIA PTY LTD,Other consultants
2020–21,Department of Transport,Biruu Pty Ltd,Not specified,Professional Services,45000,"$45,000.",0,2021,BIRUU,Other consultants
2020–21,Department of Transport,ALLENS,Not specified,Professional Services,86224,"$76,662.",0,2021,ALLENS,Other consultants
2020–21,Department of Transport,AULD PLANNING AND PROJECTS,Not specified,Professional Services,23040,"$16,020.",0,2021,AULD PLANNING AND PROJECTS,Other consultants
2020–21,Department of Transport,AURECON AUSTRALASIA PTY LTD,Not specified,Professional Services,242747,"$188,016.",0,2021,AURECON,Other consultants
2020–21,Department of Transport,AURECON AUSTRALASIA PTY LTD,Not specified,Professional Services,226638,"$51,054.",0,2021,AURECON,Other consultants
2020–21,Department of Transport,AURECON AUSTRALASIA PTY LTD,Not specified,Professional Services,69450,"$15,550.",0,2021,AURECON,Other consultants
2020–21,Department of Transport,AURECON AUSTRALASIA PTY LTD,Not specified,Professional Services,85000,"$69,450.",0,2021,AURECON,Other consultants
2020–21,Department of Transport,AURECON AUSTRALASIA PTY LTD,Not specified,Professional Services,117036,"$117,036.",0,2021,AURECON,Other consultants
2020–21,Department of Transport,AURECON AUSTRALASIA PTY LTD,Not specified,Professional Services,226400,"$194,800.",0,2021,AURECON,Other consultants
2020–21,Department of Transport,AUSTRALIAN CULTURAL HERITAGE,Not specified,Professional Services,16885,"$16,885.",0,2021,AUSTRALIAN CULTURAL HERITAGE,Other consultants
2020–21,Department of Transport,AUSTRALIAN CULTURAL HERITAGE,Not specified,Professional Services,10440,"$10,440.",0,2021,AUSTRALIAN CULTURAL HERITAGE,Other consultants
2020–21,Department of Transport,AUSTRALIAN CULTURAL HERITAGE,Not specified,Professional Services,17425,"$4,827.",0,2021,AUSTRALIAN CULTURAL HERITAGE,Other consultants
2020–21,Department of Transport,AVANCE LOGIC,Not specified,Professional Services,43625,"$43,625.",0,2021,AVANCE LOGIC,Other consultants
2020–21,Department of Transport,BG&E PTY LTD,Not specified,Professional Services,28830,"$28,830.",0,2021,BG&E PTY LTD,Other consultants
2020–21,Department of Transport,BG&E PTY LTD,Not specified,Professional Services,12800,"$12,800.",0,2021,BG&E PTY LTD,Other consultants
2020–21,Department of Transport,BIOSIS PTY LTD,Not specified,Professional Services,15194,"$15,194.",0,2021,BIOSIS PTY LTD,Other consultants
2020–21,Department of Transport,Arup Australia Pty Ltd,Not specified,Professional Services,88500,"$88,500.",0,2021,ARUP AUSTRALIA PTY LTD,Other consultants
2020–21,Department of Transport,Arup Australia Pty Ltd,Not specified,Professional Services,599826,"$489,928.",0,2021,ARUP AUSTRALIA PTY LTD,Other consultants
2020–21,Department of Transport,ALLENS,Not specified,Professional Services,227273,"$26,463.",0,2021,ALLENS,Other consultants
2020–21,Department of Transport,ALLENS,Not specified,Professional Services,45000,"$25,040.",0,2021,ALLENS,Other consultants
2020–21,Department of Transport,WSP AUSTRALIA PTY LTD,Not specified,Professional Services,120700,"$32,093.",0,2021,WSP AUSTRALIA PTY LIMITED,Other consultants
2020–21,Department of Transport,WSP AUSTRALIA PTY LTD,Not specified,Professional Services,142200,"$74,200.",0,2021,WSP AUSTRALIA PTY LIMITED,Other consultants
2020–21,Department of Transport,WSP AUSTRALIA PTY LTD,Not specified,Professional Services,36550,"$1,550.",0,2021,WSP AUSTRALIA PTY LIMITED,Other consultants
2020–21,Department of Transport,WSP AUSTRALIA PTY LTD,Not specified,Professional Services,22550,"$22,550.",0,2021,WSP AUSTRALIA PTY LIMITED,Other consultants
2020–21,Department of Transport,ARMSTRONG PERSONNEL PTY LTD,Not specified,Professional Services,20589,"$20,589.",0,2021,ARMSTRONG PERSONNEL PTY LTD,Other consultants
2020–21,Department of Transport,ARRB GROUP LTD,Not specified,Professional Services,11500,"$11,500.",0,2021,ARRB GROUP LTD,Other consultants
2020–21,Department of Transport,Arup Australia Pty Ltd,Not specified,Professional Services,24875,"$24,875.",0,2021,ARUP AUSTRALIA PTY LTD,Other consultants
2020–21,Department of Transport,Arup Australia Pty Ltd,Not specified,Professional Services,99600,"$99,600.",0,2021,ARUP AUSTRALIA PTY LTD,Other consultants
2020–21,Department of Transport,Ernst & Young,Not specified,Professional Services,45455,"$45,455.",0,2021,ERNST & YOUNG,"KPMG, PwC, EY, Deloitte"
2020–21,Department of Transport,KPMG,Not specified,Professional Services,1363636,"$271,187.",0,2021,KPMG,"KPMG, PwC, EY, Deloitte"
2020–21,Department of Transport,MBB CONSULTING PTY LTD,Not specified,Professional Services,75431,"$7,543.",0,2021,MBB CONSULTING PTY LTD,Other consultants
2020–21,Department of Transport,MBB CONSULTING PTY LTD,Not specified,Professional Services,136475,"$25,589.",0,2021,MBB CONSULTING PTY LTD,Other consultants
2020–21,Department of Transport,MBB CONSULTING PTY LTD,Not specified,Professional Services,133500,"$39,160.",0,2021,MBB CONSULTING PTY LTD,Other consultants
2020–21,Department of Transport,MBB CONSULTING PTY LTD,Not specified,Professional Services,72971,"$36,125.",0,2021,MBB CONSULTING PTY LTD,Other consultants
2020–21,Department of Transport,MBB CONSULTING PTY LTD,Not specified,Professional Services,133545,"$51,545.",0,2021,MBB CONSULTING PTY LTD,Other consultants
2020–21,Department of Transport,MBB CONSULTING PTY LTD,Not specified,Professional Services,98472,"$32,784.",0,2021,MBB CONSULTING PTY LTD,Other consultants
2020–21,Department of Transport,MBB CONSULTING PTY LTD,Not specified,Professional Services,76366,"$76,366.",0,2021,MBB CONSULTING PTY LTD,Other consultants
2020–21,Department of Transport,MIKTYSH SOLUTIONS,Not specified,Professional Services,56570,"$50,950.",0,2021,MIKTYSH SOLUTIONS,Other consultants
2020–21,Department of Transport,Minter Ellison,Not specified,Professional Services," $58,182.00 ","$38,000.",0,2021,MINTER ELLISON,Other consultants
2020–21,Department of Transport,MBB CONSULTING PTY LTD,Not specified,Professional Services,137700,"$137,700.",0,2021,MBB CONSULTING PTY LTD,Other consultants
2020–21,Department of Transport,M21 ADVISORY PTY LTD,Not specified,Professional Services,27273,"$23,485.",0,2021,M21 ADVISORY,Other consultants
2020–21,Department of Transport,STEP TWO DESIGNS,Not specified,Professional Services,34580,"$34,580.",0,2021,STEP TWO DESIGNS,Other consultants
2020–21,Department of Transport,STERLING INFRASTRUCTURE PTY LTD,Not specified,Professional Services,45260,"$45,260.",0,2021,STERLING INFRASTRUCTURE PTY LTD,Other consultants
2020–21,Department of Transport,KEN KANOFSKI ADVISORY PTY LTD,Not specified,Professional Services,10925,"$10,925.",0,2021,KEN KANOFSKI ADVISORY PTY LTD,Other consultants
2020–21,Department of Transport,KINETICA GROUP PTY LTD,Not specified,Professional Services,16500,"$16,500.",0,2021,KINETICA GROUP PTY LTD,Other consultants
2020–21,Department of Transport,TAUNGURUNG LAND AND WATERS COUNCIL,Not specified,Professional Services,45000,"$45,000.",0,2021,TAUNGURUNG LAND AND WATERS COUNCIL,Other consultants
2020–21,Department of Transport,Ernst & Young,Not specified,Professional Services,2889091,"$451,228.",0,2021,ERNST & YOUNG,"KPMG, PwC, EY, Deloitte"
2020–21,Department of Transport,KPMG,Not specified,Professional Services,81818,"$64,670.",0,2021,KPMG,"KPMG, PwC, EY, Deloitte"
2020–21,Department of Transport,KPMG,Not specified,Professional Services,404170,"$135,340.",0,2021,KPMG,"KPMG, PwC, EY, Deloitte"
2020–21,Department of Transport,KPMG,Not specified,Professional Services,45455,"$26,409.",0,2021,KPMG,"KPMG, PwC, EY, Deloitte"
2020–21,Department of Transport,KPMG,Not specified,Professional Services,44545,"$44,545.",0,2021,KPMG,"KPMG, PwC, EY, Deloitte"
2020–21,Department of Transport,KPMG,Not specified,Professional Services,120555,"$120,555.",0,2021,KPMG,"KPMG, PwC, EY, Deloitte"
2020–21,Department of Transport,KPMG,Not specified,Professional Services,24950,"$24,950.",0,2021,KPMG,"KPMG, PwC, EY, Deloitte"
2020–21,Department of Transport,KPMG,Not specified,Professional Services,29768,"$29,768.",0,2021,KPMG,"KPMG, PwC, EY, Deloitte"
2020–21,Department of Transport,LAURIE WATSON ENGINEERING PTY LTD,Not specified,Professional Services,46727,"$46,727.",0,2021,LAURIE WATSON ENGINEERING PTY LTD,Other consultants
2020–21,Department of Transport,TERRA FIRMA PTY LTD,Not specified,Professional Services,201818,"$134,734.",0,2021,TERRA FIRMA PTY LTD,Other consultants
2020–21,Department of Transport,"SMEDLEY TECHNICAL AND STRATEGIC PTY LTD",Not specified,Professional Services,44400,"$16,425.",0,2021,SMEDLEY TECHNICAL & STRATEGIC PTY LTD,Other consultants
2020–21,Department of Transport,SHE'S A CROWD PTY LTD,Not specified,Professional Services,50000,"$50,000.",0,2021,SHE'S A CROWD PTY LTD,Other consultants
2020–21,Department of Transport,OPERO CONSULTING,Not specified,Professional Services,15469,"$1,648.",0,2021,OPERO CONSULTING,Other consultants
2020–21,Department of Transport,PASSBOX,Not specified,Professional Services,30000,"$30,000.",0,2021,PASSBOX,Other consultants
2020–21,Department of Transport,PCMA,Not specified,Professional Services,27500,"$27,500.",0,2021,PCMA,Other consultants
2020–21,Department of Transport,Pitcher Partners,Not specified,Professional Services,41370,"$4,730.",0,2021,PITCHER PARTNERS,Other consultants
2020–21,Department of Transport,Pitcher Partners,Not specified,Professional Services,28000,"$28,000.",0,2021,PITCHER PARTNERS,Other consultants
2020–21,Department of Transport,SGS ECONOMICS AND PLANNING,Not specified,Professional Services,48263,"$9,653.",0,2021,SGS ECONOMICS & PLANNING PTY LTD,Other consultants
2020–21,Department of Transport,SGS Economics and Planning Pty Ltd,Not specified,Professional Services,71432,"$63,432.",0,2021,SGS ECONOMICS & PLANNING PTY LTD,Other consultants
2020–21,Department of Transport,SGP CONSULTING ENGINEERS PTY LTD,Not specified,Professional Services,12000,"$12,000.",0,2021,SGP CONSULTING ENGINEERS PTY LTD,Other consultants
2020–21,Department of Transport,NINE0SQUARED PTY LTD,Not specified,Professional Services,44760,"$44,760.",0,2021,NINE–SQUARED PTY LTD,Other consultants
2020–21,Department of Transport,NINE0SQUARED PTY LTD,Not specified,Professional Services,45325,"$45,325.",0,2021,NINE–SQUARED PTY LTD,Other consultants
2020–21,Department of Transport,SMEC AUSTRALIA PTY LTD,Not specified,Professional Services,21171,"$21,171.",0,2021,SMEC AUSTRALIA PTY LTD,Other consultants
2020–21,Department of Transport,SMEC AUSTRALIA PTY LTD,Not specified,Professional Services,258656,"$58,900.",0,2021,SMEC AUSTRALIA PTY LTD,Other consultants
2020–21,Department of Transport,MONASH UNIVERSITY ACCIDENT,Not specified,Professional Services,48500,"$29,100.",0,2021,MONASH UNIVERSITY,Other consultants
2020–21,Department of Transport,Monash University,Not specified,Professional Services,15000,"$15,000.",0,2021,MONASH UNIVERSITY,Other consultants
2020–21,Department of Transport,MONASH UNIVERSITY ACCIDENT,Not specified,Professional Services,15000,"$15,000.",0,2021,MONASH UNIVERSITY,Other consultants
2020–21,Department of Transport,MONASH UNIVERSITY ACCIDENT,Not specified,Professional Services,48500,"$29,100.",0,2021,MONASH UNIVERSITY,Other consultants
2020–21,Department of Transport,MONASH UNIVERSITY ACCIDENT,Not specified,Professional Services,49500,"$49,500.",0,2021,MONASH UNIVERSITY,Other consultants
2020–21,Department of Transport,Monash University,Not specified,Professional Services,99686,"$50,000.",0,2021,MONASH UNIVERSITY,Other consultants
2020–21,Department of Transport,Monash University,Not specified,Professional Services,32895,"$32,895.",0,2021,MONASH UNIVERSITY,Other consultants
2020–21,Department of Transport,SMART LOGIC MAPPING,Not specified,Professional Services,13500,"$13,500.",0,2021,SMART LOGIC MAPPING,Other consultants
2020–21,Department of Transport,SLR CONSULTING AUSTRALIA PTY LTD,Not specified,Professional Services,480650,"$307,373.",0,2021,SLR CONSULTING AUSTRALIA PTY LTD,Other consultants
2020–21,Department of Transport,NCC GROUP PTY LTD T/A SITE CONFIDENCE,Not specified,Professional Services,22500,"$22,500.",0,2021,NCC GROUP PTY LTD T/A SITE CONFIDENCE,Other consultants
2020–21,Department of Transport,SITEC PTY LTD,Not specified,Professional Services,22000,"$3,000.",0,2021,SITEC PTY LTD,Other consultants
2020–21,Department of Transport,NEN CONSULTING PTY LTD,Not specified,Professional Services,274410,"$232,523.",0,2021,NEN CONSULTING PTY LTD,Other consultants
2020–21,Department of Transport,NETWORK RAIL CONSULTING PTY LTD.,Not specified,Professional Services,45000,"$44,740.",0,2021,NETWORK RAIL CONSULTING PTY LTD,Other consultants
2020–21,Department of Transport,NGS GLOBAL PTY LTD,Not specified,Professional Services,46200,"$42,000.",0,2021,NGS GLOBAL PTY LTD,Other consultants
2020–21,Department of Transport,Minter Ellison,Not specified,Professional Services," $185,000.00 ","$168,162.",0,2021,MINTER ELLISON,Other consultants
2020–21,Department of Transport,SAFE SYSTEM SOLUTIONS PTY LTD,Not specified,Professional Services,59300,"$16,800.",0,2021,SAFE SYSTEM SOLUTIONS PTY LTD,Other consultants
2020–21,Department of Transport,JANICE ELIZABETH GARRARD,Not specified,Professional Services,24555,"$24,555.",0,2021,JANICE ELIZABETH GARRARD,Other consultants
2020–21,Department of Transport,GREENCAP PTY LTD,Not specified,Professional Services,70041,"$70,041.",0,2021,GREENCAP PTY LTD,Other consultants
2020–21,Department of Transport,GREENCAP PTY LTD,Not specified,Professional Services,21120,"$21,120.",0,2021,GREENCAP PTY LTD,Other consultants
2020–21,Department of Transport,GTA CONSULTANTS,Not specified,Professional Services,124538,"$112,084.",0,2021,GTA CONSULTANTS,Other consultants
2020–21,Department of Transport,GTA CONSULTANTS,Not specified,Professional Services,22350,"$22,350.",0,2021,GTA CONSULTANTS,Other consultants
2020–21,Department of Transport,GTA CONSULTANTS,Not specified,Professional Services,43301,"$43,301.",0,2021,GTA CONSULTANTS,Other consultants
2020–21,Department of Transport,GTA CONSULTANTS,Not specified,Professional Services,212348,"$212,348.",0,2021,GTA CONSULTANTS,Other consultants
2020–21,Department of Transport,GREENCAP PTY LTD,Not specified,Professional Services,148336,"$148,336.",0,2021,GREENCAP PTY LTD,Other consultants
2020–21,Department of Transport,GTA CONSULTANTS,Not specified,Professional Services,14830,"$14,830.",0,2021,GTA CONSULTANTS,Other consultants
2020–21,Department of Transport,GTA CONSULTANTS,Not specified,Professional Services,110012,"$110,012.",0,2021,GTA CONSULTANTS,Other consultants
2020–21,Department of Transport,GUIDERA CONSULTING GROUP,Not specified,Professional Services,49906,"$49,906.",0,2021,GUIDERA CONSULTING GROUP,Other consultants
2020–21,Department of Transport,HALL MCMASTER & ASSOCIATES LTD,Not specified,Professional Services,15000,"$5,000.",0,2021,HALL MCMASTER & ASSOCIATES LTD,Other consultants
2020–21,Department of Transport,HARWOOD ANDREWS PTY LTD,Not specified,Professional Services,74773,"$7,545.",0,2021,HARWOOD ANDREWS PTY LTD,Other consultants
2020–21,Department of Transport,GLOSSOP TOWN PLANNING,Not specified,Professional Services,24385,"$24,385.",0,2021,GLOSSOP TOWN PLANNING,Other consultants
2020–21,Department of Transport,GLOSSOP TOWN PLANNING,Not specified,Professional Services,10966,"$10,966.",0,2021,GLOSSOP TOWN PLANNING,Other consultants
2020–21,Department of Transport,EXTENT HERITAGE PTY LTD,Not specified,Professional Services,56287,"$13,722.",0,2021,EXTENT HERITAGE PTY LTD,Other consultants
2020–21,Department of Transport,FBG GROUP PTY LTD,Not specified,Professional Services,76186,"$40,000.",0,2021,FBG GROUP,Other consultants
2020–21,Department of Transport,THINK HQ PTY LTD,Not specified,Professional Services,14872,"$14,872.",0,2021,THINK HQ,Other consultants
2020–21,Department of Transport,FERAL INDUSTRIES,Not specified,Professional Services,22727,"$5,649.",0,2021,FERAL INDUSTRIES,Other consultants
2020–21,Department of Transport,FIRECONE VENTURES PTY LTD,Not specified,Professional Services,294075,"$212,169.",0,2021,FIRECONE VENTURES PTY LTD,Other consultants
2020–21,Department of Transport,GLOSSOP TOWN PLANNING,Not specified,Professional Services,25135,"$25,135.",0,2021,GLOSSOP TOWN PLANNING,Other consultants
2020–21,Department of Transport,GHD PTY LTD,Not specified,Professional Services,11250,"$11,250.",0,2021,GHD PTY LTD,Other consultants
2020–21,Department of Transport,GHD PTY LTD,Not specified,Professional Services,159673,"$95,717.",0,2021,GHD PTY LTD,Other consultants
2020–21,Department of Transport,GHD PTY LTD,Not specified,Professional Services,41702,"$41,702.",0,2021,GHD PTY LTD,Other consultants
2020–21,Department of Transport,GHD PTY LTD,Not specified,Professional Services,21596,"$21,596.",0,2021,GHD PTY LTD,Other consultants
2020–21,Department of Transport,GHD PTY LTD,Not specified,Professional Services,22395,"$22,395.",0,2021,GHD PTY LTD,Other consultants
2020–21,Department of Transport,GHD PTY LTD,Not specified,Professional Services,79500,"$79,500.",0,2021,GHD PTY LTD,Other consultants
2020–21,Department of Transport,GHD PTY LTD,Not specified,Professional Services,44889,"$44,889.",0,2021,GHD PTY LTD,Other consultants
2020–21,Department of Transport,GHD PTY LTD,Not specified,Professional Services,117179,"$117,179.",0,2021,GHD PTY LTD,Other consultants
2020–21,Department of Transport,GLOSSOP TOWN PLANNING,Not specified,Professional Services,30000,"$2,090.",0,2021,GLOSSOP TOWN PLANNING,Other consultants
2020–21,Department of Transport,HARWOOD ANDREWS PTY LTD,Not specified,Professional Services,30000,"$2,048.",0,2021,HARWOOD ANDREWS PTY LTD,Other consultants
2020–21,Department of Transport,IIMBE PTY LTD,Not specified,Professional Services,76000,"$76,000.",0,2021,IIMBE PTY LTD,Other consultants
2020–21,Department of Transport,THE SAFE STEP RECRUITMENT & CONSULTING PTY LTD,Not specified,Professional Services,195455,"$43,033.",0,2021,THE SAFE STEP RECRUITMENT & CONSULTING PTY LTD,Other consultants
2020–21,Department of Transport,JACOBS GROUP (AUSTRALIA) PTY LTD,Not specified,Professional Services,206991,"$3,962.",0,2021,JACOBS GROUP (AUSTRALIA) PTY LTD,Other consultants
2020–21,Department of Transport,JACOBS GROUP (AUSTRALIA) PTY LTD,Not specified,Professional Services,190885,"$82,254.",0,2021,JACOBS GROUP (AUSTRALIA) PTY LTD,Other consultants
2020–21,Department of Transport,HUMAN CAPITAL DEVELOPMNT CONSULT,Not specified,Professional Services,17500,"$17,500.",0,2021,HUMAN CAPITAL DEVELOPMENT CONSULT,Other consultants
2020–21,Department of Transport,INTERFACE RAIL ENGINEERING P/L,Not specified,Professional Services,88160,"$88,160.",0,2021,INTERFACE RAIL ENGINEERING P/L,Other consultants
2020–21,Department of Transport,INNERMODE PTY LTD,Not specified,Professional Services,48400,"$39,700.",0,2021,INNERMODE PTY LTD,Other consultants
2020–21,Department of Transport,INNODEV PTY LTD,Not specified,Professional Services,44925,"$27,050.",0,2021,INNODEV PTY LTD,Other consultants
2020–21,Department of Transport,JACOBS GROUP (AUSTRALIA) PTY LTD,Not specified,Professional Services,39861,"$39,861.",0,2021,JACOBS GROUP (AUSTRALIA) PTY LTD,Other consultants
2020–21,Department of Transport,INTELLIGENT TRANSPORT SERVICES,Not specified,Professional Services,44000,"$44,000.",0,2021,INTELLIGENT TRANSPORT SERVICES,Other consultants
2020–21,Department of Transport,JACKSON ADVISORY PTY LTD,Not specified,Professional Services,130909,"$40,500.",0,2021,JACKSON ADVISORY PTY LTD,Other consultants
2020–21,Department of Transport,JACKSON ADVISORY PTY LTD,Not specified,Professional Services,45000,"$13,500.",0,2021,JACKSON ADVISORY PTY LTD,Other consultants
2020–21,Department of Transport,IDENTITY CARE AUSTRALIA & NZ LTD,Not specified,Professional Services,23480,"$23,480.",0,2021,IDENTITY CARE AUSTRALIA & NZ LTD,Other consultants
2020–21,Department of Transport,JACOBS GROUP (AUSTRALIA) PTY LTD,Not specified,Professional Services,134279,"$133,117.",0,2021,JACOBS GROUP (AUSTRALIA) PTY LTD,Other consultants
2020–21,Department of Transport,HARWOOD ANDREWS PTY LTD,Not specified,Professional Services,12000,"$12,000.",0,2021,HARWOOD ANDREWS PTY LTD,Other consultants
2020–21,Department of Transport,HARWOOD ANDREWS PTY LTD,Not specified,Professional Services,11820,"$5,000.",0,2021,HARWOOD ANDREWS PTY LTD,Other consultants
2020–21,Department of Transport,HARWOOD ANDREWS PTY LTD,Not specified,Professional Services,38500,"$38,500.",0,2021,HARWOOD ANDREWS PTY LTD,Other consultants
2020–21,Department of Transport,THE SAFE STEP RECRUITMENT & CONSULTING PTY LTD,Not specified,Professional Services,172727,"$12,919.",0,2021,THE SAFE STEP RECRUITMENT & CONSULTING PTY LTD,Other consultants
2020–21,Department of Transport,HIVE LEGAL PTY LTD,Not specified,Professional Services,227100,"$45,853.",0,2021,HIVE LEGAL PTY LTD,Other consultants
2020–21,Department of Transport,HIVINT PTY LTD,Not specified,Professional Services,135900,"$17,325.",0,2021,HIVINT,Other consultants
2020–21,Department of Transport,HLB MANN JUDD (VIC) PTY LTD,Not specified,Professional Services,94614,"$12,691.",0,2021,HLB MANN JUDD (VIC) PTY LTD,Other consultants
2020–21,Department of Transport,THE SAFE STEP RECRUITMENT & CONSULTING PTY LTD,Not specified,Professional Services,172727,"$34,512.",0,2021,THE SAFE STEP RECRUITMENT & CONSULTING PTY LTD,Other consultants
2020–21,Department of Transport,HOLDING REDLICH LAWYERS,Not specified,Professional Services,36761,"$16,761.",0,2021,HOLDING REDLICH,Other consultants
2020–21,Department of Transport,THE SAFE STEP RECRUITMENT & CONSULTING PTY LTD,Not specified,Professional Services,195455,"$28,731.",0,2021,THE SAFE STEP RECRUITMENT & CONSULTING PTY LTD,Other consultants
2019–20,Department of Transport,SYMBOLIX PTY LTD,Not specified,Professional Services,44200,"$44,200.",0,2020,SYMBOLIX PTY LTD,Other consultants
2019–20,Department of Transport,TELSTRA COORPORATION LTD,Not specified,Professional Services,3272538,"$707,248.",0,2020,TELSTRA CORPORATION LTD,Other consultants
2019–20,Department of Transport,SEONA GROVES,Not specified,Professional Services,23513,"$23,513.",0,2020,SEONA GROVES,Other consultants
2019–20,Department of Transport,WSP AUSTRALIA PTY LTD,Not specified,Professional Services,44103,"$44,103.",0,2020,WSP AUSTRALIA PTY LIMITED,Other consultants
2019–20,Department of Transport,SUMMIT CONSULTING SOLUTIONS,Not specified,Professional Services,227370,"$227,370.",0,2020,SUMMIT CONSULTING SOLUTIONS,Other consultants
2019–20,Department of Transport,TIGER SPIDER PTY LTD,Not specified,Professional Services,21150,"$18,000.",0,2020,TIGER SPIDER PTY LTD,Other consultants
2019–20,Department of Transport,YORTA YORTA,Not specified,Professional Services,108877,"$35,013.",0,2020,YORTA YORTA NATION ABORIGINAL CORPORATION,Other consultants
2019–20,Department of Transport,WOOD AND GRIEVE ENGINEERS,Not specified,Professional Services,13800,"$13,800.",0,2020,WOOD AND GRIEVE ENGINEERS,Other consultants
2019–20,Department of Transport,WSP AUSTRALIA PTY LTD,Not specified,Professional Services,42188,"$42,188.",0,2020,WSP AUSTRALIA PTY LIMITED,Other consultants
2019–20,Department of Transport,TRAFFICWORKS PTY LTD,Not specified,Professional Services,20000,"$20,000.",0,2020,TRAFFICWORKS PTY LTD,Other consultants
2019–20,Department of Transport,WALLIS CONSULTING GROUP,Not specified,Professional Services,2270656,"$708,178.",0,2020,WALLIS CONSULTING GROUP,Other consultants
2019–20,Department of Transport,TTF JONATHAN GORDON FAMILY TRUST,Not specified,Professional Services,50000,"$50,000.",0,2020,TTF JONATHAN GORDON FAMILY TRUST,Other consultants
2019–20,Department of Transport,TTF JONATHAN GORDON FAMILY TRUST,Not specified,Professional Services,30800,"$30,800.",0,2020,TTF JONATHAN GORDON FAMILY TRUST,Other consultants
2019–20,Department of Transport,TTF QUAY CONNEXION DISCRETIONARY,Not specified,Professional Services,18000,"$18,000.",0,2020,TTF QUAY CONNEXION DISCRETIONARY,Other consultants
2019–20,Department of Transport,SMEC AUSTRALIA PTY LTD,Not specified,Professional Services,45365,"$42,265.",0,2020,SMEC AUSTRALIA PTY LTD,Other consultants
2019–20,Department of Transport,WSP AUSTRALIA PTY LTD,Not specified,Professional Services,34940,"$34,940.",0,2020,WSP AUSTRALIA PTY LIMITED,Other consultants
2019–20,Department of Transport,SMEC AUSTRALIA PTY LTD,Not specified,Professional Services,63332,"$34,838.",0,2020,SMEC AUSTRALIA PTY LTD,Other consultants
2019–20,Department of Transport,THE RED BOOK,Not specified,Professional Services,20525,"$20,525.",0,2020,THE RED BOOK,Other consultants
2019–20,Department of Transport,Worklogic Pty Ltd,Not specified,Professional Services,18963,"$18,963.",0,2020,WORKLOGIC,Other consultants
2019–20,Department of Transport,Third Horizon Consulting Pty Ltd,Not specified,Professional Services,53500,"$48,636.",0,2020,THIRD HORIZON CONSULTING PTY LTD,Other consultants
2019–20,Department of Transport,ZERO IN SOLUTIONS PTY LTD,Not specified,Professional Services,14880,"$14,880.",0,2020,ZERO IN SOLUTIONS PTY LTD,Other consultants
2019–20,Department of Transport,SAFE SYSTEM SOLUTIONS PTY LTD,Not specified,Professional Services,18000,"$18,000.",0,2020,SAFE SYSTEM SOLUTIONS PTY LTD,Other consultants
2019–20,Department of Transport,KPMG,Not specified,Professional Services,75000,"$75,000.",0,2020,KPMG,"KPMG, PwC, EY, Deloitte"
2019–20,Department of Transport,KPMG,Not specified,Professional Services,86934,"$86,934.",0,2020,KPMG,"KPMG, PwC, EY, Deloitte"
2019–20,Department of Transport,KPMG AUSTRALIA,Not specified,Professional Services,20000,"$20,000.",0,2020,KPMG,"KPMG, PwC, EY, Deloitte"
2019–20,Department of Transport,KPMG AUSTRALIA,Not specified,Professional Services,134532,"$134,532.",0,2020,KPMG,"KPMG, PwC, EY, Deloitte"
2019–20,Department of Transport,KPMG AUSTRALIA,Not specified,Professional Services,6000000,"$257,490.",0,2020,KPMG,"KPMG, PwC, EY, Deloitte"
2019–20,Department of Transport,AURECON AUSTRALASIA PTY LTD,Not specified,Professional Services,28730,"$5,746.",0,2020,AURECON,Other consultants
2019–20,Department of Transport,AUSTROADS LIMITED,Not specified,Professional Services,137909,"$46,994.",0,2020,AUSTROADS LIMITED,Other consultants
2019–20,Department of Transport,BECA CONSULTANTS PTY LTD,Not specified,Professional Services,50000,"$16,300.",0,2020,BECA CONSULTANTS PTY LTD,Other consultants
2019–20,Department of Transport,BECA CONSULTANTS PTY LTD,Not specified,Professional Services,50000,"$46,000.",0,2020,BECA CONSULTANTS PTY LTD,Other consultants
2019–20,Department of Transport,BECA CONSULTANTS PTY LTD,Not specified,Professional Services,45500,"$45,500.",0,2020,BECA CONSULTANTS PTY LTD,Other consultants
2019–20,Department of Transport,ZERO IN SOLUTIONS PTY LTD,Not specified,Professional Services,27280,"$27,280.",0,2020,ZERO IN SOLUTIONS PTY LTD,Other consultants
2019–20,Department of Transport,BECA CONSULTANTS PTY LTD,Not specified,Professional Services,45500,"$45,500.",0,2020,BECA CONSULTANTS PTY LTD,Other consultants
2019–20,Department of Transport,BECA CONSULTANTS PTY LTD,Not specified,Professional Services,12300,"$12,300.",0,2020,BECA CONSULTANTS PTY LTD,Other consultants
2019–20,Department of Transport,BIOSIS PTY LTD,Not specified,Professional Services,14628,"$14,628.",0,2020,BIOSIS PTY LTD,Other consultants
2019–20,Department of Transport,Biruu Pty Ltd,Not specified,Professional Services,17064,"$11,200.",0,2020,BIRUU,Other consultants
2019–20,Department of Transport,Biruu Pty Ltd,Not specified,Professional Services,38394,"$21,330.",0,2020,BIRUU,Other consultants
2019–20,Department of Transport,JULIUS ROE,Not specified,Professional Services,29040,"$18,975.",0,2020,JULIUS ROE,Other consultants
2019–20,Department of Transport,JOE DIMASI ADVISORY,Not specified,Professional Services,16425,"$16,425.",0,2020,JOE DIMASI ADVISORY,Other consultants
2019–20,Department of Transport,JACOBS GROUP (AUSTRALIA) PTY LTD,Not specified,Professional Services,206991,"$206,991.",0,2020,JACOBS GROUP (AUSTRALIA) PTY LTD,Other consultants
2019–20,Department of Transport,"LEK CONSULTING AUSTRALIA PTY LTD",Not specified,Professional Services,399091,"$378,245.",0,2020,LEK CONSULTING AUSTRALIA PTY LTD,Other consultants
2019–20,Department of Transport,JACOBS GROUP (AUSTRALIA) PTY LTD,Not specified,Professional Services,54450,"$54,540.",0,2020,JACOBS GROUP (AUSTRALIA) PTY LTD,Other consultants
2019–20,Department of Transport,LIMINEL PTY LTD,Not specified,Professional Services,38400,"$38,400.",0,2020,LIMINEL PTY LTD,Other consultants
2019–20,Department of Transport,ARCADIS PTY LTD,Not specified,Professional Services,156172,"$36,201.",0,2020,ARCADIS,Other consultants
2019–20,Department of Transport,THE NOUS GROUP,Not specified,Professional Services,210492,"$210,492.",0,2020,NOUS GROUP PTY LTD,Other consultants
2019–20,Department of Transport,NISKIN ENTERPRISES PTY LTD,Not specified,Professional Services,35000,"$12,727.",0,2020,NISKIN ENTERPRISES PTY LTD,Other consultants
2019–20,Department of Transport,NATION PARTNERS PTY LTD,Not specified,Professional Services,44975,"$44,795.",0,2020,NATION PARTNERS PTY LTD,Other consultants
2019–20,Department of Transport,MOTT MACDONALD AUSTRALIA PTY LTD,Not specified,Professional Services,22575,"$21,755.",0,2020,MOTT MACDONALD AUSTRALIA PTY LTD,Other consultants
2019–20,Department of Transport,MOTT MACDONALD AUSTRALIA PTY LTD,Not specified,Professional Services,81755,"$81,755.",0,2020,MOTT MACDONALD AUSTRALIA PTY LTD,Other consultants
2019–20,Department of Transport,MOTT MACDONALD AUSTRALIA PTY LTD,Not specified,Professional Services,20647,"$20,647.",0,2020,MOTT MACDONALD AUSTRALIA PTY LTD,Other consultants
2019–20,Department of Transport,Monash University,Not specified,Professional Services,179000,"$76,584.",0,2020,MONASH UNIVERSITY,Other consultants
2019–20,Department of Transport,Monash University,Not specified,Professional Services,123531,"$35,000.",0,2020,MONASH UNIVERSITY,Other consultants
2019–20,Department of Transport,MONASH UNIVERSITY ACCIDENT,Not specified,Professional Services,47500,"$28,500.",0,2020,MONASH UNIVERSITY,Other consultants
2019–20,Department of Transport,ARRB GROUP LTD,Not specified,Professional Services,257437,"$102,975.",0,2020,ARRB GROUP LTD,Other consultants
2019–20,Department of Transport,ARRB GROUP LTD,Not specified,Professional Services,31650,"$31,650.",0,2020,ARRB GROUP LTD,Other consultants
2019–20,Department of Transport,ARRB GROUP LTD,Not specified,Professional Services,29200,"$8,760.",0,2020,ARRB GROUP LTD,Other consultants
2019–20,Department of Transport,ARRB GROUP LTD,Not specified,Professional Services,25000,"$25,000.",0,2020,ARRB GROUP LTD,Other consultants
2019–20,Department of Transport,MIKTYSH SOLUTIONS ATF THE SCHLOMAN B1 TRUST,Not specified,Professional Services,41927,"$34,654.",0,2020,MIKTYSH SOLUTIONS,Other consultants
2019–20,Department of Transport,Arup Australia Pty Ltd,Not specified,Professional Services,15000,"$15,000.",0,2020,ARUP AUSTRALIA PTY LTD,Other consultants
2019–20,Department of Transport,METAPM PTY LTD,Not specified,Professional Services,37800,"$37,800.",0,2020,METAPM LEARNING PTY LTD,Other consultants
2019–20,Department of Transport,Arup Australia Pty Ltd,Not specified,Professional Services,27960,"$27,960.",0,2020,ARUP AUSTRALIA PTY LTD,Other consultants
2019–20,Department of Transport,MADDOCKS,Not specified,Professional Services,13000,"$13,000.",0,2020,MADDOCKS,Other consultants
2019–20,Department of Transport,LIMINEL PTY LTD,Not specified,Professional Services,38400,"$38,400.",0,2020,LIMINEL PTY LTD,Other consultants
2019–20,Department of Transport,LIMINEL PTY LTD,Not specified,Professional Services,38400,"$38,400.",0,2020,LIMINEL PTY LTD,Other consultants
2019–20,Department of Transport,NTEGRITY AGENCY,Not specified,Professional Services,14627,"$14,627.",0,2020,NTEGRITY PTY LIMITED,Other consultants
2019–20,Department of Transport,JACOBS GROUP (AUSTRALIA) PTY LTD,Not specified,Professional Services,161790,"$143,890.",0,2020,JACOBS GROUP (AUSTRALIA) PTY LTD,Other consultants
2019–20,Department of Transport,JACOBS GROUP (AUSTRALIA) PTY LTD,Not specified,Professional Services,45360,"$45,360.",0,2020,JACOBS GROUP (AUSTRALIA) PTY LTD,Other consultants
2019–20,Department of Transport,Ernst & Young,Not specified,Professional Services,126605,"$126,605.",0,2020,ERNST & YOUNG,"KPMG, PwC, EY, Deloitte"
2019–20,Department of Transport,Ernst & Young,Not specified,Professional Services,121794,"$121,794.",0,2020,ERNST & YOUNG,"KPMG, PwC, EY, Deloitte"
2019–20,Department of Transport,Ernst & Young,Not specified,Professional Services,30448,"$30,448.",0,2020,ERNST & YOUNG,"KPMG, PwC, EY, Deloitte"
2019–20,Department of Transport,Ernst & Young,Not specified,Professional Services,25235,"$25,235.",0,2020,ERNST & YOUNG,"KPMG, PwC, EY, Deloitte"
2019–20,Department of Transport,CENTRE FOR INTERNATIONAL ECONOMICS,Not specified,Professional Services,260058,"$48,384.",0,2020,CENTRE FOR INTERNATIONAL ECONOMICS,Other consultants
2019–20,Department of Transport,CERTS INTERNATIONAL PTY LTD,Not specified,Professional Services,48508,"$28,908.",0,2020,CERTS INTERNATIONAL PTY LTD,Other consultants
2019–20,Department of Transport,CLAYTON UTZ,Not specified,Professional Services,31271,"$31,271.",0,2020,CLAYTON UTZ,Other consultants
2019–20,Department of Transport,ENEX TESTLAB,Not specified,Professional Services,20000,"$16,735.",0,2020,ENEX TESTLAB,Other consultants
2019–20,Department of Transport,ECOLOGY AND HERITAGE PARTNERS,Not specified,Professional Services,33280,"$33,280.",0,2020,ECOLOGY AND HERITAGE PARTNERS,Other consultants
2019–20,Department of Transport,COLMAR BRUNTON PTY LTD,Not specified,Professional Services,49980,"$21,310.",0,2020,COLMAR BRUNTON PTY LIMITED,Other consultants
2019–20,Department of Transport,CORRS CHAMBERS WESTGARTH,Not specified,Professional Services,116000,"$101,381.",0,2020,CORRS CHAMBERS WESTGARTH,Other consultants
2019–20,Department of Transport,Deloitte Touche Tohmatsu,Not specified,Professional Services,299406,"$14,970.",0,2020,DELOITTE,"KPMG, PwC, EY, Deloitte"
2019–20,Department of Transport,Deloitte Touche Tohmatsu,Not specified,Professional Services,174104,"$172,180.",0,2020,DELOITTE,"KPMG, PwC, EY, Deloitte"
2019–20,Department of Transport,Deloitte Touche Tohmatsu,Not specified,Professional Services,44882,"$44,882.",0,2020,DELOITTE,"KPMG, PwC, EY, Deloitte"
2019–20,Department of Transport,Deloitte Touche Tohmatsu,Not specified,Professional Services,45300,"$45,300.",0,2020,DELOITTE,"KPMG, PwC, EY, Deloitte"
2019–20,Department of Transport,Deloitte Touche Tohmatsu,Not specified,Professional Services,61936,"$51,614.",0,2020,DELOITTE,"KPMG, PwC, EY, Deloitte"
2019–20,Department of Transport,Deloitte Touche Tohmatsu,Not specified,Professional Services,102283,"$102,283.",0,2020,DELOITTE,"KPMG, PwC, EY, Deloitte"
2019–20,Department of Transport,Deloitte Touche Tohmatsu,Not specified,Professional Services,258582,"$258,582.",0,2020,DELOITTE,"KPMG, PwC, EY, Deloitte"
2019–20,Department of Transport,CSIRO,Not specified,Professional Services,85000,"$30,000.",0,2020,CSIRO,Other consultants
2019–20,Department of Transport,CUBE GROUP MANAGEMENT CONSULTING (AUSTRALIA) PTY LTD,Not specified,Professional Services,24850,"$24,850.",0,2020,CUBE GROUP MANAGEMENT CONSULTING,Other consultants
2019–20,Department of Transport,The Boston Consulting Group Pty Ltd,Not specified,Professional Services,349404,"$349,404.",0,2020,BOSTON CONSULTING GROUP,Other consultants
2019–20,Department of Transport,INSTITUTE FOR BREATHING AND SLEEP,Not specified,Professional Services,20000,"$20,000.",0,2020,INSTITUTE FOR BREATHING AND SLEEP,Other consultants
2019–20,Department of Transport,INDEC PTY LTD,Not specified,Professional Services,3181818,"$656,124.",0,2020,INDEC PTY LTD,Other consultants
2019–20,Department of Transport,HOWARD RONALDSON,Not specified,Professional Services,20000,"$20,000.",0,2020,HOWARD RONALDSON,Other consultants
2019–20,Department of Transport,HOUSTON KEMP,Not specified,Professional Services,40909,"$15,438.",0,2020,HOUSTON KEMP,Other consultants
2019–20,Department of Transport,HOLDING REDLICH LAWYERS,Not specified,Professional Services,20000,"$20,000.",0,2020,HOLDING REDLICH,Other consultants
2019–20,Department of Transport,HARWOOD ANDREWS PTY LTD,Not specified,Professional Services,15219,"$15,219.",0,2020,HARWOOD ANDREWS PTY LTD,Other consultants
2019–20,Department of Transport,HARWOOD ANDREWS PTY LTD,Not specified,Professional Services,10339,"$10,339.",0,2020,HARWOOD ANDREWS PTY LTD,Other consultants
2019–20,Department of Transport,GTA CONSULTANTS VIC PTY LTD,Not specified,Professional Services,36000,"$2,500.",0,2020,GTA CONSULTANTS,Other consultants
2019–20,Department of Transport,Grosvenor Management Consulting,Not specified,Professional Services,94077,"$94,077.",0,2020,GROSVENOR MANAGEMENT CONSULTING,Other consultants
2019–20,Department of Transport,GLOSSOP TOWN PLANNING,Not specified,Professional Services,12000,"$4,800.",0,2020,GLOSSOP TOWN PLANNING,Other consultants
2019–20,Department of Transport,GHD PTY LTD,Not specified,Professional Services,424070,"$424,070.",0,2020,GHD PTY LTD,Other consultants
2019–20,Department of Transport,GHD,Not specified,Professional Services,43820,"$43,820.",0,2020,GHD PTY LTD,Other consultants
2019–20,Department of Transport,GHD PTY LTD,Not specified,Professional Services,41204,"$11,204.",0,2020,GHD PTY LTD,Other consultants
2019–20,Department of Transport,CARAVAN TRADE AND INDUSTRIES,Not specified,Professional Services,47500,"$4,750.",0,2020,CARAVAN TRADE AND INDUSTRIES,Other consultants
2019–20,Department of Transport,CARDNO VICTORIA PTY LTD,Not specified,Professional Services,12800,"$12,800.",0,2020,CARDNO VICTORIA PTY LTD,Other consultants
2019–20,Department of Transport,FLAGSTAFF CONSULTING GROUP,Not specified,Professional Services,21540,"$19,305.",0,2020,FLAGSTAFF CONSULTING GROUP,Other consultants
2019–20,Department of Transport,EXUP PTY LTD,Not specified,Professional Services,32700,"$32,700.",0,2020,EXUP PTY LTD,Other consultants
2019–20,Department of Transport,EXTENT HERITAGE PTY LTD,Not specified,Professional Services,60927,"$49,017.",0,2020,EXTENT HERITAGE PTY LTD,Other consultants
2019–20,Department of Transport,CASANZ,Not specified,Professional Services,10000,"$10,000.",0,2020,CASANZ,Other consultants
2019–20,Department of Transport,Nucleus Consulting Group Pty Ltd,Not specified,Professional Services,49850,"$19,940.",0,2020,NUCLEUS CONSULTING GROUP PTY LTD,Other consultants
2019–20,Department of Transport,KPMG AUSTRALIA,Not specified,Professional Services,134455,"$134,455.",0,2020,KPMG,"KPMG, PwC, EY, Deloitte"
2019–20,Department of Transport,Advisian Pty Ltd,Not specified,Professional Services,28925,"$28,925.",0,2020,ADVISIAN PTY LTD,Other consultants
2019–20,Department of Transport,AECOM Australia Pty Ltd,Not specified,Professional Services,14745,"$14,745.",0,2020,AECOM AUSTRALIA PTY LTD,Other consultants
2019–20,Department of Transport,RIGHT PATH ENVIRONMENTAL PTY LTD,Not specified,Professional Services,20000,"$3,675.",0,2020,RIGHT PATH ENVIRONMENTAL PTY LTD,Other consultants
2019–20,Department of Transport,Amcosh Pty Ltd,Not specified,Professional Services,16500,"$16,500.",0,2020,AMCOSH PTY LTD,Other consultants
2019–20,Department of Transport,AECOM Australia Pty Ltd,Not specified,Professional Services,101125,"$53,693.",0,2020,AECOM AUSTRALIA PTY LTD,Other consultants
2019–20,Department of Transport,ALLUVIUM CONSULTING AUSTRALIA,Not specified,Professional Services,12483,"$12,483.",0,2020,ALLUVIUM CONSULTING AUSTRALIA,Other consultants
2019–20,Department of Transport,ACIL Allen Consulting Pty Ltd,Not specified,Professional Services,85000,"$47,500.",0,2020,ACIL ALLEN CONSULTING,Other consultants
2019–20,Department of Transport,Advisian Pty Ltd,Not specified,Professional Services,29900,"$29,900.",0,2020,ADVISIAN PTY LTD,Other consultants
2019–20,Department of Transport,RIDTEK MTA PTY LTD,Not specified,Professional Services,16000,"$8,503.",0,2020,RIDTEK MTA PTY LTD,Other consultants
2019–20,Department of Transport,Rider Levett Bucknall Vic Pty Ltd,Not specified,Professional Services,465400,"$206,438.",0,2020,RIDER LEVETT BUCKNALL,Other consultants
2019–20,Department of Transport,REGULATORY IMPACT SOLUTIONS PL,Not specified,Professional Services,46200,"$46,091.",0,2020,REGULATORY IMPACT SOLUTIONS PTY LTD,Other consultants
2019–20,Department of Transport,REGULATORY IMPACT SOLUTIONS PL,Not specified,Professional Services,46200,"$25,200.",0,2020,REGULATORY IMPACT SOLUTIONS PTY LTD,Other consultants
2019–20,Department of Transport,REDINK PLANNING,Not specified,Professional Services,17000,"$10,800.",0,2020,REDINK PLANNING,Other consultants
2019–20,Department of Transport,Advisian Pty Ltd,Not specified,Professional Services,46467,"$46,467.",0,2020,ADVISIAN PTY LTD,Other consultants
2019–20,Department of Transport,ROAD SOLUTIONS Pty Ltd,Not specified,Professional Services,25300,"$25,300.",0,2020,ROAD SOLUTIONS PTY LTD,Other consultants
2019–20,Department of Transport,Price Waterhouse Coopers,Not specified,Professional Services,36200,"$36,200.",0,2020,PRICE WATERHOUSE COOPERS,"KPMG, PwC, EY, Deloitte"
2019–20,Department of Transport,Advisian Pty Ltd,Not specified,Professional Services,89860,"$89,860.",0,2020,ADVISIAN PTY LTD,Other consultants
2019–20,Department of Transport,Advisian Pty Ltd,Not specified,Professional Services,15000,"$13,688.",0,2020,ADVISIAN PTY LTD,Other consultants
2019–20,Department of Transport,Advisian Pty Ltd,Not specified,Professional Services,70720,"$9,245.",0,2020,ADVISIAN PTY LTD,Other consultants
2019–20,Department of Transport,Advisian Pty Ltd,Not specified,Professional Services,15980,"$15,980.",0,2020,ADVISIAN PTY LTD,Other consultants
2019–20,Department of Transport,Price Waterhouse Coopers,Not specified,Professional Services,85121,"$85,121.",0,2020,PRICE WATERHOUSE COOPERS,"KPMG, PwC, EY, Deloitte"
2019–20,Department of Transport,AECOM Australia Pty Ltd,Not specified,Professional Services,639837,"$601,360.",0,2020,AECOM AUSTRALIA PTY LTD,Other consultants
2019–20,Department of Transport,ADVANTIA TRANSPORT CONSULTING,Not specified,Professional Services,41200,"$3,500.",0,2020,ADVANTIA TRANSPORT CONSULTING,Other consultants
2019–20,Department of Transport,AECOM Australia Pty Ltd,Not specified,Professional Services,134705,"$134,705.",0,2020,AECOM AUSTRALIA PTY LTD,Other consultants
2019–20,Department of Transport,Price Waterhouse Coopers,Not specified,Professional Services,90780,"$90,780.",0,2020,PRICE WATERHOUSE COOPERS,"KPMG, PwC, EY, Deloitte"
2019–20,Department of Transport,ANSARADA PTY LIMITED,Not specified,Professional Services,11250,"$11,250.",0,2020,ANSARADA PTY LIMITED,Other consultants
2019–20,Department of Transport,Advisian Pty Ltd,Not specified,Professional Services,28018,"$28,018.",0,2020,ADVISIAN PTY LTD,Other consultants
2018–19,Department of Transport,GROSVENOR MANAGEMENT CONSULTING PTY LTD,Not specified,Professional Services,46037,"$46,037.",0,2019,GROSVENOR MANAGEMENT CONSULTING,Other consultants
2018–19,Department of Transport,"GROSVENOR MANAGEMENT CONSULTING PTY LTD",Not specified,Professional Services,19090,"$19,090.",0,2019,GROSVENOR MANAGEMENT CONSULTING,Other consultants
2018–19,Department of Transport,GROSVENOR MANAGEMENT CONSULTING PTY LTD,Not specified,Professional Services,104744,"$104,744.",0,2019,GROSVENOR MANAGEMENT CONSULTING,Other consultants
2018–19,Department of Transport,"GIPPSLAND TECH CONSULTING PTY LTD",Not specified,Professional Services,100000,"$50,000.",0,2019,GIPPSLAND TECH CONSULTING PTY. LTD.,Other consultants
2018–19,Department of Transport,GHD PTY LTD,Not specified,Professional Services,68950,"$34,950.",0,2019,GHD PTY LTD,Other consultants
2018–19,Department of Transport,ACIL ALLEN CONSULTING,Not specified,Professional Services,59914,"$59,914.",0,2019,ACIL ALLEN CONSULTING,Other consultants
2018–19,Department of Transport,SAXTON SPEAKERS BUREAU PTY,Not specified,Professional Services,10279,"$10,279.",0,2019,SAXTON SPEAKERS BUREAU PTY LTD,Other consultants
2018–19,Department of Transport,JACOBS GROUP (AUSTRALIA) PTY LTD,Not specified,Professional Services,135321,"$29,870.",0,2019,JACOBS GROUP (AUSTRALIA) PTY LTD,Other consultants
2018–19,Department of Transport,THE CHURCHILL CONSULTANCY,Not specified,Professional Services,11400,"$11,400.",0,2019,THE CHURCHILL CONSULTANCY,Other consultants
2018–19,Department of Transport,BOX HILL INSTITUTE OF TAFE,Not specified,Professional Services,30850,"$30,850.",0,2019,BOX HILL INSTITUTE OF TAFE,Other consultants
2018–19,Department of Transport,INFOCENTRIC PTY LTD,Not specified,Professional Services,10000,"$10,000.",0,2019,INFOCENTRIC PTY LTD,Other consultants
2018–19,Department of Transport,"NUFFIELD CONSULTANTS PTY LTD",Not specified,Professional Services,57645,"$5,775.",0,2019,NUFFIELD CONSULTANTS PTY LTD,Other consultants
2018–19,Department of Transport,GTA CONSULTANTS,Not specified,Professional Services,22329,"$22,329.",0,2019,GTA CONSULTANTS,Other consultants
2018–19,Department of Transport,IER PTY LTD,Not specified,Professional Services,21294,"$8,436.",0,2019,IER PTY LTD,Other consultants
2018–19,Department of Transport,IER PTY LTD,Not specified,Professional Services,26040,"$10,909.",0,2019,IER PTY LTD,Other consultants
2018–19,Department of Transport,IER PTY LTD,Not specified,Professional Services,12083,"$12,083.",0,2019,IER PTY LTD,Other consultants
2018–19,Department of Transport,IER PTY LTD,Not specified,Professional Services,12612,"$12,612.",0,2019,IER PTY LTD,Other consultants
2018–19,Department of Transport,IER PTY LTD,Not specified,Professional Services,24560,"$8,182.",0,2019,IER PTY LTD,Other consultants
2018–19,Department of Transport,IER PTY LTD,Not specified,Professional Services,14347,"$1,284.",0,2019,IER PTY LTD,Other consultants
2018–19,Department of Transport,"IC INDEPENDENT CONSULTING PTY LTD",Not specified,Professional Services,22727,"$12,366.",0,2019,IC INDEPENDENT CONSULTING PTY. LTD.,Other consultants
2018–19,Department of Transport,WUNAN FOUNDATION INC T/A SOCIAL COMPASS,Not specified,Professional Services,47309,"$47,309.",0,2019,WUNAN FOUNDATION INC (TRADING AS SOCIAL COMPASS),Other consultants
2018–19,Department of Transport,HILLSIDE ADVISORY SERVICES PTY LTD,Not specified,Professional Services,20320,"$20,320.",0,2019,HILLSIDE ADVISORY SERVICES PTY LTD,Other consultants
2018–19,Department of Transport,IER PTY LTD,Not specified,Professional Services,13216,"$11,335.",0,2019,IER PTY LTD,Other consultants
2018–19,Department of Transport,ACIL ALLEN CONSULTING,Not specified,Professional Services,160523,"$160,515.",0,2019,ACIL ALLEN CONSULTING,Other consultants
2018–19,Department of Transport,Deloitte Access Economics Pty Ltd,Not specified,Professional Services,81411,"$16,355.",0,2019,DELOITTE,"KPMG, PwC, EY, Deloitte"
2018–19,Department of Transport,UNIVERSITY OF CANBERRA,Not specified,Professional Services,90000,"$85,118.",0,2019,UNIVERSITY OF CANBERRA,Other consultants
2018–19,Department of Transport,CORRS CHAMBERS WESTGARTH,Not specified,Professional Services,15000,"$15,000.",0,2019,CORRS CHAMBERS WESTGARTH,Other consultants
2018–19,Department of Transport,"SAPERE RESEARCH GROUP LIMITED",Not specified,Professional Services,87845,"$65,118.",0,2019,SAPERE RESEARCH GROUP LIMITED,Other consultants
2018–19,Department of Transport,"CPSU SPSF GROUP VICTORIAN BRANCH",Not specified,Professional Services,50000,"$50,000.",0,2019,CPSU SPSF GROUP VICTORIAN BRANCH,Other consultants
2018–19,Department of Transport,CT ALLIANCE PTY LTD,Not specified,Professional Services,11880,"$5,670.",0,2019,CT ALLIANCE PTY LTD,Other consultants
2018–19,Department of Transport,RPS MANIDIS ROBERTS PTY LTD,Not specified,Professional Services,22360,"$22,360.",0,2019,RPS MANIDIS ROBERTS PTY LTD,Other consultants
2018–19,Department of Transport,Deloitte Touche Tohmatsu,Not specified,Professional Services,22727,"$22,727.",0,2019,DELOITTE,"KPMG, PwC, EY, Deloitte"
2018–19,Department of Transport,Deloitte Touche Tohmatsu,Not specified,Professional Services,70650,"$70,650.",0,2019,DELOITTE,"KPMG, PwC, EY, Deloitte"
2018–19,Department of Transport,Trustee For Hoffman Investment,Not specified,Professional Services,1725000,"$217,737.",0,2019,TRUSTEE FOR HOFFMAN INVESTMENT,Other consultants
2018–19,Department of Transport,Deloitte Touche Tohmatsu,Not specified,Professional Services,131557,"$131,557.",0,2019,DELOITTE,"KPMG, PwC, EY, Deloitte"
2018–19,Department of Transport,RXP SERVICES LIMITED,Not specified,Professional Services,24225,"$24,225.",0,2019,RXP SERVICES LIMITED,Other consultants
2018–19,Department of Transport,Deloitte Touche Tohmatsu,Not specified,Professional Services,2721970,"$2,721,970.",0,2019,DELOITTE,"KPMG, PwC, EY, Deloitte"
2018–19,Department of Transport,CSIRO,Not specified,Professional Services,220617,"$11,112.",0,2019,CSIRO,Other consultants
2018–19,Department of Transport,COFFEY SERVICES AUSTRALIA PTY LTD,Not specified,Professional Services,86364,"$86,364.",0,2019,COFFEY SERVICES AUSTRALIA PTY LTD,Other consultants
2018–19,Department of Transport,"COFFEY SERVICES AUSTRALIA PTY LTD",Not specified,Professional Services,22674,"$5,038.",0,2019,COFFEY SERVICES AUSTRALIA PTY LTD,Other consultants
2018–19,Department of Transport,THE UNIVERSITY OF ADELAIDE,Not specified,Professional Services,200629,"$132,829.",0,2019,THE UNIVERSITY OF ADELAIDE,Other consultants
2018–19,Department of Transport,"THE WORKSMELBOURNE AGENCY PTY LTD",Not specified,Professional Services,44680,"$44,680.",0,2019,THE WORKSMELBOURNE AGENCY PTY LTD,Other consultants
2018–19,Department of Transport,Eyres and Associates,Not specified,Professional Services,18000,"$18,000.",0,2019,EYRES AND ASSOCIATES,Other consultants
2018–19,Department of Transport,PRODUCTIVE MANAGEMENT SOLUTIONS,Not specified,Professional Services,14555,"$14,555.",0,2019,PRODUCTIVE MANAGEMENT SOLUTIONS,Other consultants
2018–19,Department of Transport,"PRODUCTIVE MANAGEMENT SOLUTIONS",Not specified,Professional Services,10000,"$4,220.",0,2019,PRODUCTIVE MANAGEMENT SOLUTIONS,Other consultants
2018–19,Department of Transport,CARFI,Not specified,Professional Services,94534,"$31,217.",0,2019,CARFI,Other consultants
2018–19,Department of Transport,Quantum Market Research Pty Ltd,Not specified,Professional Services,24515,"$24,515.",0,2019,QUANTUM MARKET RESEARCH,Other consultants
2018–19,Department of Transport,Ernst & Young,Not specified,Professional Services,20000,"$20,000.",0,2019,ERNST & YOUNG,"KPMG, PwC, EY, Deloitte"
2018–19,Department of Transport,EARL BRAND SPACE,Not specified,Professional Services,188788,"$188,788.",0,2019,EARL BRAND SPACE,Other consultants
2018–19,Department of Transport,"CLEAR HORIZON CONSULTING PTY LTD",Not specified,Professional Services,61046,"$48,837.",0,2019,CLEAR HORIZON CONSULTING PTY LTD,Other consultants
2018–19,Department of Transport,"CHRISTOPHER JORDAN ARCHITECTURE & DESIGN",Not specified,Professional Services,58182,"$58,182.",0,2019,CHRISTOPHER JORDAN ARCHITECTURE & DESIGN,Other consultants
2018–19,Department of Transport,"RED RIVER STRATEGIC COMMUNICATION",Not specified,Professional Services,10273,"$9,200.",0,2019,RED RIVER STRATEGIC COMMUNICATION,Other consultants
2018–19,Department of Transport,RANFURLIE CONSULTING GROUP PTY LTD,Not specified,Professional Services,22420,"$22,420.",0,2019,RANFURLIE CONSULTING GROUP PTY LTD,Other consultants
2018–19,Department of Transport,"QUEENSLAND UNIVERSITY OF TECHNOLOGY",Not specified,Professional Services,30000,"$10,000.",0,2019,QUEENSLAND UNIVERSITY OF TECHNOLOGY,Other consultants
2018–19,Department of Transport,SOCIAL SOLUTIONS GLOBAL INC,Not specified,Professional Services,52510,"$52,510.",0,2019,SOCIAL SOLUTIONS GLOBAL INC,Other consultants
2018–19,Department of Transport,ARTISAN RECRUITMENT PTY LTD,Not specified,Professional Services,19000,"$3,040.",0,2019,ARTISAN RECRUITMENT PTY LTD,Other consultants
2018–19,Department of Transport,Milicante Consulting,Not specified,Professional Services,13668,"$9,532.",0,2019,MILICANTE CONSULTING,Other consultants
2018–19,Department of Transport,Milicante Consulting,Not specified,Professional Services,12115,$961.,0,2019,MILICANTE CONSULTING,Other consultants
2018–19,Department of Transport,Milicante Consulting,Not specified,Professional Services,18460,"$7,573.",0,2019,MILICANTE CONSULTING,Other consultants
2018–19,Department of Transport,SUMMIT CONSULTING SOLUTIONS,Not specified,Professional Services,29563,"$29,563.",0,2019,SUMMIT CONSULTING SOLUTIONS,Other consultants
2018–19,Department of Transport,PORTLAND GROUP PTY LTD,Not specified,Professional Services,111405,"$107,358.",0,2019,PORTLAND GROUP PTY LTD,Other consultants
2018–19,Department of Transport,SUMMIT CONSULTING SOLUTIONS,Not specified,Professional Services,22700,"$22,700.",0,2019,SUMMIT CONSULTING SOLUTIONS,Other consultants
2018–19,Department of Transport,SUMMIT CONSULTING SOLUTIONS,Not specified,Professional Services,22650,"$22,650.",0,2019,SUMMIT CONSULTING SOLUTIONS,Other consultants
2018–19,Department of Transport,PRICEWATERHOUSECOOPERS,Not specified,Professional Services,434968,"$425,877.",0,2019,PRICE WATERHOUSE COOPERS,"KPMG, PwC, EY, Deloitte"
2018–19,Department of Transport,ARUP PTY LTD,Not specified,Professional Services,17200,"$10,225.",0,2019,ARUP AUSTRALIA PTY LTD,Other consultants
2018–19,Department of Transport,ALLENS,Not specified,Professional Services,20000,"$2,500.",0,2019,ALLENS,Other consultants
2018–19,Department of Transport,Arcblue,Not specified,Professional Services,31450,"$31,450.",0,2019,ARCBLUE,Other consultants
2018–19,Department of Transport,SPATIAL VISION PTY LTD,Not specified,Professional Services,223631,"$39,050.",0,2019,SPATIAL VISION PTY LTD,Other consultants
2018–19,Department of Transport,Arcblue,Not specified,Professional Services,20160,"$20,160.",0,2019,ARCBLUE,Other consultants
2018–19,Department of Transport,MCKINNA ET AL,Not specified,Professional Services,24750,"$11,250.",0,2019,MCKINNA ET AL,Other consultants
2018–19,Department of Transport,MOTT MACDONALD AUSTRALIA PTY LTD,Not specified,Professional Services,180702,"$180,702.",0,2019,MOTT MACDONALD AUSTRALIA PTY LTD,Other consultants
2018–19,Department of Transport,PRICEWATERHOUSECOOPERS,Not specified,Professional Services,203847,"$203,847.",0,2019,PRICE WATERHOUSE COOPERS,"KPMG, PwC, EY, Deloitte"
2018–19,Department of Transport,"ANDREW BLEBY AND ASSOCIATES PTY LTD",Not specified,Professional Services,23700,"$23,700.",0,2019,ANDREW BLEBY AND ASSOCIATES PTY LTD,Other consultants
2018–19,Department of Transport,"SGS ECONOMICS AND PLANNING PTY LTD",Not specified,Professional Services,138287,"$138,287.",0,2019,SGS ECONOMICS & PLANNING PTY LTD,Other consultants
2018–19,Department of Transport,Arcblue,Not specified,Professional Services,25000,"$25,000.",0,2019,ARCBLUE,Other consultants
2018–19,Department of Transport,PERFORMANCE WISE CONSULTING PTY LTD,Not specified,Professional Services,21050,"$21,050.",0,2019,PERFORMANCE WISE CONSULTING PTY LTD,Other consultants
2018–19,Department of Transport,TANDI WILLIAMS T/A PATTERNAMKERS,Not specified,Professional Services,89553,"$27,681.",0,2019,TANDI WILLIAMS T/A PATTERNMAKERS,Other consultants
2018–19,Department of Transport,PRICEWATERHOUSECOOPERS,Not specified,Professional Services,11364,"$11,364.",0,2019,PRICE WATERHOUSE COOPERS,"KPMG, PwC, EY, Deloitte"
2018–19,Department of Transport,PEGASUS ECONOMICS,Not specified,Professional Services,22718,"$16,450.",0,2019,PEGASUS ECONOMICS,Other consultants
2018–19,Department of Transport,WATER TECHNOLOGY PTY LTD,Not specified,Professional Services,56950,"$17,203.",0,2019,WATER TECHNOLOGY PTY LTD,Other consultants
2018–19,Department of Transport,TERRA FIRMA PTY LTD,Not specified,Professional Services,17700,"$17,700.",0,2019,TERRA FIRMA PTY LTD,Other consultants
2018–19,Department of Transport,NTEGRITY PTY LIMITED,Not specified,Professional Services,10040,"$10,040.",0,2019,NTEGRITY PTY LIMITED,Other consultants
2018–19,Department of Transport,PRICEWATERHOUSECOOPERS,Not specified,Professional Services,90809,"$35,751.",0,2019,PRICE WATERHOUSE COOPERS,"KPMG, PwC, EY, Deloitte"
2018–19,Department of Transport,ASG GROUP LIMITED,Not specified,Professional Services,156288,"$120,794.",0,2019,ASG GROUP LIMITED,Other consultants
2018–19,Department of Transport,KPMG,Not specified,Professional Services,10818,"$10,818.",0,2019,KPMG,"KPMG, PwC, EY, Deloitte"
2018–19,Department of Transport,VICTORIA UNIVERSITY,Not specified,Professional Services,12000,"$12,000.",0,2019,VICTORIA UNIVERSITY,Other consultants
2018–19,Department of Transport,Milicante Consulting,Not specified,Professional Services,20372,"$11,545.",0,2019,MILICANTE CONSULTING,Other consultants
2018–19,Department of Transport,VICTORIA UNIVERSITY,Not specified,Professional Services,82873,"$24,908.",0,2019,VICTORIA UNIVERSITY,Other consultants
2018–19,Department of Transport,KPMG,Not specified,Professional Services,314070,"$314,070.",0,2019,KPMG,"KPMG, PwC, EY, Deloitte"
2018–19,Department of Transport,Nous Group Pty Ltd,Not specified,Professional Services,111000,"$20,200.",0,2019,NOUS GROUP PTY LTD,Other consultants
2018–19,Department of Transport,Nous Group Pty Ltd,Not specified,Professional Services,111000,"$25,250.",0,2019,NOUS GROUP PTY LTD,Other consultants
2018–19,Department of Transport,Nous Group Pty Ltd,Not specified,Professional Services,111000,"$50,500.",0,2019,NOUS GROUP PTY LTD,Other consultants
2018–19,Department of Transport,Milicante Consulting,Not specified,Professional Services,11784,"$10,455.",0,2019,MILICANTE CONSULTING,Other consultants
2018–19,Department of Transport,Nous Group Pty Ltd,Not specified,Professional Services,182600,"$182,600.",0,2019,NOUS GROUP PTY LTD,Other consultants
2017–18,"Department of Economic Development, Jobs, Transport and Resources",WORKMATTERS,Not specified,Professional Services,11164,"$11,164.",0,2018,WORKMATTERS,Other consultants
2017–18,"Department of Economic Development, Jobs, Transport and Resources",ACIL Allen Consulting Pty Ltd,Not specified,Professional Services,11818,"$11,818.",0,2018,ACIL ALLEN CONSULTING,Other consultants
2017–18,"Department of Economic Development, Jobs, Transport and Resources",Dandolo Partners,Not specified,Professional Services,136364,"$136,364.",0,2018,DANDOLO PARTNERS,Other consultants
2017–18,"Department of Economic Development, Jobs, Transport and Resources",AQUENTA CONSULTING PTY LTD,Not specified,Professional Services,35423,"$35,423.",0,2018,AQUENTA CONSULTING PTY LTD,Other consultants
2017–18,"Department of Economic Development, Jobs, Transport and Resources",WPC GROUP LTD,Not specified,Professional Services,18182,"$18,182.",0,2018,WPC GROUP LTD,Other consultants
2017–18,"Department of Economic Development, Jobs, Transport and Resources",PAPER GIANT PTY LTD,Not specified,Professional Services,49313,"$49,313.",0,2018,PAPER GIANT PTY LTD,Other consultants
2017–18,"Department of Economic Development, Jobs, Transport and Resources","VICTORIAN CHAMBER OF COMMERCE AND INDUSTRY",Not specified,Professional Services,35000,"$25,000.",0,2018,VICTORIAN CHAMBER OF COMMERCE & INDUSTRY,Other consultants
2017–18,"Department of Economic Development, Jobs, Transport and Resources",Dandolo Partners,Not specified,Professional Services,53300,"$53,300.",0,2018,DANDOLO PARTNERS,Other consultants
2017–18,"Department of Economic Development, Jobs, Transport and Resources",PAPER GIANT PTY LTD,Not specified,Professional Services,120567,"$120,567.",0,2018,PAPER GIANT PTY LTD,Other consultants
2017–18,"Department of Economic Development, Jobs, Transport and Resources",ACIL Allen Consulting Pty Ltd,Not specified,Professional Services,50000,"$4,504.",0,2018,ACIL ALLEN CONSULTING,Other consultants
2017–18,"Department of Economic Development, Jobs, Transport and Resources",Dandolo Partners,Not specified,Professional Services,164780,"$164,780.",0,2018,DANDOLO PARTNERS,Other consultants
2017–18,"Department of Economic Development, Jobs, Transport and Resources",AQUENTA CONSULTING PTY LTD,Not specified,Professional Services,21500,"$21,500.",0,2018,AQUENTA CONSULTING PTY LTD,Other consultants
2017–18,"Department of Economic Development, Jobs, Transport and Resources",MISTRY RYAN DINYAR,Not specified,Professional Services,17550,"$6,435.",0,2018,MISTRY RYAN DINYAR,Other consultants
2017–18,"Department of Economic Development, Jobs, Transport and Resources",Ernst & Young,Not specified,Professional Services,154545,"$159,414.",0,2018,ERNST & YOUNG,"KPMG, PwC, EY, Deloitte"
2017–18,"Department of Economic Development, Jobs, Transport and Resources",Ernst & Young,Not specified,Professional Services,19011,"$19,011.",0,2018,ERNST & YOUNG,"KPMG, PwC, EY, Deloitte"
2017–18,"Department of Economic Development, Jobs, Transport and Resources",VICTORIAN TRADES HALL COUNCIL,Not specified,Professional Services,180000,"$6,364.",0,2018,VICTORIAN TRADES HALL COUNCIL,Other consultants
2017–18,"Department of Economic Development, Jobs, Transport and Resources",Ernst & Young,Not specified,Professional Services,22200,"$22,200.",0,2018,ERNST & YOUNG,"KPMG, PwC, EY, Deloitte"
2017–18,"Department of Economic Development, Jobs, Transport and Resources",Ernst & Young,Not specified,Professional Services,31418,"$31,228.",0,2018,ERNST & YOUNG,"KPMG, PwC, EY, Deloitte"
2017–18,"Department of Economic Development, Jobs, Transport and Resources",JIM JOY & ASSOCIATES PTY LTD,Not specified,Professional Services,30000,"$5,750.",0,2018,JIM JOY & ASSOCIATES PTY LTD,Other consultants
2017–18,"Department of Economic Development, Jobs, Transport and Resources",Ernst & Young,Not specified,Professional Services,36832,"$33,484.",0,2018,ERNST & YOUNG,"KPMG, PwC, EY, Deloitte"
2017–18,"Department of Economic Development, Jobs, Transport and Resources","GROSVENOR MANAGEMENT CONSULTING PTY LTD",Not specified,Professional Services,70176,"$70,176.",0,2018,GROSVENOR MANAGEMENT CONSULTING,Other consultants
2017–18,"Department of Economic Development, Jobs, Transport and Resources",Ernst & Young,Not specified,Professional Services,78182,"$67,587.",0,2018,ERNST & YOUNG,"KPMG, PwC, EY, Deloitte"
2017–18,"Department of Economic Development, Jobs, Transport and Resources",Deakin University,Not specified,Professional Services,41164,"$41,163.",0,2018,DEAKIN UNIVERSITY,Other consultants
2017–18,"Department of Economic Development, Jobs, Transport and Resources",Ernst & Young,Not specified,Professional Services,81425,"$81,425.",0,2018,ERNST & YOUNG,"KPMG, PwC, EY, Deloitte"
2017–18,"Department of Economic Development, Jobs, Transport and Resources",JIM JOY & ASSOCIATES PTY LTD,Not specified,Professional Services,20000,"$5,250.",0,2018,JIM JOY & ASSOCIATES PTY LTD,Other consultants
2017–18,"Department of Economic Development, Jobs, Transport and Resources",PEGASUS STRATEGIC,Not specified,Professional Services,11885,"$11,885.",0,2018,PEGASUS ECONOMICS,Other consultants
2017–18,"Department of Economic Development, Jobs, Transport and Resources",Ernst & Young,Not specified,Professional Services,180909,"$181,658.",0,2018,ERNST & YOUNG,"KPMG, PwC, EY, Deloitte"
2017–18,"Department of Economic Development, Jobs, Transport and Resources",DELOITTE FINANCIAL ADVISORY PTY LIMITED,Not specified,Professional Services,111665,"$111,665.",0,2018,DELOITTE,"KPMG, PwC, EY, Deloitte"
2017–18,"Department of Economic Development, Jobs, Transport and Resources",ACIL Allen Consulting Pty Ltd,Not specified,Professional Services,89333,"$89,333.",0,2018,ACIL ALLEN CONSULTING,Other consultants
2017–18,"Department of Economic Development, Jobs, Transport and Resources",OPPOSITE,Not specified,Professional Services,44710,"$44,710.",0,2018,OPPOSITE,Other consultants
2017–18,"Department of Economic Development, Jobs, Transport and Resources",YALUKIT MARNANG PTY LTD,Not specified,Professional Services,20000,"$20,000.",0,2018,YALUKIT MARNANG PTY LTD,Other consultants
2017–18,"Department of Economic Development, Jobs, Transport and Resources",CSIRO,Not specified,Professional Services,85000,"$85,000.",0,2018,CSIRO,Other consultants
2017–18,"Department of Economic Development, Jobs, Transport and Resources",SCA MANAGEMENT CONSULTANTS PTY LTD,Not specified,Professional Services,22363,"$22,363.",0,2018,SCA MANAGEMENT CONSULTANTS PTY LTD,Other consultants
2017–18,"Department of Economic Development, Jobs, Transport and Resources",Aither Pty Ltd,Not specified,Professional Services,90100,"$90,100.",0,2018,AITHER PTY LTD,Other consultants
2017–18,"Department of Economic Development, Jobs, Transport and Resources",PROFESSOR TED ALTER,Not specified,Professional Services,20735,"$22,756.",0,2018,PROFESSOR TED ALTER,Other consultants
2017–18,"Department of Economic Development, Jobs, Transport and Resources",PROFESSOR TED ALTER,Not specified,Professional Services,18182,"$13,682.",0,2018,PROFESSOR TED ALTER,Other consultants
2017–18,"Department of Economic Development, Jobs, Transport and Resources",UNIVERSITY OF CANBERRA,Not specified,Professional Services,85118,"$85,118.",0,2018,UNIVERSITY OF CANBERRA,Other consultants
2017–18,"Department of Economic Development, Jobs, Transport and Resources",AECOM Australia Pty Ltd,Not specified,Professional Services,46294,"$46,294.",0,2018,AECOM AUSTRALIA PTY LTD,Other consultants
2017–18,"Department of Economic Development, Jobs, Transport and Resources",Nous Group Pty Ltd,Not specified,Professional Services,113200,"$113,200.",0,2018,NOUS GROUP PTY LTD,Other consultants
2017–18,"Department of Economic Development, Jobs, Transport and Resources",CONTROL RISKS GROUP PTY LTD,Not specified,Professional Services,299955,"$29,996.",0,2018,CONTROL RISKS GROUP PTY LTD,Other consultants
2017–18,"Department of Economic Development, Jobs, Transport and Resources",THE TRUSTEE FOR THE FRESHLOGIC TRUST,Not specified,Professional Services,35909,"$35,909.",0,2018,THE TRUSTEE FOR THE JIRRA LULLA TRUST,Other consultants
2017–18,"Department of Economic Development, Jobs, Transport and Resources",ACIL Allen Consulting Pty Ltd,Not specified,Professional Services,68218,"$68,218.",0,2018,ACIL ALLEN CONSULTING,Other consultants
2017–18,"Department of Economic Development, Jobs, Transport and Resources",Swinburne University of Technology,Not specified,Professional Services,98091,"$98,091.",0,2018,SWINBURNE UNIVERSITY OF TECHNOLOGY,Other consultants
2017–18,"Department of Economic Development, Jobs, Transport and Resources",APPLIED ECONOMICS PTY LTD,Not specified,Professional Services,45227,"$44,649.",0,2018,APPLIED ECONOMICS PTY LTD,Other consultants
2017–18,"Department of Economic Development, Jobs, Transport and Resources",Swinburne University of Technology,Not specified,Professional Services,227248,"$227,125.",0,2018,SWINBURNE UNIVERSITY OF TECHNOLOGY,Other consultants
2017–18,"Department of Economic Development, Jobs, Transport and Resources",ACIL Allen Consulting Pty Ltd,Not specified,Professional Services,95839,"$95,839.",0,2018,ACIL ALLEN CONSULTING,Other consultants
2017–18,"Department of Economic Development, Jobs, Transport and Resources",GHD PTY LTD,Not specified,Professional Services,18150,"$18,150.",0,2018,GHD PTY LTD,Other consultants
2017–18,"Department of Economic Development, Jobs, Transport and Resources",ACIL Allen Consulting Pty Ltd,Not specified,Professional Services,132355,"$132,355.",0,2018,ACIL ALLEN CONSULTING,Other consultants
2017–18,"Department of Economic Development, Jobs, Transport and Resources",NERA ECONOMIC CONSULTING,Not specified,Professional Services,15000,"$9,090.",0,2018,NERA ECONOMIC CONSULTING,Other consultants
2017–18,"Department of Economic Development, Jobs, Transport and Resources",GHD PTY LTD,Not specified,Professional Services,50362,"$30,030.",0,2018,GHD PTY LTD,Other consultants
2017–18,"Department of Economic Development, Jobs, Transport and Resources",GHD PTY LTD,Not specified,Professional Services,65950,"$65,950.",0,2018,GHD PTY LTD,Other consultants
2017–18,"Department of Economic Development, Jobs, Transport and Resources",GHD PTY LTD,Not specified,Professional Services,218182,"$194,802.",0,2018,GHD PTY LTD,Other consultants
2017–18,"Department of Economic Development, Jobs, Transport and Resources",GHD PTY LTD,Not specified,Professional Services,267332,"$266,000.",0,2018,GHD PTY LTD,Other consultants
2017–18,"Department of Economic Development, Jobs, Transport and Resources",RM CONSULTING GROUP PTY LTD,Not specified,Professional Services,24720,"$24,720.",0,2018,RM CONSULTING GROUP PTY LTD,Other consultants
2017–18,"Department of Economic Development, Jobs, Transport and Resources","OPUS INTERNATIONAL CONSULTANTS (AUSTRALIA)",Not specified,Professional Services,134133,"$134,133.",0,2018,OPUS INTERNATIONAL CONSULTANTS (AUSTRALIA),Other consultants
2017–18,"Department of Economic Development, Jobs, Transport and Resources",JAGUAR CONSULTING PTY LTD,Not specified,Professional Services,62300,"$50,650.",0,2018,JAGUAR CONSULTING PTY LTD,Other consultants
2017–18,"Department of Economic Development, Jobs, Transport and Resources",JAGUAR CONSULTING PTY LTD,Not specified,Professional Services,37050,"$37,050.",0,2018,JAGUAR CONSULTING PTY LTD,Other consultants
2017–18,"Department of Economic Development, Jobs, Transport and Resources",LEK CONSULTING AUSTRALIA PTY LTD,Not specified,Professional Services,31218,"$24,240.",0,2018,LEK CONSULTING AUSTRALIA PTY LTD,Other consultants
2017–18,"Department of Economic Development, Jobs, Transport and Resources",STRATEGIC CONNECTIONS GROUP PTY LTD,Not specified,Professional Services,144760,"$131,600.",0,2018,STRATEGIC CONNECTIONS GROUP PTY LTD,Other consultants
2017–18,"Department of Economic Development, Jobs, Transport and Resources",LEK CONSULTING PTY LTD,Not specified,Professional Services,320000,"$41,574.",0,2018,LEK CONSULTING AUSTRALIA PTY LTD,Other consultants
2017–18,"Department of Economic Development, Jobs, Transport and Resources",RXP SERVICES LIMITED,Not specified,Professional Services,16000,"$14,300.",0,2018,RXP SERVICES LIMITED,Other consultants
2017–18,"Department of Economic Development, Jobs, Transport and Resources",HILLSIDE ADVISORY SERVICES PTY LYD,Not specified,Professional Services,71120,"$71,120.",0,2018,HILLSIDE ADVISORY SERVICES PTY LTD,Other consultants
2017–18,"Department of Economic Development, Jobs, Transport and Resources",PRICEWATERHOUSE COOPERS,Not specified,Professional Services,171627,"$171,627.",0,2018,PRICE WATERHOUSE COOPERS,"KPMG, PwC, EY, Deloitte"
2017–18,"Department of Economic Development, Jobs, Transport and Resources",PRICEWATERHOUSE COOPERS,Not specified,Professional Services,125166,"$125,166.",0,2018,PRICE WATERHOUSE COOPERS,"KPMG, PwC, EY, Deloitte"
2017–18,"Department of Economic Development, Jobs, Transport and Resources",PRICEWATERHOUSE COOPERS,Not specified,Professional Services,181000,"$16,760.",0,2018,PRICE WATERHOUSE COOPERS,"KPMG, PwC, EY, Deloitte"
2017–18,"Department of Economic Development, Jobs, Transport and Resources",IPSOS PUBLIC AFFAIRS PTY LTD,Not specified,Professional Services,19998,"$19,998.",0,2018,IPSOS PUBLIC AFFAIRS PTY LTD,Other consultants
2017–18,"Department of Economic Development, Jobs, Transport and Resources",PRICEWATERHOUSE COOPERS,Not specified,Professional Services,10158,"$9,235.",0,2018,PRICE WATERHOUSE COOPERS,"KPMG, PwC, EY, Deloitte"
2017–18,"Department of Economic Development, Jobs, Transport and Resources",PRICEWATERHOUSE COOPERS,Not specified,Professional Services,172425,"$172,425.",0,2018,PRICE WATERHOUSE COOPERS,"KPMG, PwC, EY, Deloitte"
2017–18,"Department of Economic Development, Jobs, Transport and Resources","VECCI–VICTORIAN EMPLOYERS CHAMBER OF COMMERCE & INDUSTRY GRANTS",Not specified,Professional Services,35000,"$25,000.",0,2018,VECCI–VICTORIAN EMPLOYERS CHAMBER OF COMMERCE & INDUSTRY GRANTS,Other consultants
2017–18,"Department of Economic Development, Jobs, Transport and Resources",KPMG,Not specified,Professional Services,35760,"$17,880.",0,2018,KPMG,"KPMG, PwC, EY, Deloitte"
2017–18,"Department of Economic Development, Jobs, Transport and Resources",PRICEWATERHOUSE COOPERS,Not specified,Professional Services,172425,"$172,425.",0,2018,PRICE WATERHOUSE COOPERS,"KPMG, PwC, EY, Deloitte"
2017–18,"Department of Economic Development, Jobs, Transport and Resources",Deloitte Access Economics Pty Ltd,Not specified,Professional Services,165575,"$28,750.",0,2018,DELOITTE,"KPMG, PwC, EY, Deloitte"
2017–18,"Department of Economic Development, Jobs, Transport and Resources",MGS ARCHITECTS PTY LTD,Not specified,Professional Services,22700,"$22,700.",0,2018,MGS ARCHITECTS PTY LTD,Other consultants
2017–18,"Department of Economic Development, Jobs, Transport and Resources",KPMG,Not specified,Professional Services,39908,"$20,000.",0,2018,KPMG,"KPMG, PwC, EY, Deloitte"
2017–18,"Department of Economic Development, Jobs, Transport and Resources",KPMG,Not specified,Professional Services,22380,"$22,380.",0,2018,KPMG,"KPMG, PwC, EY, Deloitte"
2017–18,"Department of Economic Development, Jobs, Transport and Resources",KPMG,Not specified,Professional Services,25856,"$25,856.",0,2018,KPMG,"KPMG, PwC, EY, Deloitte"
2017–18,"Department of Economic Development, Jobs, Transport and Resources",AMC CONSULTANTS PTY LTD,Not specified,Professional Services,18480,"$18,480.",0,2018,AMC CONSULTANTS PTY LTD,Other consultants
2017–18,"Department of Economic Development, Jobs, Transport and Resources",KPMG,Not specified,Professional Services,98200,"$98,200.",0,2018,KPMG,"KPMG, PwC, EY, Deloitte"
2017–18,"Department of Economic Development, Jobs, Transport and Resources",PRICEWATERHOUSE COOPERS,Not specified,Professional Services,218578,"$218,578.",0,2018,PRICE WATERHOUSE COOPERS,"KPMG, PwC, EY, Deloitte"
2017–18,"Department of Economic Development, Jobs, Transport and Resources",BIOINNOVATION LABS LLC,Not specified,Professional Services,250000,"$250,000.",0,2018,BIOINNOVATION LABS LLC,Other consultants
2017–18,"Department of Economic Development, Jobs, Transport and Resources",KYRIACOU ARCHITECTS PTY LTD,Not specified,Professional Services,227273,"$227,273.",0,2018,KYRIACOU ARCHITECTS PTY LTD,Other consultants
2017–18,"Department of Economic Development, Jobs, Transport and Resources",Advisian Pty Ltd,Not specified,Professional Services,22682,"$22,682.",0,2018,ADVISIAN PTY LTD,Other consultants
2017–18,"Department of Economic Development, Jobs, Transport and Resources",Advisian Pty Ltd,Not specified,Professional Services,22591,"$22,591.",0,2018,ADVISIAN PTY LTD,Other consultants
2017–18,"Department of Economic Development, Jobs, Transport and Resources",RIVERS ECONOMIC CONSULTING,Not specified,Professional Services,80625,"$80,625.",0,2018,RIVERS ECONOMIC CONSULTING,Other consultants
2017–18,"Department of Economic Development, Jobs, Transport and Resources",RIVERS ECONOMIC CONSULTING,Not specified,Professional Services,90750,"$90,750.",0,2018,RIVERS ECONOMIC CONSULTING,Other consultants
2017–18,"Department of Economic Development, Jobs, Transport and Resources",Advisian Pty Ltd,Not specified,Professional Services,18136,"$16,673.",0,2018,ADVISIAN PTY LTD,Other consultants
2017–18,"Department of Economic Development, Jobs, Transport and Resources",Advisian Pty Ltd,Not specified,Professional Services,18181,"$18,181.",0,2018,ADVISIAN PTY LTD,Other consultants
2017–18,"Department of Economic Development, Jobs, Transport and Resources",Deloitte Touche Tohmatsu,Not specified,Professional Services,46818,"$45,000.",0,2018,DELOITTE,"KPMG, PwC, EY, Deloitte"
2017–18,"Department of Economic Development, Jobs, Transport and Resources",Deloitte Touche Tohmatsu,Not specified,Professional Services,131557,"$131,557.",0,2018,DELOITTE,"KPMG, PwC, EY, Deloitte"
2017–18,"Department of Economic Development, Jobs, Transport and Resources",Deloitte Touche Tohmatsu,Not specified,Professional Services,5912771,"$958,601.",0,2018,DELOITTE,"KPMG, PwC, EY, Deloitte"
2017–18,"Department of Economic Development, Jobs, Transport and Resources",SETTING THE LINE THEATRE CONSULTING,Not specified,Professional Services,11750,"$6,750.",0,2018,SETTING THE LINE THEATRE CONSULTING,Other consultants
2017–18,"Department of Economic Development, Jobs, Transport and Resources",KPMG,Not specified,Professional Services,118090,"$118,090.",0,2018,KPMG,"KPMG, PwC, EY, Deloitte"
2017–18,"Department of Economic Development, Jobs, Transport and Resources",KPMG,Not specified,Professional Services,140934,"$140,934.",0,2018,KPMG,"KPMG, PwC, EY, Deloitte"
2017–18,"Department of Economic Development, Jobs, Transport and Resources",Marsden Jacob Associates,Not specified,Professional Services,22273,"$22,273.",0,2018,MARSDEN JACOB ASSOCIATES,Other consultants
2017–18,"Department of Economic Development, Jobs, Transport and Resources",JACOBS GROUP (AUSTRALIA) PTY LTD,Not specified,Professional Services,161272,"$161,272.",0,2018,JACOBS GROUP (AUSTRALIA) PTY LTD,Other consultants
2017–18,"Department of Economic Development, Jobs, Transport and Resources",HALCROW PACIFIC GROUP PTY LTD,Not specified,Professional Services,52182,"$52,182.",0,2018,HALCROW PACIFIC GROUP PTY LTD,Other consultants
2017–18,"Department of Economic Development, Jobs, Transport and Resources",KPMG,Not specified,Professional Services,129988,"$129,988.",0,2018,KPMG,"KPMG, PwC, EY, Deloitte"
2017–18,"Department of Economic Development, Jobs, Transport and Resources",JACOBS GROUP (AUSTRALIA) PTY LTD,Not specified,Professional Services,14420,"$14,420.",0,2018,JACOBS GROUP (AUSTRALIA) PTY LTD,Other consultants
2017–18,"Department of Economic Development, Jobs, Transport and Resources",JACOBS GROUP (AUSTRALIA) PTY LTD,Not specified,Professional Services,15356,"$13,960.",0,2018,JACOBS GROUP (AUSTRALIA) PTY LTD,Other consultants
2017–18,"Department of Economic Development, Jobs, Transport and Resources",CADENCE ECONOMICS PTY LTD,Not specified,Professional Services,40909,"$40,000.",0,2018,CADENCE ECONOMICS PTY LTD,Other consultants
2017–18,"Department of Economic Development, Jobs, Transport and Resources",Marsden Jacob Associates,Not specified,Professional Services,22500,"$22,500.",0,2018,MARSDEN JACOB ASSOCIATES,Other consultants
2017–18,"Department of Economic Development, Jobs, Transport and Resources",Marsden Jacob Associates,Not specified,Professional Services,53200,"$53,200.",0,2018,MARSDEN JACOB ASSOCIATES,Other consultants
2017–18,"Department of Economic Development, Jobs, Transport and Resources",Ernst & Young,Not specified,Professional Services,18182,"$18,182.",0,2018,ERNST & YOUNG,"KPMG, PwC, EY, Deloitte"
2017–18,"Department of Economic Development, Jobs, Transport and Resources",GTA CONSULTANTS,Not specified,Professional Services,22329,"$22,329.",0,2018,GTA CONSULTANTS,Other consultants
2017–18,"Department of Economic Development, Jobs, Transport and Resources",STRATEGIC PROJECT PARTNERS,Not specified,Professional Services,159000,"$1,962.",0,2018,STRATEGIC PROJECT PARTNERS,Other consultants
2017–18,"Department of Economic Development, Jobs, Transport and Resources","THE AUSTRALIAN CENTRE FOR SOCIAL INNOVATION",Not specified,Professional Services,40250,"$40,250.",0,2018,THE AUSTRALIAN CENTRE FOR SOCIAL INNOVATION,Other consultants
2017–18,"Department of Economic Development, Jobs, Transport and Resources","THE AUSTRALIAN CENTRE FOR SOCIAL INNOVATION",Not specified,Professional Services,69925,"$70,400.",0,2018,THE AUSTRALIAN CENTRE FOR SOCIAL INNOVATION,Other consultants
2017–18,"Department of Economic Development, Jobs, Transport and Resources",VICTORIA UNIVERSITY,Not specified,Professional Services,15896,"$15,896.",0,2018,VICTORIA UNIVERSITY,Other consultants
2017–18,"Department of Economic Development, Jobs, Transport and Resources",SGS Economics & Planning Pty Ltd,Not specified,Professional Services,169950,"$169,950.",0,2018,SGS ECONOMICS & PLANNING PTY LTD,Other consultants
2017–18,"Department of Economic Development, Jobs, Transport and Resources",Ernst & Young,Not specified,Professional Services,419279,"$419,279.",0,2018,ERNST & YOUNG,"KPMG, PwC, EY, Deloitte"
2017–18,"Department of Economic Development, Jobs, Transport and Resources",PPB ADVISORY,Not specified,Professional Services,129091,"$129,091.",0,2018,PPB ADVISORY,Other consultants
2017–18,"Department of Economic Development, Jobs, Transport and Resources",KPMG,Not specified,Professional Services,454545,"$410,331.",0,2018,KPMG,"KPMG, PwC, EY, Deloitte"
2017–18,"Department of Economic Development, Jobs, Transport and Resources",KPMG,Not specified,Professional Services,1526727,"$1,331,977.",0,2018,KPMG,"KPMG, PwC, EY, Deloitte"
2017–18,"Department of Economic Development, Jobs, Transport and Resources",Deloitte Access Economics Pty Ltd,Not specified,Professional Services,75000,"$37,500.",0,2018,DELOITTE,"KPMG, PwC, EY, Deloitte"
2017–18,"Department of Economic Development, Jobs, Transport and Resources",Urbis Pty Ltd,Not specified,Professional Services,185704,"$185,704.",0,2018,URBIS PTY LTD,Other consultants
2017–18,"Department of Economic Development, Jobs, Transport and Resources",Deloitte Access Economics Pty Ltd,Not specified,Professional Services,88205,"$44,102.",0,2018,DELOITTE,"KPMG, PwC, EY, Deloitte"
2017–18,"Department of Economic Development, Jobs, Transport and Resources",BRANDQUEST PTY LTD,Not specified,Professional Services,18000,"$16,227.",0,2018,BRANDQUEST PTY LTD,Other consultants
2017–18,"Department of Economic Development, Jobs, Transport and Resources",BRANDWORKS CONSULTING,Not specified,Professional Services,27500,"$27,500.",0,2018,BRANDWORKS CONSULTING,Other consultants
2017–18,"Department of Economic Development, Jobs, Transport and Resources",Urbis Pty Ltd,Not specified,Professional Services,133050,"$133,050.",0,2018,URBIS PTY LTD,Other consultants
2017–18,"Department of Economic Development, Jobs, Transport and Resources",ARUP PTY LTD,Not specified,Professional Services,20150,"$20,150.",0,2018,ARUP AUSTRALIA PTY LTD,Other consultants
2017–18,"Department of Economic Development, Jobs, Transport and Resources",BRENNAN JOHN PATRICK,Not specified,Professional Services,52530,"$18,295.",0,2018,BRENNAN JOHN PATRICK,Other consultants
2017–18,"Department of Economic Development, Jobs, Transport and Resources",MACH 2 CONSULTING,Not specified,Professional Services,41625,"$11,885.",0,2018,MACH 2 CONSULTING,Other consultants
2021–22,Department of Transport,VIC Public Sector Commission,Not specified,Professional Services – strategic,741000,"$119,481.",0,2022,VIC PUBLIC SECTOR COMMISSION,Other consultants
2021–22,Department of Transport,Biruu Pty Ltd,Not specified,Professional Services – strategic,49500,"$44,946.",0,2022,BIRUU,Other consultants
2021–22,Department of Transport,INFORMATION INTEGRITY SOULTIONS PTY LTD,Not specified,Professional Services – strategic,45447.3,"$8,424.",0,2022,INFORMATION INTEGRITY SOLUTIONS PTY LTD,Other consultants
2021–22,Department of Transport,VIC Public Sector Commission,Not specified,Professional Services – strategic,1284400,"$127,519.",0,2022,VIC PUBLIC SECTOR COMMISSION,Other consultants
2021–22,Department of Transport,"TALYST CONSULTING PTY LTD (TRADING AS TQSOLUTIONS CONSULTING)",Not specified,Professional Services – strategic,44800,"$12,600.",0,2022,TALYST CONSULTING PTY LTD (TRADING AS TQSOLUTIONS CONSULTING),Other consultants
2021–22,Department of Transport,GHD PTY LTD,Not specified,Professional Services – strategic,115175.1,"$65,327.8",0,2022,GHD PTY LTD,Other consultants
2021–22,Department of Transport,GHD PTY LTD,Not specified,Professional Services – strategic,27840.9,"$18,750.",0,2022,GHD PTY LTD,Other consultants
2021–22,Department of Transport,TAC DESIGN PTY LTD,Not specified,Professional Services – strategic,18000,"$7,500.",0,2022,TAC DESIGN PTY LTD,Other consultants
2021–22,Department of Transport,INFORMATION INTEGRITY SOULTIONS PTY LTD,Not specified,Professional Services – strategic,45360,"$45,360.",0,2022,INFORMATION INTEGRITY SOLUTIONS PTY LTD,Other consultants
2021–22,Department of Transport,ANNE DALTON & ASSOCIATES,Not specified,Professional Services – strategic,35454.5,"$9,341.8",0,2022,ANNE DALTON & ASSOCIATES,Other consultants
2021–22,Department of Transport,"The Trustee for Truong & Nguyen F/T",Not specified,Professional Services – strategic,45454.5,"$45,454.",0,2022,THE TRUSTEE FOR TRUONG & NGUYEN F/T,Other consultants
2021–22,Department of Transport,AVANCE LOGIC PTY LTD,Not specified,Professional Services – strategic,43625,"$43,625.",0,2022,AVANCE LOGIC,Other consultants
2021–22,Department of Transport,"The Trustee for Truong & Nguyen F/T",Not specified,Professional Services – strategic,45409.1,"$45,400.",0,2022,THE TRUSTEE FOR TRUONG & NGUYEN F/T,Other consultants
2021–22,Department of Transport,SALT3,Not specified,Professional Services – strategic,10900,"$10,900.",0,2022,SALT3,Other consultants
2021–22,Department of Transport,"AECOM AUSTRALIA PTY LTD & WSP AUSTRALIA PTY LIMITED",Not specified,Professional Services – strategic,38544,"$32,887.4",0,2022,AECOM AUSTRALIA PTY LTD & WSP AUSTRALIA PTY LTD,Other consultants
2021–22,Department of Transport,SENSE OF SECURITY,Not specified,Professional Services – strategic,96650,"$67,655.",0,2022,SENSE OF SECURITY,Other consultants
2021–22,Department of Transport,PRICEWATERHOUSECOOPERS CONSULTING AUSTRALIA PTY LIMITED,Not specified,Professional Services – strategic,32640,"$32,143.5",0,2022,PRICE WATERHOUSE COOPERS,"KPMG, PwC, EY, Deloitte"
2021–22,Department of Transport,"COLLABORATIVE ITS CONSULTING",Not specified,Professional Services – strategic,54198.5,"$2,419.7",0,2022,COLLABORATIVE ITS CONSULTING,Other consultants
2021–22,Department of Transport,"COLLABORATIVE ITS CONSULTING",Not specified,Professional Services – strategic,54198.5,"$35,955.3",0,2022,COLLABORATIVE ITS CONSULTING,Other consultants
2021–22,Department of Transport,PRICEWATERHOUSECOOPERS,Not specified,Professional Services – strategic,409090.9,"$69,860.7",0,2022,PRICE WATERHOUSE COOPERS,"KPMG, PwC, EY, Deloitte"
2021–22,Department of Transport,GHD PTY LTD,Not specified,Professional Services – strategic,40000,"$11,055.2",0,2022,GHD PTY LTD,Other consultants
2021–22,Department of Transport,"COLLABORATIVE ITS CONSULTING",Not specified,Professional Services – strategic,46500,"$12,357.8",0,2022,COLLABORATIVE ITS CONSULTING,Other consultants
2021–22,Department of Transport,"TAUNGURUNG LAND AND WATERS COUNCIL",Not specified,Professional Services – strategic,45000,"$45,000.",0,2022,TAUNGURUNG LAND AND WATERS COUNCIL,Other consultants
2021–22,Department of Transport,HALL AND WILCOX,Not specified,Professional Services – strategic,245454.2,"$40,851.7",0,2022,HALL AND WILCOX,Other consultants
2021–22,Department of Transport,PRICEWATERHOUSECOOPERS CONSULTING AUSTRALIA PTY LIMITED,Not specified,Professional Services – strategic,170000,"$127,500.",0,2022,PRICE WATERHOUSE COOPERS,"KPMG, PwC, EY, Deloitte"
2021–22,Department of Transport,HARWOOD ANDREWS PTYLTD,Not specified,Professional Services – strategic,30000,"$2,224.5",0,2022,HARWOOD ANDREWS PTY LTD,Other consultants
2021–22,Department of Transport,CAPIRE CONSULTING GROUP,Not specified,Professional Services – strategic,90262.7,"$16,950.",0,2022,CAPIRE CONSULTING GROUP,Other consultants
2021–22,Department of Transport,CAPIRE CONSULTING GROUP,Not specified,Professional Services – strategic,43321.4,"$39,540.6",0,2022,CAPIRE CONSULTING GROUP,Other consultants
2021–22,Department of Transport,SAFE SYSTEM SOLUTIONS,Not specified,Professional Services – strategic,23665.5,"$23,665.",0,2022,SAFE SYSTEM SOLUTIONS PTY LTD,Other consultants
2021–22,Department of Transport,GROUPGSA,Not specified,Professional Services – strategic,36300,"$7,500.",0,2022,GROUPGSA,Other consultants
2021–22,Department of Transport,"URBAN INFORMATION PTY LTD",Not specified,Professional Services – strategic,24000,"$24,000.",0,2022,URBAN INFORMATION PTY LTD,Other consultants
2021–22,Department of Transport,ROAD SOLUTIONS TRUST,Not specified,Professional Services – strategic,14375.5,"$14,375.",0,2022,ROAD SOLUTIONS TRUST,Other consultants
2021–22,Department of Transport,"POWERCOR AUSTRALIA PTY LTD",Not specified,Professional Services – strategic,12574.5,"$8,029.",0,2022,POWERCOR AUSTRALIA PTY LTD,Other consultants
2021–22,Department of Transport,TERRACO PTY LTD,Not specified,Professional Services – strategic,22336.4,"$18,700.",0,2022,TERRACO PTY LTD,Other consultants
2021–22,Department of Transport,"ABLEY TRANSPORTATION CONSULTANTS",Not specified,Professional Services – strategic,48470,"$48,469.5",0,2022,ABLEY TRANSPORTATION CONSULTANTS,Other consultants
2021–22,Department of Transport,"GROUND SCIENCE SOUTH WEST",Not specified,Professional Services – strategic,29900,"$29,900.",0,2022,GROUND SCIENCE,Other consultants
2021–22,Department of Transport,ISOVIST PTY LTD,Not specified,Professional Services – strategic,41760,"$41,760.",0,2022,ISOVIST PTY LTD,Other consultants
2021–22,Department of Transport,GTA CONSULTANTS,Not specified,Professional Services – strategic,143383.6,"$114,774.",0,2022,GTA CONSULTANTS,Other consultants
2021–22,Department of Transport,HANSEN PARTNERSHIP PTY LTD,Not specified,Professional Services – strategic,23750,"$23,750.",0,2022,HANSEN PARTNERSHIP PTY LTD,Other consultants
2021–22,Department of Transport,"JACOBS GROUP (AUSTRALIA) PTY LTD GR",Not specified,Professional Services – strategic,17710,"$17,710.",0,2022,JACOBS GROUP (AUSTRALIA) PTY LTD,Other consultants
2021–22,Department of Transport,HALL MCMASTER & ASSOCIATES LTD,Not specified,Professional Services – strategic,37568.2,"$37,563.6",0,2022,HALL MCMASTER & ASSOCIATES LTD,Other consultants
2021–22,Department of Transport,"JACOBS GROUP(AUSTRALIA) PTY LTD",Not specified,Professional Services – strategic,152081.8,"$147,081.8",0,2022,JACOBS GROUP (AUSTRALIA) PTY LTD,Other consultants
2021–22,Department of Transport,ALLENS,Not specified,Professional Services – strategic,135000,"$19,939.9",0,2022,ALLENS,Other consultants
2021–22,Department of Transport,ALLENS,Not specified,Professional Services – strategic,827727.3,"$380,571.6",0,2022,ALLENS,Other consultants
2021–22,Department of Transport,Jacobs Group (Australia),Not specified,Professional Services – strategic,134279.1,"$18,997.1",0,2022,JACOBS GROUP (AUSTRALIA) PTY LTD,Other consultants
2021–22,Department of Transport,HALL AND WILCOX,Not specified,Professional Services – strategic,245454.5,"$112,998.3",0,2022,HALL AND WILCOX,Other consultants
2021–22,Department of Transport,GTA CONSULTANTS,Not specified,Professional Services – strategic,143383.6,"$114,774.",0,2022,GTA CONSULTANTS,Other consultants
2021–22,Department of Transport,"GUIDERA CONSULTING GROUP",Not specified,Professional Services – strategic,113636.4,"$110,327.4",0,2022,GUIDERA CONSULTING GROUP,Other consultants
2021–22,Department of Transport,CARDNO VICTORIA PTY LTD,Not specified,Professional Services – strategic,60334,"$16,855.6",0,2022,CARDNO VICTORIA PTY LTD,Other consultants
2021–22,Department of Transport,HANSEN PARTNERSHIP PTY LTD,Not specified,Professional Services – strategic,24038.6,"$23,942.5",0,2022,HANSEN PARTNERSHIP PTY LTD,Other consultants
2021–22,Department of Transport,PRICEWATERHOUSECOOPERS CONSULTING AUSTRALIA PTY LIMITED,Not specified,Professional Services – strategic,26363.6,"$23,062.5",0,2022,PRICE WATERHOUSE COOPERS,"KPMG, PwC, EY, Deloitte"
2021–22,Department of Transport,ALL VISUALS,Not specified,Professional Services – strategic,12000,"$9,000.",0,2022,ALL VISUALS,Other consultants
2021–22,Department of Transport,"SCA MANAGEMENT CONSULTANTS PTY LTD",Not specified,Professional Services – strategic,40000,"$21,527.3",0,2022,SCA MANAGEMENT CONSULTANTS PTY LTD,Other consultants
2021–22,Department of Transport,CLAYTON UTZ,Not specified,Professional Services – strategic,75000,"$51,245.9",0,2022,CLAYTON UTZ,Other consultants
2021–22,Department of Transport,"SGS ECONOMICS AND PLANNING PTY LTD",Not specified,Professional Services – strategic,78590.9,"$8,000.",0,2022,SGS ECONOMICS & PLANNING PTY LTD,Other consultants
2021–22,Department of Transport,The Boston Consulting Group Pty Ltd,Not specified,Professional Services – strategic,44441.8,"$44,441.8",0,2022,BOSTON CONSULTING GROUP,Other consultants
2021–22,Department of Transport,"VEITCH LISTER CONSULTING PTY LTD",Not specified,Professional Services – strategic,409500,"$86,616.7",0,2022,VEITCH LISTER CONSULTING PTY LTD,Other consultants
2021–22,Department of Transport,"BEVERIDGE WILLIAMS & CO PTY LTD",Not specified,Professional Services – strategic,10034.7,"$10,034.7",0,2022,BEVERIDGE WILLIAMS & CO PTY LTD,Other consultants
2021–22,Department of Transport,SAFE SYSTEM SOLUTIONS,Not specified,Professional Services – strategic,14400,"$9,650.",0,2022,SAFE SYSTEM SOLUTIONS PTY LTD,Other consultants
2021–22,Department of Transport,Iconinc Holdings Pty Ltd,Not specified,Professional Services – strategic,29775,"$29,775.",0,2022,ICONINC HOLDINGS PTY LTD,Other consultants
2021–22,Department of Transport,INFORMATION INTEGRITY SOULTIONS PTY LTD,Not specified,Professional Services – strategic,35640,"$35,640.",0,2022,INFORMATION INTEGRITY SOLUTIONS PTY LTD,Other consultants
2021–22,Department of Transport,GLOSSOP TOWN PLANNING,Not specified,Professional Services – strategic,30000,"$10,044.8",0,2022,GLOSSOP TOWN PLANNING,Other consultants
2021–22,Department of Transport,GLOSSOP TOWN PLANNING,Not specified,Professional Services – strategic,30000,"$8,232.5",0,2022,GLOSSOP TOWN PLANNING,Other consultants
2021–22,Department of Transport,INFORMATION INTEGRITY SOULTIONS PTY LTD,Not specified,Professional Services – strategic,45447.3,"$33,696.",0,2022,INFORMATION INTEGRITY SOLUTIONS PTY LTD,Other consultants
2021–22,Department of Transport,TERRA FIRMA PTY LTD,Not specified,Professional Services – strategic,29400,"$29,400.",0,2022,TERRA FIRMA PTY LTD,Other consultants
2021–22,Department of Transport,TERRA FIRMA PTY LTD,Not specified,Professional Services – strategic,26730,"$6,000.",0,2022,TERRA FIRMA PTY LTD,Other consultants
2021–22,Department of Transport,"JO BELL HERITAGE SERVICES P/L",Not specified,Professional Services – strategic,24288,"$24,288.",0,2022,JO BELL HERITAGE SERVICES P/L,Other consultants
2021–22,Department of Transport,ALLENS,Not specified,Professional Services – strategic,70000,"$70,000.",0,2022,ALLENS,Other consultants
2021–22,Department of Transport,"PRICEWATERHOUSECOOPER S",Not specified,Professional Services – strategic,227000,"$227,000.",0,2022,PRICE WATERHOUSE COOPERS,"KPMG, PwC, EY, Deloitte"
2021–22,Department of Transport,"CHARTER KECK CRAMER PTY LTD",Not specified,Professional Services – strategic,28830,"$28,829.5",0,2022,CHARTER KECK CRAMER,Other consultants
2021–22,Department of Transport,PECKVONHARTEL GROUP,Not specified,Professional Services – strategic,45000,"$2,250.",0,2022,PECKVONHARTEL GROUP PTY LTD,Other consultants
2021–22,Department of Transport,PECKVONHARTEL GROUP,Not specified,Professional Services – strategic,38200,"$7,640.",0,2022,PECKVONHARTEL GROUP PTY LTD,Other consultants
2021–22,Department of Transport,ALLENS,Not specified,Professional Services – strategic,227272.7,"$26,117.3",0,2022,ALLENS,Other consultants
2021–22,Department of Transport,ALLENS,Not specified,Professional Services – strategic,170000,"$9,983.4",0,2022,ALLENS,Other consultants
2021–22,Department of Transport,GREENCAP PTY LTD,Not specified,Professional Services – strategic,226363.6,"$227,081.4",0,2022,GREENCAP PTY LTD,Other consultants
2021–22,Department of Transport,"BEVERIDGE WILLIAMS & CO PTY LTD",Not specified,Professional Services – strategic,18000,"$17,296.5",0,2022,BEVERIDGE WILLIAMS & CO PTY LTD,Other consultants
2021–22,Department of Transport,ALLENS,Not specified,Professional Services – strategic,998000,"$699,281.3",0,2022,ALLENS,Other consultants
2021–22,Department of Transport,AECOM Australia Pty Ltd,Not specified,Professional Services – strategic,12151.8,"$10,630.",0,2022,AECOM AUSTRALIA PTY LTD,Other consultants
2021–22,Department of Transport,"DELOITTE TOUCHE TOHMATSU LTD",Not specified,Professional Services – strategic,227272.7,"$19,487.5",0,2022,DELOITTE,"KPMG, PwC, EY, Deloitte"
2021–22,Department of Transport,"TOTAL PROPERTY DEVELOPMENTS P/L",Not specified,Professional Services – strategic,21200,"$16,200.",0,2022,TOTAL PROPERTY DEVELOPMENTS P/L,Other consultants
2021–22,Department of Transport,"TOTAL PROPERTY DEVELOPMENTS P/L",Not specified,Professional Services – strategic,11760,"$4,900.",0,2022,TOTAL PROPERTY DEVELOPMENTS P/L,Other consultants
2021–22,Department of Transport,"DELOITTE TOUCHE TOHMATSU",Not specified,Professional Services – strategic,236030,"$107,946.",0,2022,DELOITTE,"KPMG, PwC, EY, Deloitte"
2021–22,Department of Transport,"DELOITTE TOUCHE TOHMATSU",Not specified,Professional Services – strategic,428810,"$300,167.",0,2022,DELOITTE,"KPMG, PwC, EY, Deloitte"
2021–22,Department of Transport,Ernst & Young,Not specified,Professional Services – strategic,2924096.4,"$35,005.5",0,2022,ERNST & YOUNG,"KPMG, PwC, EY, Deloitte"
2021–22,Department of Transport,Ernst & Young,Not specified,Professional Services – strategic,31254.6,"$31,254.6",0,2022,ERNST & YOUNG,"KPMG, PwC, EY, Deloitte"
2021–22,Department of Transport,R BUSH CONSULTING P/L,Not specified,Professional Services – strategic,60000,"$12,515.",0,2022,R BUSH CONSULTING P/L,Other consultants
2021–22,Department of Transport,TRAFFICWORKS PTY LTD,Not specified,Professional Services – strategic,19000,"$13,950.",0,2022,TRAFFICWORKS PTY LTD,Other consultants
2021–22,Department of Transport,R BUSH CONSULTING P/L,Not specified,Professional Services – strategic,60000,"$1,190.",0,2022,R BUSH CONSULTING P/L,Other consultants
2021–22,Department of Transport,"TOTAL PROPERTY DEVELOPMENTS P/L",Not specified,Professional Services – strategic,34750,"$22,950.",0,2022,TOTAL PROPERTY DEVELOPMENTS P/L,Other consultants
2021–22,Department of Transport,Ernst & Young,Not specified,Professional Services – strategic,73715,"$73,715.",0,2022,ERNST & YOUNG,"KPMG, PwC, EY, Deloitte"
2021–22,Department of Transport,"TOTAL PROPERTY DEVELOPMENTS P/L",Not specified,Professional Services – strategic,25510,"$25,510.",0,2022,TOTAL PROPERTY DEVELOPMENTS P/L,Other consultants
2021–22,Department of Transport,"DELOITTE TOUCHE TOHMATSU LTD",Not specified,Professional Services – strategic,135460.9,"$108,188.",0,2022,DELOITTE,"KPMG, PwC, EY, Deloitte"
2021–22,Department of Transport,Ernst & Young,Not specified,Professional Services – strategic,294970.4,"$53,631.1",0,2022,ERNST & YOUNG,"KPMG, PwC, EY, Deloitte"
2021–22,Department of Transport,"DELOITTE TOUCHE TOHMATSU LTD",Not specified,Professional Services – strategic,197650.9,"$197,650.9",0,2022,DELOITTE,"KPMG, PwC, EY, Deloitte"
2021–22,Department of Transport,MINTER ELLISON LAWYERS,Not specified,Professional Services – strategic," $605,000.90 ","$203,065.2",0,2022,MINTER ELLISON,Other consultants
2021–22,Department of Transport,TREE LOGIC PTY LTD,Not specified,Professional Services – strategic,18000,"$18,000.",0,2022,TREE LOGIC PTY LTD,Other consultants
2021–22,Department of Transport,"TM INSIGHT OPERATIONS PTY LTD",Not specified,Professional Services – strategic,45000,"$45,000.",0,2022,TM INSIGHT OPERATIONS PTY LTD,Other consultants
2021–22,Department of Transport,"TOTAL PROPERTY DEVELOPMENTS P/L",Not specified,Professional Services – strategic,42384.5,"$30,733.",0,2022,TOTAL PROPERTY DEVELOPMENTS P/L,Other consultants
2021–22,Department of Transport,TRAFFIX GROUP PTY LTD,Not specified,Professional Services – strategic,22690,"$1,110.",0,2022,TRAFFIX GROUP PTY LTD,Other consultants
2021–22,Department of Transport,MELD STUDIOS,Not specified,Professional Services – strategic,181000,"$65,600.",0,2022,MELD STUDIOS,Other consultants
2021–22,Department of Transport,MELD STUDIOS,Not specified,Professional Services – strategic,181000,"$114,257.8",0,2022,MELD STUDIOS,Other consultants
2021–22,Department of Transport,TRAFFIX GROUP PTY LTD,Not specified,Professional Services – strategic,31818.2,"$14,000.",0,2022,TRAFFIX GROUP PTY LTD,Other consultants
2021–22,Department of Transport,Ernst & Young,Not specified,Professional Services – strategic,179400,"$179,400.",0,2022,ERNST & YOUNG,"KPMG, PwC, EY, Deloitte"
2021–22,Department of Transport,Ernst & Young,Not specified,Professional Services – strategic,168181.8,"$168,181.8",0,2022,ERNST & YOUNG,"KPMG, PwC, EY, Deloitte"
2021–22,Department of Transport,SPATIAL MEDIA,Not specified,Professional Services – strategic,29650,"$14,825.",0,2022,SPATIAL MEDIA,Other consultants
2021–22,Department of Transport,"DELOITTE TOUCHE TOHMATSU LTD",Not specified,Professional Services – strategic,45294.5,"$45,294.5",0,2022,DELOITTE,"KPMG, PwC, EY, Deloitte"
2021–22,Department of Transport,ENERGISED CONSULTING PT LTD,Not specified,Professional Services – strategic,45000,"$45,000.",0,2022,ENERGISED CONSULTING PTY LTD,Other consultants
2021–22,Department of Transport,EHS SUPPORT PTY LTD,Not specified,Professional Services – strategic,528673.3,"$184,290.",0,2022,EHS SUPPORT PTY LTD,Other consultants
2021–22,Department of Transport,TOUCH PROJECTS LIMITED,Not specified,Professional Services – strategic,37840,"$13,760.",0,2022,TOUCH PROJECTS LIMITED,Other consultants
2021–22,Department of Transport,STANTEC AUSTRALIA PTY LTD,Not specified,Professional Services – strategic,226363.6,"$132,612.7",0,2022,STANTEC AUSTRALIA PTY LTD,Other consultants
2021–22,Department of Transport,STERLING INFRASTRUCTURE,Not specified,Professional Services – strategic,10250,"$10,250.",0,2022,STERLING INFRASTRUCTURE PTY LTD,Other consultants
2021–22,Department of Transport,"STERLING INFRASTRUCTURE PTY LTD",Not specified,Professional Services – strategic,18500,"$18,500.",0,2022,STERLING INFRASTRUCTURE PTY LTD,Other consultants
2021–22,Department of Transport,"LEK CONSULTING AUSTRALIA PTY LTD",Not specified,Professional Services – strategic,579375,"$579,375.",0,2022,LEK CONSULTING AUSTRALIA PTY LTD,Other consultants
2021–22,Department of Transport,RUSSELL KENNEDY SOLICITORS,Not specified,Professional Services – strategic,12700,"$12,700.",0,2022,RUSSELL KENNEDY SOLICITORS,Other consultants
2021–22,Department of Transport,"LEK CONSULTING AUSTRALIA PTY LTD",Not specified,Professional Services – strategic,160650,"$160,650.",0,2022,LEK CONSULTING AUSTRALIA PTY LTD,Other consultants
2021–22,Department of Transport,RUSSELL KENNEDY SOLICITORS,Not specified,Professional Services – strategic,10000,"$5,728.4",0,2022,RUSSELL KENNEDY SOLICITORS,Other consultants
2021–22,Department of Transport,Arup Australia Pty Ltd,Not specified,Professional Services – strategic,599826.4,"$68,500.4",0,2022,ARUP AUSTRALIA PTY LTD,Other consultants
2021–22,Department of Transport,La Trobe University,Not specified,Professional Services – strategic,59828.2,"$25,528.4",0,2022,LA TROBE UNIVERSITY,Other consultants
2021–22,Department of Transport,WSP AUSTRALIA PTY LIMITED,Not specified,Professional Services – strategic,117200,"$117,200.",0,2022,WSP AUSTRALIA PTY LIMITED,Other consultants
2021–22,Department of Transport,MADDOCKS,Not specified,Professional Services – strategic,23000,"$5,583.9",0,2022,MADDOCKS,Other consultants
2021–22,Department of Transport,MADDOCKS,Not specified,Professional Services – strategic,23000,"$16,500.",0,2022,MADDOCKS,Other consultants
2021–22,Department of Transport,MADDOCKS,Not specified,Professional Services – strategic,15000,"$11,606.3",0,2022,MADDOCKS,Other consultants
2021–22,Department of Transport,MADDOCKS,Not specified,Professional Services – strategic,90585,"$42,322.5",0,2022,MADDOCKS,Other consultants
2021–22,Department of Transport,MADDOCKS,Not specified,Professional Services – strategic,45292.5,"$23,760.",0,2022,MADDOCKS,Other consultants
2021–22,Department of Transport,Ernst & Young,Not specified,Professional Services – strategic,92000,"$92,000.",0,2022,ERNST & YOUNG,"KPMG, PwC, EY, Deloitte"
2021–22,Department of Transport,Ernst & Young,Not specified,Professional Services – strategic,350000,"$350,000.",0,2022,ERNST & YOUNG,"KPMG, PwC, EY, Deloitte"
2021–22,Department of Transport,"RSM AUSTRALIA PTY LTD ATF BIRDANCO PRACTICE TRUST",Not specified,Professional Services – strategic,181818.2,"$52,800.",0,2022,RSM,Other consultants
2021–22,Department of Transport,STANTEC AUSTRALIA PTY LTD,Not specified,Professional Services – strategic,10000,"$10,000.",0,2022,STANTEC AUSTRALIA PTY LTD,Other consultants
2021–22,Department of Transport,AECOM Australia Pty Ltd,Not specified,Professional Services – strategic,12151.8,"$1,521.8",0,2022,AECOM AUSTRALIA PTY LTD,Other consultants
2021–22,Department of Transport,"SCA MANAGEMENT CONSULTANTS PTY LTD",Not specified,Professional Services – strategic,45000,"$35,775.",0,2022,SCA MANAGEMENT CONSULTANTS PTY LTD,Other consultants
2021–22,Department of Transport,TTF REALSERVE UNIT TRUST,Not specified,Professional Services – strategic,79500,"$79,500.",0,2022,TTF REALSERVE UNIT TRUST,Other consultants
2021–22,Department of Transport,Escient Pty Ltd,Not specified,Professional Services – strategic,187000,"$187,000.",0,2022,ESCIENT PTY LTD,Other consultants
2021–22,Department of Transport,"TSA MANAGEMENT PTY LIMITED",Not specified,Professional Services – strategic,197500,"$197,500.",0,2022,TSA MANAGEMENT PTY LIMITED,Other consultants
2021–22,Department of Transport,NEN CONSULTING PTY LTD,Not specified,Professional Services – strategic,274409.6,"$17,225.",0,2022,NEN CONSULTING PTY LTD,Other consultants
2021–22,Department of Transport,NELSON–FURNELL PTY LTD,Not specified,Professional Services – strategic,15413,"$11,413.",0,2022,NELSON–FURNELL PTY LTD,Other consultants
2021–22,Department of Transport,FOLEY'S LIST PTY LTD,Not specified,Professional Services – strategic,10000,"$10,000.",0,2022,FOLEY'S LIST PTY LTD,Other consultants
2021–22,Department of Transport,KPMG AUSTRALIA,Not specified,Professional Services – strategic,203842,"$8,943.",0,2022,KPMG,"KPMG, PwC, EY, Deloitte"
2021–22,Department of Transport,KPMG AUSTRALIA,Not specified,Professional Services – strategic,6926613.6,"$2,239,704.3",0,2022,KPMG,"KPMG, PwC, EY, Deloitte"
2021–22,Department of Transport,AUSTRAFFIC (VIC) PTY LTD,Not specified,Professional Services – strategic,49200,"$4,920.",0,2022,AUSTRAFFIC (VIC) PTY LTD,Other consultants
2021–22,Department of Transport,AUSTRAFFIC (VIC) PTY LTD,Not specified,Professional Services – strategic,49200,"$19,680.",0,2022,AUSTRAFFIC (VIC) PTY LTD,Other consultants
2021–22,Department of Transport,KPMG,Not specified,Professional Services – strategic,125848.2,"$125,848.2",0,2022,KPMG,"KPMG, PwC, EY, Deloitte"
2021–22,Department of Transport,KPMG,Not specified,Professional Services – strategic,1363636.4,"$145,147.",0,2022,KPMG,"KPMG, PwC, EY, Deloitte"
2021–22,Department of Transport,NOUS GROUP PTY. LTD,Not specified,Professional Services – strategic,227272,"$45,572.",0,2022,NOUS GROUP PTY LTD,Other consultants
2021–22,Department of Transport,"AECOM COST CONSULTING PTY LTD",Not specified,Professional Services – strategic,159890,"$159,890.",0,2022,AECOM AUSTRALIA PTY LTD,Other consultants
2021–22,Department of Transport,"CORRS CHAMBERS WESTGARTH",Not specified,Professional Services – strategic,12304.3,"$12,304.3",0,2022,CORRS CHAMBERS WESTGARTH,Other consultants
2021–22,Department of Transport,TTF The Boyd Williams,Not specified,Professional Services – strategic,30610,"$28,398.",0,2022,TTF THE BOYD WILLIAMS,Other consultants
2021–22,Department of Transport,FIRECONE VENTURES PTY LTD,Not specified,Professional Services – strategic,294075.5,"$58,975.",0,2022,FIRECONE VENTURES PTY LTD,Other consultants
2021–22,Department of Transport,"RPS AAP CONSULTING PTY LTD",Not specified,Professional Services – strategic,219840,"$214,678.4",0,2022,RPS AAP CONSULTING PTY LTD,Other consultants
2021–22,Department of Transport,KPMG,Not specified,Professional Services – strategic,63636.4,"$63,636.4",0,2022,KPMG,"KPMG, PwC, EY, Deloitte"
2021–22,Department of Transport,REDINK PLANNING,Not specified,Professional Services – strategic,40909.1,"$37,840.",0,2022,REDINK PLANNING,Other consultants
2021–22,Department of Transport,ESRI AUSTRALIA PTY LTD,Not specified,Professional Services – strategic,48350,"$19,760.",0,2022,ESRI AUSTRALIA,Other consultants
2021–22,Department of Transport,NORTON ROSE FULBRIGHT,Not specified,Professional Services – strategic,84906,$682.4,0,2022,NORTON ROSE FULBRIGHT AUSTRALIA,Other consultants
2021–22,Department of Transport,NORTON ROSE FULBRIGHT,Not specified,Professional Services – strategic,84906,"$4,447.3",0,2022,NORTON ROSE FULBRIGHT AUSTRALIA,Other consultants
2021–22,Department of Transport,ESRI AUSTRALIA,Not specified,Professional Services – strategic,11840,"$11,840.",0,2022,ESRI AUSTRALIA,Other consultants
2021–22,Department of Transport,CUBE GROUP MANAGEMENT CONSULTING (AUSTRALIA),Not specified,Professional Services – strategic,45000,"$17,500.",0,2022,CUBE GROUP MANAGEMENT CONSULTING,Other consultants
2021–22,Department of Transport,AECOM Australia Pty Ltd,Not specified,Professional Services – strategic,56485.5,"$28,307.5",0,2022,AECOM AUSTRALIA PTY LTD,Other consultants
2021–22,Department of Transport,"RM CONSULTING GROUP PTY LTD",Not specified,Professional Services – strategic,40220,"$12,066.",0,2022,RM CONSULTING GROUP PTY LTD,Other consultants
2021–22,Department of Transport,MOBILITY THINKING PTY LTD,Not specified,Professional Services – strategic,44920,"$9,935.",0,2022,MOBILITY THINKING PTY LTD,Other consultants
2021–22,Department of Transport,WSP AUSTRALIA PTY LIMITED,Not specified,Professional Services – strategic,52291.5,"$26,857.",0,2022,WSP AUSTRALIA PTY LIMITED,Other consultants
2021–22,Department of Transport,"THOMSON GEER LAWYERS TRUST",Not specified,Professional Services – strategic,30000,"$12,998.5",0,2022,THOMSON GEER LAWYERS TRUST,Other consultants
2021–22,Department of Transport,WSP AUSTRALIA PTY LTD,Not specified,Professional Services – strategic,120282,"$55,316.",0,2022,WSP AUSTRALIA PTY LIMITED,Other consultants
2021–22,Department of Transport,TSA MANAGEMENT PTY,Not specified,Professional Services – strategic,33600,"$33,050.",0,2022,TSA MANAGEMENT PTY LIMITED,Other consultants
2021–22,Department of Transport,SMEDLEY TECHNICAL AND STRATEGIC PTY LTD,Not specified,Professional Services – strategic,44400,"$8,400.",0,2022,SMEDLEY TECHNICAL & STRATEGIC PTY LTD,Other consultants
2021–22,Department of Transport,AURECON AUSTRALASIA PTY,Not specified,Professional Services – strategic,226400,"$31,600.",0,2022,AURECON,Other consultants
2021–22,Department of Transport,"AURECON AUSTRALASIA PTY LTD",Not specified,Professional Services – strategic,40975,"$40,975.",0,2022,AURECON,Other consultants
2021–22,Department of Transport,"PRICE WATERHOUSE COOPERS",Not specified,Professional Services – strategic,30063.4,"$30,063.4",0,2022,PRICE WATERHOUSE COOPERS,"KPMG, PwC, EY, Deloitte"
2021–22,Department of Transport,SMEC AUSTRALIA PTY LTD,Not specified,Professional Services – strategic,57568,"$26,834.",0,2022,SMEC AUSTRALIA PTY LTD,Other consultants
2021–22,Department of Transport,WSP AUSTRALIA PTY LTD,Not specified,Professional Services – strategic,128260,"$49,380.1",0,2022,WSP AUSTRALIA PTY LIMITED,Other consultants
2021–22,Department of Transport,CUMMINS PLANNING,Not specified,Professional Services – strategic,40909.1,"$40,717.5",0,2022,CUMMINS PLANNING,Other consultants
2021–22,Department of Transport,"CORRS CHAMBERS WESTGARTH",Not specified,Professional Services – strategic,15000,"$15,000.",0,2022,CORRS CHAMBERS WESTGARTH,Other consultants
2021–22,Department of Transport,CUMMINS PLANNING,Not specified,Professional Services – strategic,40000,"$17,250.",0,2022,CUMMINS PLANNING,Other consultants
2021–22,Department of Transport,"CORRS CHAMBERS WESTGARTH",Not specified,Professional Services – strategic,67500,"$62,402.4",0,2022,CORRS CHAMBERS WESTGARTH,Other consultants
2021–22,Department of Transport,D & D TAXATION CONSULTING PTY LTD,Not specified,Professional Services – strategic,18150,"$18,150.",0,2022,D & D TAXATION CONSULTING PTY LTD,Other consultants
2021–22,Department of Transport,"CORRS CHAMBERS WESTGARTH",Not specified,Professional Services – strategic,10000,"$2,503.3",0,2022,CORRS CHAMBERS WESTGARTH,Other consultants
2021–22,Department of Transport,"FTI CONSULTING (AUSTRALIA) PTY LTD",Not specified,Professional Services – strategic,100000,"$97,535.",0,2022,FTI CONSULTING (AUSTRALIA) PTY LTD,Other consultants
2021–22,Department of Transport,"CORPORATE VALUE ANALYTICS PTY LTD",Not specified,Professional Services – strategic,309307.6,"$206,912.2",0,2022,CORPORATE VALUE ANALYTICS PTY LTD,Other consultants
2021–22,Department of Transport,AECOM Australia Pty Ltd,Not specified,Professional Services – strategic,18720,"$13,265.",0,2022,AECOM AUSTRALIA PTY LTD,Other consultants
2021–22,Department of Education and Training,ACIL Allen Consulting Pty Ltd,Not specified,Development of pricing model for cost of training delivery,632820,"$192,551.",0,2022,ACIL ALLEN CONSULTING,Other consultants
2021–22,Department of Education and Training,ACIL Allen Consulting Pty Ltd,Not specified,Early Childhood Strategic Evaluation,1335280,"$331,170.",0,2022,ACIL ALLEN CONSULTING,Other consultants
2021–22,Department of Education and Training,KPMG AUSTRALIA,Not specified,Development of a strategic Digital Roadmap for Schools – 10 Year Horizon,792909,"$772,605.",0,2022,KPMG,"KPMG, PwC, EY, Deloitte"
2021–22,Department of Education and Training,ACIL Allen Consulting Pty Ltd,Not specified,Child Information Sharing Scheme – 2‑year review,561081,"$196,973.",0,2022,ACIL ALLEN CONSULTING,Other consultants
2021–22,Department of Education and Training,KPMG AUSTRALIA,Not specified,Evaluation program logic mapping and theories of change for the Victorian Universities Support Package Program,32166,"$32,166.",0,2022,KPMG,"KPMG, PwC, EY, Deloitte"
2021–22,Department of Education and Training,ASPL AUSTRALIA PTY LTD,Not specified,Development of Victorian Public Sector Strategic Workforce Plan,77273,"$77,727.",0,2022,ASPL AUSTRALIA PTY LTD,Other consultants
2021–22,Department of Education and Training,Nous Group Pty Ltd,Not specified,Development of ‘Skills Solutions’ model for seven priority sectors,175000,"$175,000.",0,2022,NOUS GROUP PTY LTD,Other consultants
2021–22,Department of Education and Training,KPMG AUSTRALIA,Not specified,Submission on the Swinburne Prahran Campus,181818,"$181,818.",0,2022,KPMG,"KPMG, PwC, EY, Deloitte"
2021–22,Department of Education and Training,LEARNING FIRST GROUP PTY LTD,Not specified,Re–conceptualisation of the Framework for Improving Student Outcomes,250011,"$210,000.",0,2022,LEARNING FIRST GROUP PTY LTD,Other consultants
2021–22,Department of Education and Training,KPMG AUSTRALIA,Not specified,Review of the operating funding model of Tech Schools,122455,"$9,000.",0,2022,KPMG,"KPMG, PwC, EY, Deloitte"
2021–22,Department of Education and Training,KPMG AUSTRALIA,Not specified,Corporate services initiatives,3247744,"$2,596,640.",0,2022,KPMG,"KPMG, PwC, EY, Deloitte"
2021–22,Department of Education and Training,DELOITTE ACCESS ECONOMICS,Not specified,Re–conceptualisation of capacity support for the Framework for Improving Student Outcomes,151875,"$151,875.",0,2022,DELOITTE,"KPMG, PwC, EY, Deloitte"
2021–22,Department of Education and Training,ACIL Allen Consulting Pty Ltd,Not specified,"Review of support systems for children with disability, developmental delay or complex medical needs to engage in early childhood education and care",260453,"$260,453.",0,2022,ACIL ALLEN CONSULTING,Other consultants
2021–22,Department of Education and Training,DELOITTE CONSULTING PTY LIMITED,Not specified,Workforce analysis to support the introduction of the Schools Mental Health Fund Menu,80000,"$80,000.",0,2022,DELOITTE,"KPMG, PwC, EY, Deloitte"
2021–22,Department of Education and Training,PROJECT MANAGEMENT PARTNERS PTY LIMITED,Not specified,Review of governance arrangements for Student Administration Program,26400,"$26,400.",0,2022,PROJECT MANAGEMENT PARTNERS PTY LIMITED,Other consultants
2021–22,Department of Education and Training,Deloitte Touche Tohmatsu,Not specified,Enhancing operational levers to strengthen the impact of supports provided through regions to school,458300,"$228,560.",0,2022,DELOITTE,"KPMG, PwC, EY, Deloitte"
2021–22,Department of Education and Training,ERNST AND YOUNG,Not specified,Development of Melton Business Case,204899,"$168,535.",0,2022,ERNST & YOUNG,"KPMG, PwC, EY, Deloitte"
2021–22,Department of Education and Training,Synergistiq Pty Ltd,Not specified,Development of Professional Learning Framework,136504,"$68,252.",0,2022,SYNERGISTIQ PTY LTD,Other consultants
2021–22,Department of Education and Training,DELOITTE ACCESS ECONOMICS,Not specified,"Business case for expansion and targeting of Adult, Community and Further Education Board–funded pre–accredited training programs and professional development",134358,"$64,358.",0,2022,DELOITTE,"KPMG, PwC, EY, Deloitte"
2021–22,Department of Education and Training,DANDOLO INTERNATIONAL PTY LTD,Not specified,Design of the Victorian Academy of Teaching and Leadership operating model,312611,"$11,770.",0,2022,DANDOLO PARTNERS,Other consultants
2021–22,Department of Education and Training,PRICEWATERHOUSE COOPERS,Not specified,Annual review of the Free TAFE for Priority Courses list,87740,"$57,048.",0,2022,PRICE WATERHOUSE COOPERS,"KPMG, PwC, EY, Deloitte"
2021–22,Department of Education and Training,Nous Group Pty Ltd,Not specified,"Analysis, advice and options on Department of Education and Training entities",100000,"$77,800.",0,2022,NOUS GROUP PTY LTD,Other consultants
2021–22,Department of Education and Training,Paxton Partners,Not specified,"Impact evaluation to improve health, safety and wellbeing and to reduce administrative burden for schools",372460,"$9,320.",0,2022,PAXTON PARTNERS,Other consultants
2021–22,Department of Education and Training,UNIVERSITY OF MELBOURNE,Not specified,Evaluation of the Literacy and Numeracy Strategy,805402,"$73,655.",0,2022,UNIVERSITY OF MELBOURNE,Other consultants
2021–22,Department of Education and Training,VICTORIA UNIVERSITY,Not specified,Review of the Registered Training Organisation performance indicators framework,34350,"$34,350.",0,2022,VICTORIA UNIVERSITY,Other consultants
2021–22,Department of Education and Training,PORTABLE AUSTRALIA PTY LTD,Not specified,"Research into the factors influencing the school choices of high–ability girls, particularly selective entry high school enrolment",268108,"$268,108.",0,2022,PORTABLE AUSTRALIA,Other consultants
2021–22,Department of Education and Training,SENATESHJ,Not specified,Supporting policy cohesion for Koorie outcomes and preparation for Yoorrook and Treaty,29520,"$29,520.",0,2022,SENATESHJ,Other consultants
2021–22,Department of Education and Training,UNIVERSITY OF MELBOURNE,Not specified,Monitoring and evaluation of the Differentiated Support for School Improvement initiatives,1484436,"$32,828.",0,2022,UNIVERSITY OF MELBOURNE,Other consultants
2020–21,Department of Education and Training,BRAND ARCHITECTS,Not specified,A review of the design principles for Tech Schools,24750,"$1,500.",0,2021,BRAND ARCHITECTS,Other consultants
2020–21,Department of Education and Training,ACIL Allen Consulting Pty Ltd,Not specified,Review of School Focused Youth Service,88458,"$88,458.",0,2021,ACIL ALLEN CONSULTING,Other consultants
2020–21,Department of Education and Training,KANTAR PUBLIC AUSTRALIA PTY LTD,Not specified,Concept testing for the Active Schools Behaviour Change Campaign,38800,"$38,800.",0,2021,KANTAR PUBLIC AUSTRALIA PTY LTD,Other consultants
2020–21,Department of Education and Training,Urbis Pty Ltd,Not specified,Education Justice Initiative evaluation,223625,"$92,469.",0,2021,URBIS PTY LTD,Other consultants
2020–21,Department of Education and Training,EDIFIED PTY LTD,Not specified,Review of marketing and communications of the International Student Program,99159,"$99,159.",0,2021,EDIFIED PTY LTD,Other consultants
2020–21,Department of Education and Training,ERNST AND YOUNG,Not specified,Planning to improve TAFE financial performance,373580,"$373,581.",0,2021,ERNST & YOUNG,"KPMG, PwC, EY, Deloitte"
2020–21,Department of Education and Training,DELOITTE ACCESS ECONOMICS,Not specified,Review of the Doctors in Secondary Schools financial model,84660,"$16,932.",0,2021,DELOITTE,"KPMG, PwC, EY, Deloitte"
2020–21,Department of Education and Training,ARTD PTY LTD,Not specified,Evaluation of the Strategic Planning Online Tool,98884,"$98,884.",0,2021,ARTD PTY LTD,Other consultants
2020–21,Department of Education and Training,LANDELL CORPORATION PTY LTD,Not specified,Probity advice – procurement,20000,"$20,000.",0,2021,LANDELL CORPORATION PTY LTD,Other consultants
2020–21,Department of Education and Training,NTT AUSTRALIA DIGITAL PTY LTD,Not specified,Assessment of lessons learned from ICT projects in 2020,26240,"$26,240.",0,2021,NTT AUSTRALIA DIGITAL PTY LTD,Other consultants
2020–21,Department of Education and Training,VICTORIA UNIVERSITY,Not specified,Review of the registered training organisations performance indicators framework,49350,"$11,400.",0,2021,VICTORIA UNIVERSITY,Other consultants
2020–21,Department of Education and Training,CONVERGE INTERNATIONAL INCORPORATING RESOLUTIONS RTK PTY LTD,Not specified,Workplace wellbeing assessment and recommendations at a school post 2019–20 bushfires,18365,"$18,365.",0,2021,CONVERGE INTERNATIONAL,Other consultants
2020–21,Department of Education and Training,GROSVENOR PERFORMANCE GROUP PTY LTD,Not specified,Evaluation of Conflict of Interest reforms,67420,"$56,633.",0,2021,GROSVENOR MANAGEMENT CONSULTING,Other consultants
2020–21,Department of Education and Training,PTR CONSULTING,Not specified,Service and organisational review of Parkville College,62500,"$62,500.",0,2021,PTR CONSULTING,Other consultants
2020–21,Department of Education and Training,MARY JEAN GALLAGHER,Not specified,Expert review of the ongoing implementation of the Education State reforms,158895,"$50,247.",0,2021,MARY JEAN GALLAGHER,Other consultants
2020–21,Department of Education and Training,Deloitte Touche Tohmatsu,Not specified,TAFE operating model reform,331909,"$331,884.",0,2021,DELOITTE,"KPMG, PwC, EY, Deloitte"
2020–21,Department of Education and Training,LEARNING FIRST GROUP PTY LTD,Not specified,Re–conceptualise the Framework for Improving Student Outcomes.,40000,"$40,000.",0,2021,LEARNING FIRST GROUP PTY LTD,Other consultants
2020–21,Department of Education and Training,PRICEWATERHOUSECOOPERS CONSULTING AUSTRALIA PTY LIMITED,Not specified,DET family violence workforce and course mapping project,103635,"$58,635.",0,2021,PRICE WATERHOUSE COOPERS,"KPMG, PwC, EY, Deloitte"
2020–21,Department of Education and Training,JOHN EDWIN FIRTH,Not specified,Review of vocational and applied learning pathways in senior secondary school,186750,"$105,000.",0,2021,JOHN EDWIN FIRTH,Other consultants
2019–20,Department of Education and Training,RIXSTEWART PTY LTD,Not specified,Cleaning Services – Operations and Contractual Advice,154350,"$7,306.",0,2020,RIXSTEWART PTY LTD,Other consultants
2019–20,Department of Education and Training,MCKINSEY PACIFIC RIM. INC.,Not specified,Strategic overview of reform agenda for schools,904545,"$904,545.",0,2020,MCKINSEY & COMPANY,Other consultants
2019–20,Department of Education and Training,PEG CONSULTING PTY LTD,Not specified,Advisory Services – Higher Education and Skills Group,33182,"$11,700.",0,2020,PEG CONSULTING PTY LTD,Other consultants
2019–20,Department of Education and Training,PRICEWATERHOUSECOOPERS CONSULTING AUSTRALIA PTY LIMITED,Not specified,Same–day attendance notification pulse check,173664,"$73,263.",0,2020,PRICE WATERHOUSE COOPERS,"KPMG, PwC, EY, Deloitte"
2019–20,Department of Education and Training,ACIL Allen Consulting Pty Ltd,Not specified,Stage 1 Workforce Impact Assessment – Risks and Opportunities Funding and Support Model for Students with Disability in Victorian Government,81700,"$81,700.",0,2020,ACIL ALLEN CONSULTING,Other consultants
2019–20,Department of Education and Training,GROSVENOR PERFORMANCE GROUP PTY LTD,Not specified,Skills Uplift pilot program evaluation,174391,"$174,391.",0,2020,GROSVENOR MANAGEMENT CONSULTING,Other consultants
2019–20,Department of Education and Training,Deloitte Touche Tohmatsu,Not specified,Kindergarten Infrastructure Program,340187,"$77,213.",0,2020,DELOITTE,"KPMG, PwC, EY, Deloitte"
2019–20,Department of Education and Training,GTA CONSULTANTS (VIC) PTY LTD,Not specified,Infrastructure and Planning – spatial access analysis,84394,"$21,098.",0,2020,GTA CONSULTANTS,Other consultants
2019–20,Department of Education and Training,GROSVENOR PERFORMANCE GROUP PTY LTD,Not specified,Development of a functional /operational regional accommodation strategy to more efficiently manage the Department’s regional office property portfolio,113636,"$80,077.",0,2020,GROSVENOR MANAGEMENT CONSULTING,Other consultants
2019–20,Department of Education and Training,BKE CONSULTING,Not specified,Data validation – Commonwealth School Resource Standard funding estimation tool,10000,"$10,000.",0,2020,BKE CONSULTING,Other consultants
2019–20,Department of Education and Training,FROMHEREON PTY LTD,Not specified,Child Link Journey Map pilot,118000,"$118,000.",0,2020,FROMHEREON PTY LTD,Other consultants
2019–20,Department of Education and Training,MARY JEAN GALLAGHER,Not specified,Expert review of the ongoing implementation of the Education State reforms,83655,"$83,655.",0,2020,MARY JEAN GALLAGHER,Other consultants
2019–20,Department of Education and Training,COLMAR BRUNTON PTY LIMITED,Not specified,Work related to the Safety at Work for School Staff initiative,22470,"$22,470.",0,2020,COLMAR BRUNTON PTY LIMITED,Other consultants
2019–20,Department of Education and Training,PRICEWATERHOUSECOOPERS CONSULTING AUSTRALIA PTY LIMITED,Not specified,Outside School Hours Care Demonstration Program evaluation,657694,"$205,124.",0,2020,PRICE WATERHOUSE COOPERS,"KPMG, PwC, EY, Deloitte"
2019–20,Department of Education and Training,PRICEWATERHOUSECOOPERS CONSULTING AUSTRALIA PTY LIMITED,Not specified,TAFE Brand and Marketing Strategy,90488,"$50,488.",0,2020,PRICE WATERHOUSE COOPERS,"KPMG, PwC, EY, Deloitte"
2019–20,Department of Education and Training,LEARNING FIRST GROUP PTY LTD,Not specified,Design and implementation of curriculum supports,135000,"$135,000.",0,2020,LEARNING FIRST GROUP PTY LTD,Other consultants
2019–20,Department of Education and Training,KPMG AUSTRALIA,Not specified,Evaluations of the Regional and Specialist Training Fund and Workforce Training Innovation Fund,80535,"$80,535.",0,2020,KPMG,"KPMG, PwC, EY, Deloitte"
2019–20,Department of Education and Training,DELOITTE ACCESS ECONOMICS,Not specified,Evaluation of the Learning Places Model,333680,"$102,120.",0,2020,DELOITTE,"KPMG, PwC, EY, Deloitte"
2018–19,Department of Education and Training,DANDOLO INTERNATIONAL PTY LTD,Not specified,Victorian Certificate of Education Offshore Pricing Review and Consultation Proposal,44619,"$44,619.",0,2019,DANDOLO PARTNERS,Other consultants
2018–19,Department of Education and Training,Deloitte Touche Tohmatsu,Not specified,Asset Strategy Evaluation,59195,"$59,195.",0,2019,DELOITTE,"KPMG, PwC, EY, Deloitte"
2018–19,Department of Education and Training,DANDOLO PARTNERS PTY LTD,Not specified,Evaluation of the Victorian Certificate of Education on a Northern Hemisphere Timetable Project,100000,"$62,946.",0,2019,DANDOLO PARTNERS,Other consultants
2018–19,Department of Education and Training,DANDOLO INTERNATIONAL PTY LTD,Not specified,An evaluation and report on of the first 12 months of operation of the Independent Office for School Dispute Resolution,86364,"$86,364.",0,2019,DANDOLO PARTNERS,Other consultants
2018–19,Department of Education and Training,PROTIVITI PTY LIMITED,Not specified,Undertake a risk assessment of current business processes in relation to Skills First eligibility assessments and enrolments.,18375,"$17,063.",0,2019,PROTIVITI PTY LIMITED,Other consultants
2018–19,Department of Education and Training,DELOITTE ACCESS ECONOMICS,Not specified,An independent evaluation of the Skills First reform,427273,"$425,819.",0,2019,DELOITTE,"KPMG, PwC, EY, Deloitte"
2018–19,Department of Education and Training,KPMG AUSTRALIA,Not specified,Governance Review,216256,"$216,256.",0,2019,KPMG,"KPMG, PwC, EY, Deloitte"
2018–19,Department of Education and Training,DELOITTE ACCESS ECONOMICS,Not specified,Evaluation of a lapsing program: The Apprenticeship Support Officer Program,89760,"$90,851.",0,2019,DELOITTE,"KPMG, PwC, EY, Deloitte"
2018–19,Department of Education and Training,DELOITTE CONSULTING PTY LIMITED,Not specified,Evaluate Victorian Curriculum and Assessment Authority functional testing processes in relation to the 2018 Joint Results Service project.,27500,"$27,500.",0,2019,DELOITTE,"KPMG, PwC, EY, Deloitte"
2018–19,Department of Education and Training,DELOITTE CONSULTING PTY LIMITED,Not specified,Review and validation of existing Skills First Audit and Assurance Program methodology,51800,"$51,800.",0,2019,DELOITTE,"KPMG, PwC, EY, Deloitte"
2018–19,Department of Education and Training,VICTORIA UNIVERSITY,Not specified,Building capability in the Victorian teaching workforce.,254700,"$254,700.",0,2019,VICTORIA UNIVERSITY,Other consultants
2018–19,Department of Education and Training,DR MARY JEAN GALLAGHER,Not specified,Provision of expert advice on the design and delivery of the Education State agenda,245455,"$110,455.",0,2019,DR MARY JEAN GALLAGHER,Other consultants
2018–19,Department of Education and Training,SUMMIT CONSULTING SOLUTIONS,Not specified,National Disability Insurance Scheme Early Childhood Intervention Services Funding Report proposal,44000,"$44,000.",0,2019,SUMMIT CONSULTING SOLUTIONS,Other consultants
2018–19,Department of Education and Training,KPMG AUSTRALIA,Not specified,Automotive Supply Chain Training Initiative Evaluation,80000,"$82,727.",0,2019,KPMG,"KPMG, PwC, EY, Deloitte"
2018–19,Department of Education and Training,KINETICA GROUP PTY LTD,Not specified,Victorian Teachers Games Consultancy Services,15500,"$15,500.",0,2019,KINETICA GROUP PTY LTD,Other consultants
2018–19,Department of Education and Training,DELOITTE ACCESS ECONOMICS,Not specified,Provision of a Review of Fees Charged under the International Student Program (ISP) in Victorian Government Schools,329023,"$74,895.",0,2019,DELOITTE,"KPMG, PwC, EY, Deloitte"
2018–19,Department of Education and Training,DELOITTE CONSULTING PTY LIMITED,Not specified,Insight Part A Options Analysis Report,41000,"$41,000.",0,2019,DELOITTE,"KPMG, PwC, EY, Deloitte"
2018–19,Department of Education and Training,ACIL Allen Consulting Pty Ltd,Not specified,Analysis of enrolments in Selective Entry High Schools,149117,"$149,118.",0,2019,ACIL ALLEN CONSULTING,Other consultants
2017–18,Department of Education and Training,Penny Armytage Pty Ltd,Not specified,To lead the review of VIT,58909,"$58,909.",0,2018,PENNY ARMYTAGE PTY LTD,Other consultants
2017–18,Department of Education and Training,SGS ECONOMICS AND PLANNING,Not specified,Government school strategic needs assessment,45217,"$45,217.",0,2018,SGS ECONOMICS & PLANNING PTY LTD,Other consultants
2017–18,Department of Education and Training,ACIL Allen Consulting Pty Ltd,Not specified,Market responsiveness and procurement approaches for delivering school readiness funding to kindergartens,136039,"$136,039.",0,2018,ACIL ALLEN CONSULTING,Other consultants
2017–18,Department of Education and Training,Ernst & Young,Not specified,Education products and services research and analysis (Phase 1).,365000,"$365,000.",0,2018,ERNST & YOUNG,"KPMG, PwC, EY, Deloitte"
2017–18,Department of Education and Training,ACIL Allen Consulting Pty Ltd,Not specified,"To provide advice on effective strategies, processes and approaches to increase Early Start Kindergarten (ESK) uptake.",69535,"$69,535.",0,2018,ACIL ALLEN CONSULTING,Other consultants
2017–18,Department of Education and Training,Vincent Chrisp and Partners Pty Ltd,Not specified,To undertake a site feasibility study and master plan for Federation Training’s Morwell campus to plan for future development on the site over the next 10 –15 years.,37000,"$37,000.",0,2018,VINCENT CHRISP AND PARTNERS PTY LTD,Other consultants
2017–18,Department of Education and Training,Ernst & Young,Not specified,Investigate options for the future of Kindergarten Information Management systems,222196,"$222,198.",0,2018,ERNST & YOUNG,"KPMG, PwC, EY, Deloitte"
2017–18,Department of Education and Training,PTR CONSULTING,Not specified,Broadening Horizons evaluation,115364,"$115,364.",0,2018,PTR CONSULTING,Other consultants
2017–18,Department of Education and Training,Ernst & Young,Not specified,"To conduct a strategic review and planning of employee health, safety and wellbeing functions",188636,"$192,830.",0,2018,ERNST & YOUNG,"KPMG, PwC, EY, Deloitte"
2017–18,Department of Education and Training,Melbourne Studio Pty Ltd,Not specified,Provision of expert advice on substantive issues of strategic reform and implementation to support progress towards Victoria’s Education State targets,64000,"$60,000.",0,2018,MELBOURNE STUDIO PTY LTD,Other consultants
2017–18,Department of Education and Training,Dandolo Partners,Not specified,Evaluation of the performance and development approach (2014–17) in Victorian Government schools,310359,"$310,359.",0,2018,DANDOLO PARTNERS,Other consultants
2017–18,Department of Education and Training,VICTORIA UNIVERSITY,Not specified,Options analysis – Family Assistance Model (FAM).,135510,"$108,408.",0,2018,VICTORIA UNIVERSITY,Other consultants
2017–18,Department of Education and Training,KPMG,Not specified,"Analysis and advice – structuring, delivering and implementing and alternative school construction methods.",117000,"$117,000.",0,2018,KPMG,"KPMG, PwC, EY, Deloitte"
2017–18,Department of Education and Training,Navire Advisory Pty Ltd,Not specified,Strategic advice–establish area government school investment plan,83475,"$83,475.",0,2018,NAVIRE ADVISORY PTY LTD,Other consultants
2017–18,Department of Education and Training,Nous Group Pty Ltd,Not specified,Work to support and inform how we deliver on the NDIS workforce strategy,124000,"$31,637.",0,2018,NOUS GROUP PTY LTD,Other consultants
2017–18,Department of Education and Training,Nous Group Pty Ltd,Not specified,To conduct a due diligence review into arrangements for early childhood education and care regulation.,158727,"$158,727.",0,2018,NOUS GROUP PTY LTD,Other consultants
2017–18,Department of Education and Training,PricewaterhouseCoopers (PwC),Not specified,To review and develop standards for TAFE Community Service Obligations.,131835,"$127,443.",0,2018,PRICE WATERHOUSE COOPERS,"KPMG, PwC, EY, Deloitte"
2017–18,Department of Education and Training,Nous Group Pty Ltd,Not specified,Business Analysis of critical business functions and development of options to strengthen alignment with Department priorities.,93773,"$93,772.",0,2018,NOUS GROUP PTY LTD,Other consultants
2017–18,Department of Education and Training,PricewaterhouseCoopers (PwC),Not specified,Kindergarten payroll system review,59772,"$59,772.",0,2018,PRICE WATERHOUSE COOPERS,"KPMG, PwC, EY, Deloitte"
2017–18,Department of Education and Training,Nous Group Pty Ltd,Not specified,To undertake research to get a better understanding on what is quality in work placements for NDIS.,128705,"$118,703.",0,2018,NOUS GROUP PTY LTD,Other consultants
2017–18,Department of Education and Training,KPMG,Not specified,Professional services related to the production of a Learning gain discussion paper,37654,"$37,654.",0,2018,KPMG,"KPMG, PwC, EY, Deloitte"
2017–18,Department of Education and Training,KPMG,Not specified,To develop the investment and evaluation criteria to inform investment in place–based infrastructure education,50655,"$50,655.",0,2018,KPMG,"KPMG, PwC, EY, Deloitte"
2017–18,Department of Education and Training,KPMG,Not specified,"Provision of a contemporary, end to end incident management framework",284513,"$284,513.",0,2018,KPMG,"KPMG, PwC, EY, Deloitte"
2017–18,Department of Education and Training,Deloitte,Not specified,Development of the Phase 1 Child Information Sharing Regulatory Impact Statement. Regulatory Impact Statement (RIS) acceptable to the Officer of the Commissioner for Better Regulation,81641,"$81,641.",0,2018,DELOITTE,"KPMG, PwC, EY, Deloitte"
2017–18,Department of Education and Training,Brand Business Pty Ltd,Not specified,To conduct market research and analysis to identify information needs and available channels and platforms (National Disability Insurance Scheme Priority 8 Promoting the Sector).,111900,"$74,474.",0,2018,BRAND BUSINESS PTY LTD,Other consultants
2017–18,Department of Education and Training,Nous Group Pty Ltd,Not specified,To undertake the first phase of work on Priority 4C – Collaborative work placements for the National Disability Insurance Scheme (NDIS) workforce.,92500,"$9,250.",0,2018,NOUS GROUP PTY LTD,Other consultants
2017–18,Department of Education and Training,KPMG,Not specified,Supporting (secretariat) the lead reviewer of the Victorian Institute of Teaching (VIT),256109,"$256,109.",0,2018,KPMG,"KPMG, PwC, EY, Deloitte"
2017–18,Department of Education and Training,KPMG,Not specified,"Conditions of Connection – Framework and Resources – finalising the draft framework, testing with stakeholders and deliver stakeholder information and fact sheets.",120017,"$120,075.",0,2018,KPMG,"KPMG, PwC, EY, Deloitte"
2017–18,Department of Education and Training,The Social Research Centre,Not specified,To assist the Department in its understanding of family and provider views of kindergarten that contribute to participation and capacity,259674,"$186,205.",0,2018,THE SOCIAL RESEARCH CENTRE,Other consultants
2017–18,Department of Education and Training,KPMG,Not specified,Infrastructure and Finance Services Group options analysis – corporate functions and expenditure,349660,"$349,660.",0,2018,KPMG,"KPMG, PwC, EY, Deloitte"
2017–18,Department of Education and Training,DELOITTE ACCESS ECONOMICS,Not specified,"To research, develop and provide a functional needs–based resource allocation model for students with disability for trial, further development and implementation.",587568,"$586,716.37",0,2018,DELOITTE,"KPMG, PwC, EY, Deloitte"
2017–18,Department of Education and Training,Cube Group,Not specified,Privacy and information security process review,24640,"$24,640.",0,2018,CUBE GROUP MANAGEMENT CONSULTING,Other consultants
2017–18,Department of Education and Training,Accelerated Knowledge Technologies Pty Ltd,Not specified,Support strategic policy alignment,51000,"$41,650.",0,2018,ACCELERATED KNOWLEDGE TECHNOLOGIES PTY LTD,Other consultants
2017–18,Department of Education and Training,DELOITTE ACCESS ECONOMICS,Not specified,Modelling to support school funding reform proposals,118000,"$118,000.",0,2018,DELOITTE,"KPMG, PwC, EY, Deloitte"
2017–18,Department of Education and Training,Deloitte Touche Tohmatsu,Not specified,Review of operational arrangements for school education programs managed centrally,223500,"$223,500.",0,2018,DELOITTE,"KPMG, PwC, EY, Deloitte"
2017–18,Department of Education and Training,Deloitte Touche Tohmatsu,Not specified,A feasibility study recommending options to enhance the Schools Connect Portal.,100000,"$100,000.",0,2018,DELOITTE,"KPMG, PwC, EY, Deloitte"
2017–18,Department of Education and Training,AURECON AUSTRALASIA PTY LTD,Not specified,To undertake a review of school design specifications and conduct an evaluation of the effectiveness of ecologically sustainable design (ESD) measures – Ecologically Sustainable Design Building Specifications – Building Quality Standards Handbook (BQSH) review,86620,"$66,180.",0,2018,AURECON,Other consultants
2017–18,Department of Education and Training,Deloitte Touche Tohmatsu,Not specified,Strategic advice and assessment of options for school funding administration and oversight,90082,"$90,082.",0,2018,DELOITTE,"KPMG, PwC, EY, Deloitte"
2017–18,Department of Education and Training,Accelerated Knowledge Technologies Pty Ltd,Not specified,To provide advice in the design of strategic policy alignment,17000,"$17,000.",0,2018,ACCELERATED KNOWLEDGE TECHNOLOGIES PTY LTD,Other consultants
2017–18,Department of Education and Training,KPMG,Not specified,To report on proposed enhancements to the framework for existing cleaning contracting arrangements in schools,135909,"$135,909.",0,2018,KPMG,"KPMG, PwC, EY, Deloitte"
2017–18,Department of Education and Training,DELOITTE ACCESS ECONOMICS,Not specified,Modelling to support school funding reform analysis,88869,"$88,869.",0,2018,DELOITTE,"KPMG, PwC, EY, Deloitte"
2017–18,Department of Education and Training,Deloitte Touche Tohmatsu,Not specified,Asset Maintenance System reform – discovery phase,46889,"$46,889.",0,2018,DELOITTE,"KPMG, PwC, EY, Deloitte"
2017–18,Department of Education and Training,KPMG,Not specified,Provision of advice to assist with strategic projects,179643,"$177,854.",0,2018,KPMG,"KPMG, PwC, EY, Deloitte"
2017–18,Department of Education and Training,DELOITTE ACCESS ECONOMICS,Not specified,Evaluation of the ACFE Board's pre–accredited grant allocation and contracted process.,146088,"$143,814.",0,2018,DELOITTE,"KPMG, PwC, EY, Deloitte"
2017–18,Department of Education and Training,Deloitte Touche Tohmatsu,Not specified,Asset Maintenance System reform – ILM and options assessment,167273,"$167,273.",0,2018,DELOITTE,"KPMG, PwC, EY, Deloitte"
2017–18,"Department of Economic Development, Jobs, Transport and Resources",DATA AGILITY,Not specified,Technology,80000,"$80,000.",0,2018,DATA AGILITY,Other consultants
2017–18,"Department of Economic Development, Jobs, Transport and Resources",SALESFORCE,Not specified,IT & Telecoms Services,309506,"$309,506.",0,2018,SALESFORCE,Other consultants
2017–18,"Department of Economic Development, Jobs, Transport and Resources",COX ARCHITECTURE PTY LTD,Not specified,"Utilities, Property & Land Services",331070,"$231,070.",0,2018,COX ARCHITECTURE PTY LTD,Other consultants
2017–18,"Department of Economic Development, Jobs, Transport and Resources",SYSTEM PARTNERS PTY LTD,Not specified,IT & Telecoms Services,690376,"$690,376.",0,2018,SYSTEM PARTNERS PTY LTD,Other consultants
2017–18,"Department of Economic Development, Jobs, Transport and Resources",CONGA,Not specified,IT & Telecoms Services,42206,"$42,206.",0,2018,CONGA,Other consultants
2017–18,"Department of Economic Development, Jobs, Transport and Resources",FEEDLOT SERVICES AUSTRALIA PTY LTD,Not specified,Scientific Research Services,220250,"$21,625.",0,2018,FEEDLOT SERVICES AUSTRALIA PTY LTD,Other consultants
2017–18,"Department of Economic Development, Jobs, Transport and Resources",INSTINCT AND REASON PTY LTD,Not specified,Scientific Research Services,28000,"$28,000.",0,2018,INSTINCT AND REASON PTY LTD,Other consultants
2017–18,"Department of Economic Development, Jobs, Transport and Resources",INSTINCT AND REASON PTY LTD,Not specified,Scientific Research Services,40000,"$40,000.",0,2018,INSTINCT AND REASON PTY LTD,Other consultants
2017–18,"Department of Economic Development, Jobs, Transport and Resources",TOXCONSULT PTY LTD,Not specified,Scientific Research Services,120616,"$24,480.",0,2018,TOXCONSULT PTY LTD,Other consultants
2017–18,"Department of Economic Development, Jobs, Transport and Resources",MAPANYTHING,Not specified,IT & Telecoms Services,54886,"$54,886.",0,2018,MAPANYTHING,Other consultants
2019–20,Department of Transport,MEDIA LIGHT PTY LTD,Not specified,Human resources services,120875,"$120,875.",0,2020,MEDIA LIGHT PTY LTD,Other consultants
2018–19,Department of Transport,THE CUSTOMER EXPERIENCE COMPANY PTY LTD,Not specified,"Marketing, Materials & Design Services",175454,"$175,454.",0,2019,THE CUSTOMER EXPERIENCE COMPANY PTY LTD,Other consultants
2018–19,Department of Transport,BRAVE TV PTY LTD,Not specified,"Marketing, Materials & Design Services",68000,"$20,900.",0,2019,BRAVE TV PTY LTD,Other consultants
2018–19,Department of Transport,XR ELEMENTS PTY LTD,Not specified,"IT & Telecoms Services",73200,"$73,200.",0,2019,XR ELEMENTS PTY LTD,Other consultants
2018–19,Department of Transport,XR ELEMENTS PTY LTD,Not specified,IT & Telecoms,64724,"$64,724.",0,2019,XR ELEMENTS PTY LTD,Other consultants
2018–19,Department of Transport,CLE CONSULTING AUSTRALIA,Not specified,Human resources services,45418,"$45,418.",0,2019,CLE CONSULTING AUSTRALIA,Other consultants
2018–19,Department of Transport,JACOBS GROUP (AUSTRALIA) PTY LTD,Not specified,Scientific Research,61385,"$3,597.",0,2019,JACOBS GROUP (AUSTRALIA) PTY LTD,Other consultants
2018–19,Department of Transport,WISE WORKPLACE SOLUTIONS,Not specified,"Human Resource services",12021,"$12,021.",0,2019,WISE WORKPLACE SOLUTIONS,Other consultants
2018–19,Department of Transport,SYSTEM PARTNERS PTY LTD,Not specified,"IT & Telecoms Services",24750,"$24,750.",0,2019,SYSTEM PARTNERS PTY LTD,Other consultants
2018–19,Department of Transport,SYSTEM PARTNERS PTY LTD,Not specified,"IT & Telecoms Services",72600,"$72,600.",0,2019,SYSTEM PARTNERS PTY LTD,Other consultants
2018–19,Department of Transport,SYSTEM PARTNERS PTY LTD,Not specified,"IT & Telecoms Services",32000,"$32,000.",0,2019,SYSTEM PARTNERS PTY LTD,Other consultants
2018–19,Department of Transport,SYSTEM PARTNERS PTY LTD,Not specified,"IT & Telecoms Services",31425,"$31,425.",0,2019,SYSTEM PARTNERS PTY LTD,Other consultants
2017–18,Department of Health and Human Services,The University of Melbourne,Not specified,"Independent analysis, health data",43636,"$43,636.",0,2018,UNIVERSITY OF MELBOURNE,Other consultants
2017–18,Department of Health and Human Services,Elizabeth Armitage,Not specified,"Review, administrative support, child protection, North",27273,"$18,153.",0,2018,ELIZABETH ARMITAGE,Other consultants
2017–18,Department of Health and Human Services,The University of Melbourne,Not specified,"Project, promoting consumer rights",27273,"$27,273.",0,2018,UNIVERSITY OF MELBOURNE,Other consultants
2017–18,Department of Health and Human Services,Enviropax Pty Ltd,Not specified,"Develop, new Bendigo Hospital contract administration manual",45000,"$45,000.",0,2018,ENVIROPAX PTY LTD,Other consultants
2017–18,Department of Health and Human Services,University of Technology Sydney,Not specified,"Independent review, accreditation systems",406701,"$174,301.",0,2018,UNIVERSITY OF TECHNOLOGY SYDNEY,Other consultants
2017–18,Department of Health and Human Services,University of New South Wales,Not specified,"Research, delivering better cardiac outcomes",178182,"$178,181.",0,2018,UNIVERSITY OF NEW SOUTH WALES,Other consultants
2017–18,Department of Health and Human Services,The University of Melbourne,Not specified,"Develop, model for family violence practice, child protection",93750,"$93,750.",0,2018,UNIVERSITY OF MELBOURNE,Other consultants
2017–18,Department of Health and Human Services,Effective Change Pty Ltd,Not specified,Flexible packages evaluation,128450,"$38,432.",0,2018,EFFECTIVE CHANGE PTY LTD,Other consultants
2017–18,Department of Health and Human Services,Changeworks Consulting,Not specified,"Develop change management strategy, Client Incident Management System",224423,"$115,925.",0,2018,CHANGEWORKS CONSULTING,Other consultants
2017–18,Department of Health and Human Services,Biruu Pty Ltd,Not specified,"Business case, State Sport Centres Trust",67665,"$67,665.",0,2018,BIRUU,Other consultants
2017–18,Department of Health and Human Services,Third Horizon Consulting Pty Ltd,Not specified,"Design, validate and implement planning, organisational redesign, phase 2",2122490,"$1,552,203.",0,2018,THIRD HORIZON CONSULTING PTY LTD,Other consultants
2017–18,Department of Health and Human Services,The Boston Consulting Group Pty Ltd,Not specified,"Review, value based health care",136364,"$136,364.",0,2018,BOSTON CONSULTING GROUP,Other consultants
2017–18,Department of Health and Human Services,Brain Injury Australia,Not specified,"Review, prevalence and interventions, acquired brain injury",263500,"$265,879.",0,2018,BRAIN INJURY AUSTRALIA,Other consultants
2017–18,Department of Health and Human Services,Career Education Association of Victoria,Not specified,"Resume template and guidelines improvement project, Philanthropy Australia",17200,"$17,200.",0,2018,CAREER EDUCATION ASSOCIATION OF VICTORIA,Other consultants
2017–18,Department of Health and Human Services,Third Horizon Consulting Pty Ltd,Not specified,"Project management office, establishment and delivery, organisational redesign",74093,"$74,091.",0,2018,THIRD HORIZON CONSULTING PTY LTD,Other consultants
2017–18,Department of Health and Human Services,Urbis Pty Ltd,Not specified,"Undertake ‘As If’ project, Bendigo and District Aboriginal Co–operative",65240,"$28,876.",0,2018,URBIS PTY LTD,Other consultants
2017–18,Department of Health and Human Services,Ernst & Young,Not specified,"Review, historical WorkCover assessments",60060,"$60,431.",0,2018,ERNST & YOUNG,"KPMG, PwC, EY, Deloitte"
2017–18,Department of Health and Human Services,Ernst & Young,Not specified,"Accreditation, integrated authority",30273,"$30,100.",0,2018,ERNST & YOUNG,"KPMG, PwC, EY, Deloitte"
2017–18,Department of Health and Human Services,Ernst & Young,Not specified,"Review, Bendigo Health digital medical records",68877,"$68,877.",0,2018,ERNST & YOUNG,"KPMG, PwC, EY, Deloitte"
2017–18,Department of Health and Human Services,Ernst & Young,Not specified,"Review, child protection learning and development program",250000,"$252,722.",0,2018,ERNST & YOUNG,"KPMG, PwC, EY, Deloitte"
2017–18,Department of Health and Human Services,Ernst & Young,Not specified,"Advice, evaluation framework, housing interventions",207657,"$124,594.",0,2018,ERNST & YOUNG,"KPMG, PwC, EY, Deloitte"
2017–18,Department of Health and Human Services,Ernst & Young,Not specified,"Review, Victorian Institute of Sport",200925,"$26,255.",0,2018,ERNST & YOUNG,"KPMG, PwC, EY, Deloitte"
2017–18,Department of Health and Human Services,Centre for Evidence and Implementation,Not specified,"Develop, framework for evidence–based practices",84442,"$86,743.",0,2018,CENTRE FOR EVIDENCE AND IMPLEMENTATION,Other consultants
2017–18,Department of Health and Human Services,Ernst & Young,Not specified,"Redevelopment, forensic mental health bed–based services",144687,"$144,687.",0,2018,ERNST & YOUNG,"KPMG, PwC, EY, Deloitte"
2017–18,Department of Health and Human Services,Ernst & Young,Not specified,"Develop, framework, transforming health and human services workforce",144268,"$104,029.",0,2018,ERNST & YOUNG,"KPMG, PwC, EY, Deloitte"
2017–18,Department of Health and Human Services,Ernst & Young,Not specified,"Develop, workforce strategy, child protection",142011,"$142,240.",0,2018,ERNST & YOUNG,"KPMG, PwC, EY, Deloitte"
2017–18,Department of Health and Human Services,Centre for Excellence in Child and Family Welfare Inc,Not specified,"Develop support and materials, Loddon Children and Youth Area Partnership member agencies",46780,"$37,424.",0,2018,CENTRE FOR EXCELLENCE IN CHILD & FAMILY WELFARE INC,Other consultants
2017–18,Department of Health and Human Services,Ernst & Young,Not specified,"Review, high–performance athlete programs",129128,"$122,672.",0,2018,ERNST & YOUNG,"KPMG, PwC, EY, Deloitte"
2017–18,Department of Health and Human Services,Ernst & Young,Not specified,"Review, thunderstorm asthma program",118131,"$118,131.",0,2018,ERNST & YOUNG,"KPMG, PwC, EY, Deloitte"
2017–18,Department of Health and Human Services,Ernst & Young,Not specified,"Develop, change management and communication plan",85000,"$17,000.",0,2018,ERNST & YOUNG,"KPMG, PwC, EY, Deloitte"
2017–18,Department of Health and Human Services,Ernst & Young,Not specified,"Review, IT resilience process improvement",82537,"$82,622.",0,2018,ERNST & YOUNG,"KPMG, PwC, EY, Deloitte"
2017–18,Department of Health and Human Services,Changesmith Consulting,Not specified,"Evaluate, Strengthening Seniors Inclusion and Participation in Local Communities project",136136,"$80,114.",0,2018,CHANGESMITH CONSULTING,Other consultants
2017–18,Department of Health and Human Services,Ernst & Young,Not specified,"Business case, specialist disability accommodation funding",79739,"$79,739.",0,2018,ERNST & YOUNG,"KPMG, PwC, EY, Deloitte"
2017–18,Department of Health and Human Services,Crondar Pty Ltd,Not specified,"Define progress measures, public health and wellbeing plan",248053,"$98,903.",0,2018,CRONDAR PTY LTD,Other consultants
2017–18,Department of Health and Human Services,Dr Shelley Bowen,Not specified,"Codesign, new place–based central highlands prevention platform",31500,"$31,553.",0,2018,DR SHELLEY BOWEN,Other consultants
2017–18,Department of Health and Human Services,Cube Group Management Consulting,Not specified,"Evaluate, training for assessing and responding to family violence",139743,"$139,743.",0,2018,CUBE GROUP MANAGEMENT CONSULTING,Other consultants
2017–18,Department of Health and Human Services,Cube Group Management Consulting,Not specified,"Strategic service plan, Albury Wodonga Health",166925,"$79,925.",0,2018,CUBE GROUP MANAGEMENT CONSULTING,Other consultants
2017–18,Department of Health and Human Services,Cube Group Management Consulting,Not specified,"Review, state health emergency response arrangements",374338,"$65,166.",0,2018,CUBE GROUP MANAGEMENT CONSULTING,Other consultants
2017–18,Department of Health and Human Services,Cube Group Management Consulting,Not specified,"Project manage, establishment of the family violence prevention agency",43636,"$43,636.",0,2018,CUBE GROUP MANAGEMENT CONSULTING,Other consultants
2017–18,Department of Health and Human Services,Deloitte Touche Tohmatsu,Not specified,"Develop, discussion paper of Rural Health Plan",178184,"$21,646.",0,2018,DELOITTE,"KPMG, PwC, EY, Deloitte"
2017–18,Department of Health and Human Services,Deloitte Touche Tohmatsu,Not specified,"Develop, finance operating model",136275,"$136,336.",0,2018,DELOITTE,"KPMG, PwC, EY, Deloitte"
2017–18,Department of Health and Human Services,Deloitte Touche Tohmatsu,Not specified,"Review, fostering connections",118307,"$118,307.",0,2018,DELOITTE,"KPMG, PwC, EY, Deloitte"
2017–18,Department of Health and Human Services,Third Horizon Consulting Pty Ltd,Not specified,"Modelling, options for future regional operations",443853,"$443,853.",0,2018,THIRD HORIZON CONSULTING PTY LTD,Other consultants
2017–18,Department of Health and Human Services,Deloitte Touche Tohmatsu,Not specified,"Reporting, NDIS workforce",40909,"$40,909.",0,2018,DELOITTE,"KPMG, PwC, EY, Deloitte"
2017–18,Department of Health and Human Services,Cube Group Management Consulting,Not specified,"Review, Mental Health Professional Online Development project",138900,"$138,900.",0,2018,CUBE GROUP MANAGEMENT CONSULTING,Other consultants
2017–18,Department of Health and Human Services,Deloitte Touche Tohmatsu,Not specified,"Review, public housing tenants transfer",44616,"$44,616.",0,2018,DELOITTE,"KPMG, PwC, EY, Deloitte"
2017–18,Department of Health and Human Services,Deloitte Touche Tohmatsu,Not specified,"Legislative impact assessment, real–time prescription monitoring",122664,"$56,936.",0,2018,DELOITTE,"KPMG, PwC, EY, Deloitte"
2017–18,Department of Health and Human Services,Dandolo Partners,Not specified,"Review, health technology accelerator",150000,"$150,000.",0,2018,DANDOLO PARTNERS,Other consultants
2017–18,Department of Health and Human Services,Deloitte Touche Tohmatsu,Not specified,"Review, Children, Families, Disability and Operations prioritisation",125435,"$126,778.",0,2018,DELOITTE,"KPMG, PwC, EY, Deloitte"
2017–18,Department of Health and Human Services,Deloitte Touche Tohmatsu,Not specified,"Support, NDIS disability justice planning program",130036,"$92,109.",0,2018,DELOITTE,"KPMG, PwC, EY, Deloitte"
2017–18,Department of Health and Human Services,Deloitte Touche Tohmatsu,Not specified,"Financial modelling and advice, medicinal cannabis and hardship scheme",133306,"$33,327.",0,2018,DELOITTE,"KPMG, PwC, EY, Deloitte"
2017–18,Department of Health and Human Services,Deloitte Touche Tohmatsu,Not specified,"Review, Victorian healthcare experience program",135147,"$135,147.",0,2018,DELOITTE,"KPMG, PwC, EY, Deloitte"
2017–18,Department of Health and Human Services,Deloitte Touche Tohmatsu,Not specified,"Develop, finance operating structure",135493,"$135,532.",0,2018,DELOITTE,"KPMG, PwC, EY, Deloitte"
2017–18,Department of Health and Human Services,Deloitte Touche Tohmatsu,Not specified,"Undertake, Community and Social Services Futures Project",135535,"$13,900.",0,2018,DELOITTE,"KPMG, PwC, EY, Deloitte"
2017–18,Department of Health and Human Services,Data Agility Pty Ltd,Not specified,"Develop supporting materials, community–based health streamlining pilot project",60527,"$48,527.",0,2018,DATA AGILITY,Other consultants
2017–18,Department of Health and Human Services,Deakin University,Not specified,"Develop, online occupational violence training program",81675,"$81,675.",0,2018,DEAKIN UNIVERSITY,Other consultants
2017–18,Department of Health and Human Services,Deloitte Touche Tohmatsu,Not specified,"Review, visitors and independent third persons programs",90413,"$91,064.",0,2018,DELOITTE,"KPMG, PwC, EY, Deloitte"
2017–18,Department of Health and Human Services,Cube Group Management Consulting,Not specified,"Develop mental health and community health strategic services plan, Albury Wodonga Health",127600,"$127,600.",0,2018,CUBE GROUP MANAGEMENT CONSULTING,Other consultants
2017–18,Department of Health and Human Services,Cube Group Management Consulting,Not specified,"Business case, Albury Wodonga Health emergency department",81635,"$81,635.",0,2018,CUBE GROUP MANAGEMENT CONSULTING,Other consultants
2017–18,Department of Health and Human Services,Cube Group Management Consulting,Not specified,"Business case, Latrobe regional hospital stage 2b",80191,"$80,191.",0,2018,CUBE GROUP MANAGEMENT CONSULTING,Other consultants
2017–18,Department of Health and Human Services,Converge International,Not specified,Undertake workplace wellbeing assessment,23050,"$23,050.",0,2018,CONVERGE INTERNATIONAL,Other consultants
2017–18,Department of Health and Human Services,Dr Douglas George Travis,Not specified,"Advice, establishment of Safer Care Victoria",511091,"$167,333.",0,2018,DR DOUGLAS GEORGE TRAVIS,Other consultants
2017–18,Department of Health and Human Services,Converge International,Not specified,Workplace wellbeing assessment,17000,"$17,000.",0,2018,CONVERGE INTERNATIONAL,Other consultants
2017–18,Department of Health and Human Services,Two Black Dogs,Not specified,"Develop, stakeholder engagement strategy, estates redevelopment",24288,"$13,464.",0,2018,TWO BLACK DOGS,Other consultants
2017–18,Department of Health and Human Services,Crondar Pty Ltd,Not specified,"Develop measures, Victorian cancer plan monitoring and evaluation framework",149344,"$67,082.",0,2018,CRONDAR PTY LTD,Other consultants
2017–18,Department of Health and Human Services,Cube Group Management Consulting,Not specified,"Develop, investment logic map, central information point, family violence",11000,"$11,000.",0,2018,CUBE GROUP MANAGEMENT CONSULTING,Other consultants
2017–18,Department of Health and Human Services,Cube Group Management Consulting,Not specified,"Evaluate, Engage! 2015–17 program",45440,"$45,440.",0,2018,CUBE GROUP MANAGEMENT CONSULTING,Other consultants
2017–18,Department of Health and Human Services,Cube Group Management Consulting,Not specified,"Develop, master plan, reform projects, Royal Commission into Family Violence",62000,"$30,408.",0,2018,CUBE GROUP MANAGEMENT CONSULTING,Other consultants
2017–18,Department of Health and Human Services,Quantium Health Pty Ltd,Not specified,"Develop, clinical registry strategy",257920,"$220,440.",0,2018,QUANTIUM HEALTH PTY LTD,Other consultants
2017–18,Department of Health and Human Services,Dimension Data Australia Pty Ltd,Not specified,"Review, Victorian Health Incident Management System",697188,"$548,116.",0,2018,DIMENSION DATA AUSTRALIA PTY LTD,Other consultants
2017–18,Department of Health and Human Services,Deloitte Consulting Pty Ltd,Not specified,"Evaluation, Better Care Victoria Board",15000,"$15,000.",0,2018,DELOITTE,"KPMG, PwC, EY, Deloitte"
2017–18,Department of Health and Human Services,Deloitte Consulting Pty Ltd,Not specified,"Develop integration and interoperability strategy, between department, agencies and sector partners",187170,"$124,780.",0,2018,DELOITTE,"KPMG, PwC, EY, Deloitte"
2017–18,Department of Health and Human Services,Cube Group Management Consulting,Not specified,"Business case, West Gippsland Healthcare Group",80009,"$80,009.",0,2018,CUBE GROUP MANAGEMENT CONSULTING,Other consultants
2017–18,Department of Health and Human Services,Deloitte Touche Tohmatsu,Not specified,"Review, cost mapping, business improvements",519722,"$519,720.",0,2018,DELOITTE,"KPMG, PwC, EY, Deloitte"
2017–18,Department of Health and Human Services,Communications Design & Management Pty Ltd,Not specified,"Strategy, department–wide cyber security",43450,"$43,704.",0,2018,COMMUNICATIONS DESIGN & MANAGEMENT PTY LTD,Other consultants
2017–18,Department of Health and Human Services,Deloitte Touche Tohmatsu,Not specified,"Develop, strategy requirements framework, major sporting stadia",500711,"$206,243.",0,2018,DELOITTE,"KPMG, PwC, EY, Deloitte"
2017–18,Department of Health and Human Services,Deloitte Touche Tohmatsu,Not specified,"Develop operating model, emergency management response, relief and recovery",244837,"$72,637.",0,2018,DELOITTE,"KPMG, PwC, EY, Deloitte"
2017–18,Department of Health and Human Services,Cube Group Management Consulting,Not specified,"Research, health emergency public information and warnings",72476,"$72,476.",0,2018,CUBE GROUP MANAGEMENT CONSULTING,Other consultants
2017–18,Department of Health and Human Services,Dench McClean Carlson Pty Ltd,Not specified,"Economic impact study, Colanda Residential Services",24840,"$24,840.",0,2018,DENCH MCCLEAN CARLSON PTY LTD,Other consultants
2017–18,Department of Health and Human Services,Dialog Information Technology,Not specified,"Business analysis support, multiple information technology projects",201145,"$114,263.",0,2018,DIALOG INFORMATION TECHNOLOGY,Other consultants
2017–18,Department of Health and Human Services,Third Horizon Consulting Pty Ltd,Not specified,"Design support, Operations Division",135404,"$80,341.",0,2018,THIRD HORIZON CONSULTING PTY LTD,Other consultants
2017–18,Department of Health and Human Services,IPSOS,Not specified,"Design, survey and collection methods, supported residential service",86800,"$86,800.",0,2018,IPSOS PUBLIC AFFAIRS PTY LTD,Other consultants
2017–18,Department of Health and Human Services,Monash University,Not specified,"Literature review, potential health effects of perfluoroalkyl compounds",34134,"$16,254.",0,2018,MONASH UNIVERSITY,Other consultants
2017–18,Department of Health and Human Services,Myriad International Consulting Services Pty Ltd,Not specified,"Develop, diversity and inclusion strategy agreement",41500,"$41,500.",0,2018,MYRIAD INTERNATIONAL CONSULTING SERVICES PTY LTD,Other consultants
2017–18,Department of Health and Human Services,Navigating Outcomes,Not specified,"Develop, data collection materials, community services",42900,"$18,622.",0,2018,NAVIGATING OUTCOMES,Other consultants
2017–18,Department of Health and Human Services,Price Waterhouse Coopers,Not specified,"Review, patient waiting list",472636,"$138,076.",0,2018,PRICE WATERHOUSE COOPERS,"KPMG, PwC, EY, Deloitte"
2017–18,Department of Health and Human Services,Price Waterhouse Coopers,Not specified,"Review, portable long service leave fund, community sector",144873,"$139,481.",0,2018,PRICE WATERHOUSE COOPERS,"KPMG, PwC, EY, Deloitte"
2017–18,Department of Health and Human Services,Price Waterhouse Coopers,Not specified,"Health check, sport and recreation grant management",31473,"$23,400.",0,2018,PRICE WATERHOUSE COOPERS,"KPMG, PwC, EY, Deloitte"
2017–18,Department of Health and Human Services,Siggins Miller Consultants,Not specified,"Evaluate, Better Care Victoria",146948,"$137,613.",0,2018,SIGGINS MILLER CONSULTANTS,Other consultants
2017–18,Department of Health and Human Services,Nous Group Pty Ltd,Not specified,"Review, implementation of Chief Health Officer",70750,"$21,172.",0,2018,NOUS GROUP PTY LTD,Other consultants
2017–18,Department of Health and Human Services,Nous Group Pty Ltd,Not specified,"Cost–benefit analysis, centralised registration system, Food Act",68909,"$19,000.",0,2018,NOUS GROUP PTY LTD,Other consultants
2017–18,Department of Health and Human Services,Nous Group Pty Ltd,Not specified,"Advise and support, communications and media restructure",68759,"$14,474.",0,2018,NOUS GROUP PTY LTD,Other consultants
2017–18,Department of Health and Human Services,Nous Group Pty Ltd,Not specified,"Stakeholder consultation, development of gender equality legislation",60264,"$60,024.",0,2018,NOUS GROUP PTY LTD,Other consultants
2017–18,Department of Health and Human Services,Nous Group Pty Ltd,Not specified,"Develop, thematic framework",56818,"$57,920.",0,2018,NOUS GROUP PTY LTD,Other consultants
2017–18,Department of Health and Human Services,Nous Group Pty Ltd,Not specified,"Review, efficacy of detection and apprehension systems, missing young people",50555,"$50,822.",0,2018,NOUS GROUP PTY LTD,Other consultants
2017–18,Department of Health and Human Services,Nous Group Pty Ltd,Not specified,"Review, processes for briefings",38182,"$38,471.",0,2018,NOUS GROUP PTY LTD,Other consultants
2017–18,Department of Health and Human Services,Nous Group Pty Ltd,Not specified,"Develop, work plan, child and family reform",37205,"$37,196.",0,2018,NOUS GROUP PTY LTD,Other consultants
2017–18,Department of Health and Human Services,Monash University,Not specified,"Research project, Partnering in Healthcare",58432,"$58,432.",0,2018,MONASH UNIVERSITY,Other consultants
2017–18,Department of Health and Human Services,Nous Group Pty Ltd,Not specified,"Develop, governance, multiagency client coordination",72000,"$72,000.",0,2018,NOUS GROUP PTY LTD,Other consultants
2017–18,Department of Health and Human Services,Monash University,Not specified,"Review, men’s behaviour change minimum standards",89619,"$14,688.",0,2018,MONASH UNIVERSITY,Other consultants
2017–18,Department of Health and Human Services,Monash University,Not specified,"Develop, health and safety monitoring system, health sector",219854,"$151,170.",0,2018,MONASH UNIVERSITY,Other consultants
2017–18,Department of Health and Human Services,LW Corporate Services,Not specified,"Support, enterprise bargaining agreement",48000,"$48,035.",0,2018,LW CORPORATE SERVICES,Other consultants
2017–18,Department of Health and Human Services,Market Solutions,Not specified,"Evaluation, student placement planning process 2017",21325,"$21,325.",0,2018,MARKET SOLUTIONS,Other consultants
2017–18,Department of Health and Human Services,Marsden Jacob Associates,Not specified,"Evaluate, Significant Sporting Events program",62000,"$62,000.",0,2018,MARSDEN JACOB ASSOCIATES,Other consultants
2017–18,Department of Health and Human Services,Marsden Jacob Associates,Not specified,"Social and economic cost benefit analysis, value of sport to Victoria",104218,"$20,843.",0,2018,MARSDEN JACOB ASSOCIATES,Other consultants
2017–18,Department of Health and Human Services,MetaPM Learning Pty Ltd,Not specified,"Develop, change and communication strategy, disability",86160,"$86,160.",0,2018,METAPM LEARNING PTY LTD,Other consultants
2017–18,Department of Health and Human Services,Michelle Harcourt,Not specified,"Specialised support, residential services quality improvement",42955,"$14,396.",0,2018,MICHELLE HARCOURT,Other consultants
2017–18,Department of Health and Human Services,Midnightsky,Not specified,"Facilitated sessions, implementation advice, free from violence",20750,"$20,750.",0,2018,MIDNIGHTSKY,Other consultants
2017–18,Department of Health and Human Services,Solomon Advisory,Not specified,"Economic analysis, mental health services strategy 2018–2023",176000,"$176,000.",0,2018,SOLOMON ADVISORY,Other consultants
2017–18,Department of Health and Human Services,Price Waterhouse Coopers Indigenous Consulting,Not specified,"Review and develop options, health and wellbeing, Morwell",148886,"$44,665.",0,2018,PRICE WATERHOUSE COOPERS,"KPMG, PwC, EY, Deloitte"
2017–18,Department of Health and Human Services,SMS Management & Technology,Not specified,"Review, disability worker exclusion scheme",91950,"$91,731.",0,2018,SMS MANAGEMENT & TECHNOLOGY,Other consultants
2017–18,Department of Health and Human Services,SMS Management & Technology,Not specified,"Redevelop, business process, human capital management system",178590,"$178,590.",0,2018,SMS MANAGEMENT & TECHNOLOGY,Other consultants
2017–18,Department of Health and Human Services,Saward Dawson Chartered Accountants,Not specified,"Review, Accounting Services policies and procedures",77273,"$63,716.",0,2018,SAWARD DAWSON CHARTERED ACCOUNTANTS,Other consultants
2017–18,Department of Health and Human Services,Siggins Miller Consultants,Not specified,"Review, clinical governance, disability service",89273,"$89,273.",0,2018,SIGGINS MILLER CONSULTANTS,Other consultants
2017–18,Department of Health and Human Services,Siggins Miller Consultants,Not specified,"Review, occupational violence and aggression training",103158,"$101,366.",0,2018,SIGGINS MILLER CONSULTANTS,Other consultants
2017–18,Department of Health and Human Services,Nous Group Pty Ltd,Not specified,"Review, freedom of information business process",74455,"$74,346.",0,2018,NOUS GROUP PTY LTD,Other consultants
2017–18,Department of Health and Human Services,Paxton Partners,Not specified,"Operational review, Eastern Health",60503,"$60,246.",0,2018,PAXTON PARTNERS,Other consultants
2017–18,Department of Health and Human Services,Paxton Partners,Not specified,"Review, cost data and methodology, TAC",46838,"$23,457.",0,2018,PAXTON PARTNERS,Other consultants
2017–18,Department of Health and Human Services,Peer Academy,Not specified,"Develop, codesign, contingency for unfunded disability placements, West",17582,"$17,735.",0,2018,PEER ACADEMY,Other consultants
2017–18,Department of Health and Human Services,PharmOut Pty Ltd,Not specified,"Risk assessment, product quality, patient safety and security medicinal cannabis",38000,"$38,000.",0,2018,PHARMOUT PTY LTD,Other consultants
2017–18,Department of Health and Human Services,Philanthropy Australia,Not specified,"Capacity building, engaging philanthropy",21500,"$21,500.",0,2018,PHILANTHROPY AUSTRALIA,Other consultants
2017–18,Department of Health and Human Services,Pitcher Partners,Not specified,"Evaluation, nursing and midwifery undergraduate pilot",119818,"$33,000.",0,2018,PITCHER PARTNERS,Other consultants
2017–18,Department of Health and Human Services,SGS Economics & Planning Pty Ltd,Not specified,"Business case, Shooting Sports Facilities Program 2018–19",52687,"$52,687.",0,2018,SGS ECONOMICS & PLANNING PTY LTD,Other consultants
2017–18,Department of Health and Human Services,SGS Economics & Planning Pty Ltd,Not specified,"Review, housing register",59606,"$12,583.",0,2018,SGS ECONOMICS & PLANNING PTY LTD,Other consultants
2017–18,Department of Health and Human Services,Secmon1 Pty Ltd,Not specified,"Investigation and analysis, corporate",39730,"$39,730.",0,2018,SECMON1 PTY LTD,Other consultants
2017–18,Department of Health and Human Services,Senversa,Not specified,"Review, housing maintenance (testing and analysis)",213000,"$52,858.",0,2018,SENVERSA,Other consultants
2017–18,Department of Health and Human Services,Paxton Partners,Not specified,"Review, funding and costing, acquired brain injury rehabilitation",59037,"$59,157.",0,2018,PAXTON PARTNERS,Other consultants
2017–18,Department of Health and Human Services,Open Advisory Pty Ltd,Not specified,"Review, service and infrastructure plans, metropolitan",10750,"$10,479.",0,2018,OPEN ADVISORY PTY LTD,Other consultants
2017–18,Department of Health and Human Services,Nous Group Pty Ltd,Not specified,"Impact assessment, operations redesign",108549,"$108,549.",0,2018,NOUS GROUP PTY LTD,Other consultants
2017–18,Department of Health and Human Services,Nous Group Pty Ltd,Not specified,"Develop, compliance framework, men’s behaviour change",75545,"$22,994.",0,2018,NOUS GROUP PTY LTD,Other consultants
2017–18,Department of Health and Human Services,Nous Group Pty Ltd,Not specified,"Develop, statutory body governance framework",74545,"$48,941.",0,2018,NOUS GROUP PTY LTD,Other consultants
2017–18,Department of Health and Human Services,Nous Group Pty Ltd,Not specified,"Develop, rolling plan and planning tool, Victorian Agency for Health Information",84705,"$84,250.",0,2018,NOUS GROUP PTY LTD,Other consultants
2017–18,Department of Health and Human Services,Nous Group Pty Ltd,Not specified,"Marketing and communications, children and families reform",90909,"$58,125.",0,2018,NOUS GROUP PTY LTD,Other consultants
2017–18,Department of Health and Human Services,Nous Group Pty Ltd,Not specified,"Operation review, complaints management",78809,"$33,678.",0,2018,NOUS GROUP PTY LTD,Other consultants
2017–18,Department of Health and Human Services,Nous Group Pty Ltd,Not specified,"Develop, business case, flexible working arrangements",100000,"$100,000.",0,2018,NOUS GROUP PTY LTD,Other consultants
2017–18,Department of Health and Human Services,Ludus Group,Not specified,"Lead consultant, stadia strategy",206182,"$68,773.",0,2018,LUDUS GROUP,Other consultants
2017–18,Department of Health and Human Services,Nous Group Pty Ltd,Not specified,"Review, operating model and support change",113564,"$93,997.",0,2018,NOUS GROUP PTY LTD,Other consultants
2017–18,Department of Health and Human Services,Nous Group Pty Ltd,Not specified,"Develop, strategy, management of unallocated child protection cases",131300,"$43,800.",0,2018,NOUS GROUP PTY LTD,Other consultants
2017–18,Department of Health and Human Services,Nous Group Pty Ltd,Not specified,"Diagnostics, talent development and management framework",132325,"$132,325.",0,2018,NOUS GROUP PTY LTD,Other consultants
2017–18,Department of Health and Human Services,Nous Group Pty Ltd,Not specified,"Deliver, establishment project, Family Safety Victoria",133127,"$133,127.",0,2018,NOUS GROUP PTY LTD,Other consultants
2017–18,Department of Health and Human Services,Nous Group Pty Ltd,Not specified,"Develop, operating model, service agreement and management",141900,"$141,900.",0,2018,NOUS GROUP PTY LTD,Other consultants
2017–18,Department of Health and Human Services,Nous Group Pty Ltd,Not specified,"Review, Victorian public sector residential aged care model",256364,"$214,002.",0,2018,NOUS GROUP PTY LTD,Other consultants
2017–18,Department of Health and Human Services,NSW Health Pathology,Not specified,"Review, Victorian public health mosquito–borne disease control activities",39182,"$39,181.",0,2018,NSW HEALTH PATHOLOGY,Other consultants
2017–18,Department of Health and Human Services,Nucleus Consulting Group Pty Ltd,Not specified,"Service review, community service organisation",71509,"$73,637.",0,2018,NUCLEUS CONSULTING GROUP PTY LTD,Other consultants
2017–18,Department of Health and Human Services,Third Horizon Consulting Pty Ltd,Not specified,"Review, operating model and support change",111647,"$108,001.",0,2018,THIRD HORIZON CONSULTING PTY LTD,Other consultants
2017–18,Department of Health and Human Services,Loss Prevention Group of Australia,Not specified,"Review, public health services security",93000,"$93,000.",0,2018,LOSS PREVENTION GROUP OF AUSTRALIA,Other consultants
2017–18,Department of Health and Human Services,Larter Consulting Pty Ltd,Not specified,"Develop pilot and evaluate service planning, community health services",95043,"$78,240.",0,2018,LARTER CONSULTING PTY LTD,Other consultants
2017–18,Department of Health and Human Services,Healthconsult,Not specified,"Evaluate, Pharmacist–Administered Vaccination Program",195082,"$58,984.",0,2018,HEALTHCONSULT,Other consultants
2017–18,Department of Health and Human Services,The Shannon Company,Not specified,"Creative development, Victorian Prevention Agency",94825,"$94,825.",0,2018,THE SHANNON COMPANY,Other consultants
2017–18,Department of Health and Human Services,I3 Partners,Not specified,"Strategy development, health data integrity",83350,"$83,350.",0,2018,I3 PARTNERS,Other consultants
2017–18,Department of Health and Human Services,The Friday Lab,Not specified,"Develop, 2017 workforce plan capability program",102380,"$101,827.",0,2018,THE FRIDAY LAB,Other consultants
2017–18,Department of Health and Human Services,Biruu Pty Ltd,Not specified,"Identify, resources and capability, children and young people",161325,"$159,607.",0,2018,BIRUU,Other consultants
2017–18,Department of Health and Human Services,Jackie Moden Consulting,Not specified,"Review, Salvation Army Westcare",46250,"$25,766.",0,2018,JACKIE MODEN CONSULTING,Other consultants
2017–18,Department of Health and Human Services,Jackie Moden Consulting,Not specified,"Service review, shared supported accommodation, Brimbank",48000,"$48,000.",0,2018,JACKIE MODEN CONSULTING,Other consultants
2017–18,Department of Health and Human Services,Jackie Moden Consulting,Not specified,"Service review, housing for the aged action group",39345,"$37,281.",0,2018,JACKIE MODEN CONSULTING,Other consultants
2017–18,Department of Health and Human Services,Jacobs Group Australia Pty Ltd,Not specified,Asset management accountability framework compliance,49880,"$49,880.",0,2018,JACOBS GROUP (AUSTRALIA) PTY LTD,Other consultants
2017–18,Department of Health and Human Services,Jacobs Group Australia Pty Ltd,Not specified,"Security audit review, Disability Service",32500,"$11,095.",0,2018,JACOBS GROUP (AUSTRALIA) PTY LTD,Other consultants
2017–18,Department of Health and Human Services,The Australian Centre for Social Innovation,Not specified,Crisis accommodation client voice,129750,"$17,527.",0,2018,THE AUSTRALIAN CENTRE FOR SOCIAL INNOVATION,Other consultants
2017–18,Department of Health and Human Services,Healthconsult,Not specified,"Evaluate, improving emergency access collaboration",68126,"$68,126.",0,2018,HEALTHCONSULT,Other consultants
2017–18,Department of Health and Human Services,Johnstaff Projects,Not specified,"Service plan, Koo Wee Rup health service",63280,"$63,280.",0,2018,JOHNSTAFF PROJECTS,Other consultants
2017–18,Department of Health and Human Services,Healthconsult,Not specified,"Develop and administer, Mental Health Workforce Innovation Grants Program",115271,"$80,050.",0,2018,HEALTHCONSULT,Other consultants
2017–18,Department of Health and Human Services,Third Horizon Consulting Pty Ltd,Not specified,"Review, Office of Prevention and Women’s Equality",65476,"$65,476.",0,2018,THIRD HORIZON CONSULTING PTY LTD,Other consultants
2017–18,Department of Health and Human Services,Third Horizon Consulting Pty Ltd,Not specified,"Develop, governance structure, organisational redesign",62860,"$62,818.",0,2018,THIRD HORIZON CONSULTING PTY LTD,Other consultants
2017–18,Department of Health and Human Services,Ernst & Young,Not specified,"Workshop, outcome–based investment approach",18182,"$18,458.",0,2018,ERNST & YOUNG,"KPMG, PwC, EY, Deloitte"
2017–18,Department of Health and Human Services,Escient Pty Ltd,Not specified,"Develop, strategic portfolio framework, ICT program",122000,"$122,541.",0,2018,ESCIENT PTY LTD,Other consultants
2017–18,Department of Health and Human Services,Excellent Outcomes,Not specified,"Review, recruitment functions",12730,"$12,058.",0,2018,EXCELLENT OUTCOMES,Other consultants
